Workbook

Sheet FILTRO
A2: Establecimiento | B2: (Todas)
A3: Comuna | B3: (Todas)
A4: Mes | B4: (Todas)
A6: Etiquetas de fila | B6: Suma de Col01 | C6: Suma de Col02 | D6: Suma de Col03 | E6: Suma de Col04 | F6: Suma de Col05 | G6: Suma de Col06 | H6: Suma de Col07 | I6: Suma de Col08 | J6: Suma de Col09 | K6: Suma de Col10 | L6: Suma de Col11 | M6: Suma de Col12 | N6: Suma de Col13 | O6: Suma de Col14 | P6: Suma de Col15
A7: 15010100 | B7: 20320 | F7: 13981 | G7: 6199 | H7: 2 | I7: 6 | J7: 65 | K7: 0 | L7: 34 | M7: 19 | N7: 14
A8: 15010200 | B8: 83800 | G8: 5784 | H8: 41935 | I8: 36081
A9: 15010300 | B9: 411 | F9: 295 | G9: 116 | H9: 0 | I9: 0 | J9: 0 | K9: 0 | L9: 0 | M9: 0 | N9: 0
A10: 15010400 | B10: 1619 | G10: 110 | H10: 928 | I10: 581
A11: 15010500 | B11: 6114 | D11: 20 | E11: 944 | F11: 902 | G11: 678 | H11: 2191 | I11: 1379
A12: 15020100 | B12: 564 | C12: 8 | D12: 32 | E12: 134 | F12: 314 | G12: 74 | H12: 0 | I12: 0 | J12: 0 | K12: 0 | L12: 0 | M12: 2 | N12: 0
A13: 15020200 | B13: 1307 | G13: 92 | H13: 707 | I13: 508
A14: 15020300 | B14: 2 | G14: 2
A15: 15020400 | B15: 26 | G15: 0 | H15: 20 | I15: 6
A16: 15020500 | B16: 22 | D16: 0 | E16: 0 | F16: 2 | G16: 0 | H16: 18 | I16: 2
A17: 15030100 | B17: 1462.8 | C17: 471.2 | D17: 489.6 | E17: 502
A18: 15040100 | B18: 96.4 | C18: 38.8 | D18: 44.8 | E18: 12.8
A19: 15050100 | B19: 156699 | C19: 63096 | D19: 94063 | E19: 1842 | F19: 4159 | G19: 12758 | H19: 20548 | I19: 18226 | J19: 33217 | K19: 29122 | L19: 20414 | N19: 7546 | O19: 2850 | P19: 6017
A20: 15050200 | B20: 3655 | C20: 1863 | D20: 1717 | E20: 62 | F20: 114 | G20: 493 | H20: 456 | I20: 341 | J20: 1098 | K20: 687 | M20: 317 | N20: 41 | O20: 24 | P20: 22
A21: 15050500 | B21: 550 | C21: 278 | D21: 268 | E21: 152 | F21: 148 | G21: 250
A22: 15060100 | B22: 2283 | C22: 1077 | D22: 1211 | E22: 28 | F22: 60 | G22: 269 | H22: 443 | I22: 329 | J22: 621 | K22: 438 | L22: 40 | N22: 31 | O22: 20 | P22: 4
A23: 15060200 | B23: 13 | C23: 14 | D23: 18 | E23: 0 | F23: 0 | G23: 0 | H23: 1 | I23: 1 | J23: 9 | K23: 2 | M23: 0 | N23: 0 | O23: 0 | P23: 0
A24: 15060600 | B24: 24 | C24: 7 | D24: 16 | E24: 10 | F24: 11 | G24: 3
A25: 15080008 | B25: 43894.5 | J25: 20202 | L25: 14837 | M25: 2842.5 | N25: 6013
A26: 15080009 | B26: 1115 | K26: 936 | L26: 120 | M26: 32 | N26: 27
A27: 15080010 | B27: 120 | J27: 38 | L27: 58 | M27: 20 | N27: 4
A28: 15080011 | B28: 3 | K28: 1 | L28: 2 | M28: 0 | N28: 0
A29: 15080012 | B29: 30 | D29: 0 | E29: 30
A30: 15080014 | B30: 51586 | F30: 27142 | G30: 24193 | H30: 0 | I30: 11 | J30: 150 | K30: 0 | L30: 72 | M30: 5 | N30: 13
A31: 15080015 | B31: 45728 | H31: 24424 | I31: 21304
A32: 15080016 | B32: 3091 | F32: 601 | G32: 446 | H32: 1254 | I32: 771 | J32: 0 | K32: 12 | L32: 9 | M32: 2 | N32: 0
A33: 15080017 | B33: 2 | H33: 2
A34: 15080018 | B34: 1525 | C34: 33 | D34: 74 | E34: 384 | F34: 558 | G34: 476 | H34: 0 | I34: 0 | J34: 0 | K34: 0 | L34: 0 | M34: 0 | N34: 0
A35: 15080019 | B35: 820 | H35: 494 | I35: 326
A36: 15080020 | B36: 10 | C36: 4 | D36: 0 | E36: 0 | F36: 2 | G36: 0 | H36: 4 | I36: 0 | J36: 0 | K36: 0 | L36: 0 | M36: 0 | N36: 0
A37: 15900010 | B37: 47724.7 | C37: 4064.6 | D37: 11230.7 | E37: 32429.4
A38: 15900020 | B38: 1979.4 | C38: 173.5 | D38: 364.7 | E38: 1441.2
A39: 15900030 | B39: 8470.8 | C39: 208.4 | D39: 567.6 | E39: 5729.2 | F39: 1140.4 | G39: 736.8 | H39: 82 | I39: 6.4
A40: 15900040 | B40: 2340.4 | C40: 102.8 | D40: 422.8 | E40: 989.2 | F40: 634.4 | G40: 152 | H40: 26 | I40: 13.2
A41: 15900050 | B41: 1947 | C41: 1070 | D41: 831 | E41: 111 | F41: 282 | G41: 762 | H41: 488 | I41: 260 | J41: 40 | K41: 4
A42: 15900070 | B42: 3.2 | E42: 3.2
A43: 15901200 | B43: 1589.6 | C43: 61.2 | D43: 150.4 | E43: 641.6 | F43: 457.6 | G43: 275.6 | H43: 3.2 | I43: 0
A44: 15901300 | B44: 786.4 | C44: 44 | D44: 92.8 | E44: 362.8 | F44: 180.8 | G44: 101.2 | H44: 4.8 | I44: 0
A45: 15901400 | B45: 659 | C45: 374 | D45: 258 | E45: 31 | F45: 66 | G45: 279 | H45: 179 | I45: 102 | J45: 2 | K45: 0
A46: 15901500 | B46: 486.2 | C46: 37.3 | D46: 60.2 | E46: 388.7
A47: 16090100 | B47: 949 | C47: 950
A48: 16090300 | B48: 229841 | C48: 229914
A49: 16090500 | B49: 458 | C49: 458
A50: 16090600 | B50: 58 | C50: 58
A51: 16100100 | B51: 949 | C51: 409 | D51: 540
A52: 16100300 | B52: 230690 | C52: 97588 | D52: 133102
A53: 16100600 | B53: 463 | C53: 165 | D53: 298
A54: 16100700 | B54: 53 | C54: 44 | D54: 9
A55: 16200100 | B55: 3868 | C55: 2067 | D55: 1801
A56: 16200210 | B56: 16940 | C56: 16943
A57: 16200220 | B57: 17176 | C57: 6506 | D57: 10670
A58: 16200230 | B58: 152 | C58: 71 | D58: 81
A59: 16200240 | B59: 2 | C59: 2
A60: Total general | B60: 994478.4 | C60: 428200.8 | D60: 258432.6 | E60: 46228.1 | F60: 51050.2 | G60: 54249.6 | H60: 94210 | I60: 80253.6 | J60: 55442 | K60: 31202 | L60: 35586 | M60: 3239.5 | N60: 13689 | O60: 2894 | P60: 6043

Sheet D15
B1: SERVICIO DE SALUD
B2: =CONCATENATE("COMUNA: ",[1]NOMBRE!$B$2," ","( ",[1]NOMBRE!$C$2,[1]NOMBRE!$D$2,[1]NOMBRE!$E$2,[1]NOMBRE!$F$2,[1]NOMBRE!$G$2," )") -> COMUNA: 0 ( 00000 )
B3: =CONCATENATE("ESTABLECIMIENTO/ESTRATEGIA: ",[1]NOMBRE!$B$3," ","( ",[1]NOMBRE!$C$3,[1]NOMBRE!$D$3,[1]NOMBRE!$E$3,[1]NOMBRE!$F$3,[1]NOMBRE!$G$3,[1]NOMBRE!$H$3," )") -> ESTABLECIMIENTO/ESTRATEGIA: 0 ( 000000 )
B4: =CONCATENATE("MES: ",[1]NOMBRE!$B$6," ","( ",[1]NOMBRE!$C$6,[1]NOMBRE!$D$6," )") -> MES: 0 ( 00 )
B5: =CONCATENATE("AÑO: ",[1]NOMBRE!$B$7) -> AÑO: 2023
B7: REM-D.15 - Programa Nacional de Alimentación Complementaria (PNAC)
B8: Sección A: PNAC - Cantidad distribuida (kg) a personas intrasistema
B9: Subprogramas | C9: Productos | D9: Total | E9: Menores a 6 años | L9: Gestantes | N9: Persona que amamanta a hijo/a menor a 12 meses
E10: 0 - 2 meses | F10: 3 - 5 meses | G10: 6 - 11 meses | H10: 12 - 17 meses | I10: 18 - 23 meses | J10: 24 - 47 meses | K10: 48 - 71 meses | L10: Normal, sobrepeso y obesas | M10: Bajo peso | N10: 0 a 5 meses con Lactancia Materna exclusiva | O10: 0 a 5 meses Lactancia Materna + Fórmula Láctea | P10: 6 a 11 meses Lactancia Materna
A13: 15010100 | B13: Básico | C13: Leche Purita Fortificada (LPF) | D13: =SUM(H13:P13) -> 20,320 | E13: =IFERROR(VLOOKUP($A13,FILTRO!$A$5:$P$59,3,FALSE),0) -> 0 | F13: =IFERROR(VLOOKUP($A13,FILTRO!$A$5:$P$59,4,FALSE),0) -> 0 | G13: =IFERROR(VLOOKUP($A13,FILTRO!$A$5:$P$59,5,FALSE),0) -> 0 | H13: =IFERROR(VLOOKUP($A13,FILTRO!$A$5:$P$59,6,FALSE),0) -> 13,981 | I13: =IFERROR(VLOOKUP($A13,FILTRO!$A$5:$P$59,7,FALSE),0) -> 6,199 | J13: =IFERROR(VLOOKUP($A13,FILTRO!$A$5:$P$59,8,FALSE),0) -> 2 | K13: =IFERROR(VLOOKUP($A13,FILTRO!$A$5:$P$59,9,FALSE),0) -> 6 | L13: =IFERROR(VLOOKUP($A13,FILTRO!$A$5:$P$59,10,FALSE),0) -> 65 | M13: =IFERROR(VLOOKUP($A13,FILTRO!$A$5:$P$59,11,FALSE),0) -> 0 | N13: =IFERROR(VLOOKUP($A13,FILTRO!$A$5:$P$59,12,FALSE),0) -> 34 | O13: =IFERROR(VLOOKUP($A13,FILTRO!$A$5:$P$59,13,FALSE),0) -> 19 | P13: =IFERROR(VLOOKUP($A13,FILTRO!$A$5:$P$59,14,FALSE),0) -> 14
A14: 15080014 | C14: Purita +Pro 1 | D14: =SUM(H14:P14) -> 51,586 | E14: =IFERROR(VLOOKUP($A14,FILTRO!$A$5:$P$59,3,FALSE),0) -> 0 | F14: =IFERROR(VLOOKUP($A14,FILTRO!$A$5:$P$59,4,FALSE),0) -> 0 | G14: =IFERROR(VLOOKUP($A14,FILTRO!$A$5:$P$59,5,FALSE),0) -> 0 | H14: =IFERROR(VLOOKUP($A14,FILTRO!$A$5:$P$59,6,FALSE),0) -> 27,142 | I14: =IFERROR(VLOOKUP($A14,FILTRO!$A$5:$P$59,7,FALSE),0) -> 24,193 | J14: =IFERROR(VLOOKUP($A14,FILTRO!$A$5:$P$59,8,FALSE),0) -> 0 | K14: =IFERROR(VLOOKUP($A14,FILTRO!$A$5:$P$59,9,FALSE),0) -> 11 | L14: =IFERROR(VLOOKUP($A14,FILTRO!$A$5:$P$59,10,FALSE),0) -> 150 | M14: =IFERROR(VLOOKUP($A14,FILTRO!$A$5:$P$59,11,FALSE),0) -> 0 | N14: =IFERROR(VLOOKUP($A14,FILTRO!$A$5:$P$59,12,FALSE),0) -> 72 | O14: =IFERROR(VLOOKUP($A14,FILTRO!$A$5:$P$59,13,FALSE),0) -> 5 | P14: =IFERROR(VLOOKUP($A14,FILTRO!$A$5:$P$59,14,FALSE),0) -> 13
A15: 15010200 | C15: Purita Cereal (PC) | D15: =SUM(I15:K15) -> 83,800 | E15: =IFERROR(VLOOKUP($A15,FILTRO!$A$5:$P$59,3,FALSE),0) -> 0 | F15: =IFERROR(VLOOKUP($A15,FILTRO!$A$5:$P$59,4,FALSE),0) -> 0 | G15: =IFERROR(VLOOKUP($A15,FILTRO!$A$5:$P$59,5,FALSE),0) -> 0 | H15: =IFERROR(VLOOKUP($A15,FILTRO!$A$5:$P$59,6,FALSE),0) -> 0 | I15: =IFERROR(VLOOKUP($A15,FILTRO!$A$5:$P$59,7,FALSE),0) -> 5,784 | J15: =IFERROR(VLOOKUP($A15,FILTRO!$A$5:$P$59,8,FALSE),0) -> 41,935 | K15: =IFERROR(VLOOKUP($A15,FILTRO!$A$5:$P$59,9,FALSE),0) -> 36,081 | L15: =IFERROR(VLOOKUP($A15,FILTRO!$A$5:$P$59,10,FALSE),0) -> 0 | M15: =IFERROR(VLOOKUP($A15,FILTRO!$A$5:$P$59,11,FALSE),0) -> 0 | N15: =IFERROR(VLOOKUP($A15,FILTRO!$A$5:$P$59,12,FALSE),0) -> 0 | O15: =IFERROR(VLOOKUP($A15,FILTRO!$A$5:$P$59,13,FALSE),0) -> 0 | P15: =IFERROR(VLOOKUP($A15,FILTRO!$A$5:$P$59,14,FALSE),0) -> 0
A16: 15080015 | C16: Purita +Pro 2 | D16: =SUM(J16:K16) -> 45,728 | E16: =IFERROR(VLOOKUP($A16,FILTRO!$A$5:$P$59,3,FALSE),0) -> 0 | F16: =IFERROR(VLOOKUP($A16,FILTRO!$A$5:$P$59,4,FALSE),0) -> 0 | G16: =IFERROR(VLOOKUP($A16,FILTRO!$A$5:$P$59,5,FALSE),0) -> 0 | H16: =IFERROR(VLOOKUP($A16,FILTRO!$A$5:$P$59,6,FALSE),0) -> 0 | I16: =IFERROR(VLOOKUP($A16,FILTRO!$A$5:$P$59,7,FALSE),0) -> 0 | J16: =IFERROR(VLOOKUP($A16,FILTRO!$A$5:$P$59,8,FALSE),0) -> 24,424 | K16: =IFERROR(VLOOKUP($A16,FILTRO!$A$5:$P$59,9,FALSE),0) -> 21,304 | L16: =IFERROR(VLOOKUP($A16,FILTRO!$A$5:$P$59,10,FALSE),0) -> 0 | M16: =IFERROR(VLOOKUP($A16,FILTRO!$A$5:$P$59,11,FALSE),0) -> 0 | N16: =IFERROR(VLOOKUP($A16,FILTRO!$A$5:$P$59,12,FALSE),0) -> 0 | O16: =IFERROR(VLOOKUP($A16,FILTRO!$A$5:$P$59,13,FALSE),0) -> 0 | P16: =IFERROR(VLOOKUP($A16,FILTRO!$A$5:$P$59,14,FALSE),0) -> 0
A17: 15080008 | C17: Purita Mamá (PM) | D17: =SUM(N17:P17)+L17 -> 43894.5 | E17: =IFERROR(VLOOKUP($A17,FILTRO!$A$5:$P$59,3,FALSE),0) -> 0 | F17: =IFERROR(VLOOKUP($A17,FILTRO!$A$5:$P$59,4,FALSE),0) -> 0 | G17: =IFERROR(VLOOKUP($A17,FILTRO!$A$5:$P$59,5,FALSE),0) -> 0 | H17: =IFERROR(VLOOKUP($A17,FILTRO!$A$5:$P$59,6,FALSE),0) -> 0 | I17: =IFERROR(VLOOKUP($A17,FILTRO!$A$5:$P$59,7,FALSE),0) -> 0 | J17: =IFERROR(VLOOKUP($A17,FILTRO!$A$5:$P$59,8,FALSE),0) -> 0 | K17: =IFERROR(VLOOKUP($A17,FILTRO!$A$5:$P$59,9,FALSE),0) -> 0 | L17: =IFERROR(VLOOKUP($A17,FILTRO!$A$5:$P$59,10,FALSE),0) -> 20,202 | M17: =IFERROR(VLOOKUP($A17,FILTRO!$A$5:$P$59,11,FALSE),0) -> 0 | N17: =IFERROR(VLOOKUP($A17,FILTRO!$A$5:$P$59,12,FALSE),0) -> 14,837 | O17: =IFERROR(VLOOKUP($A17,FILTRO!$A$5:$P$59,13,FALSE),0) -> 2,843 | P17: =IFERROR(VLOOKUP($A17,FILTRO!$A$5:$P$59,14,FALSE),0) -> 6,013 | AB17: =IF(AND(OR(L13<>0,L14<>0,L17<>0),N42=""),"* No olvide ingresar el Nº de personas que retiran alimento de la sección B en el grupo de Gestantes Normal, Sobrepeso y Obesas.","") ->  | AC17: =IF(AND(SUM(N13,N14,N17)<>0,P42=""),"* No olvide ingresar el Nº de personas que retiran alimento de la sección B en el grupo de Madre con hijo/a menor a 6 meses con Lactancia materna exclusiva.","") ->  | AD17: =IF(AND(SUM(O13,O14,O17)<>0,Q42=""),"* No olvide ingresar el Nº de personas que retiran alimento de la sección D en el grupo de Madre con hijo/a menor a 6 meses con Lactancia materna predominante.","") ->  | AE17: =IF(AND(SUM(P13,P14,P17)<>0,R42=""),"* No olvide ingresar el Nº de personas que retiran alimento de la sección B en el grupo de Madre con hijo/a menor a 6 meses con Formula predominantes o exclusiva.","") -> 
A18: 15900010 | C18: Fórmula de Inicio (FI) | D18: =SUM(E18:G18) -> 47724.7 | E18: =IFERROR(VLOOKUP($A18,FILTRO!$A$5:$P$59,3,FALSE),0) -> 4065 | F18: =IFERROR(VLOOKUP($A18,FILTRO!$A$5:$P$59,4,FALSE),0) -> 11231 | G18: =IFERROR(VLOOKUP($A18,FILTRO!$A$5:$P$59,5,FALSE),0) -> 32429 | H18: =IFERROR(VLOOKUP($A18,FILTRO!$A$5:$P$59,6,FALSE),0) -> 0 | I18: =IFERROR(VLOOKUP($A18,FILTRO!$A$5:$P$59,7,FALSE),0) -> 0 | J18: =IFERROR(VLOOKUP($A18,FILTRO!$A$5:$P$59,8,FALSE),0) -> 0 | K18: =IFERROR(VLOOKUP($A18,FILTRO!$A$5:$P$59,9,FALSE),0) -> 0 | L18: =IFERROR(VLOOKUP($A18,FILTRO!$A$5:$P$59,10,FALSE),0) -> 0 | M18: =IFERROR(VLOOKUP($A18,FILTRO!$A$5:$P$59,11,FALSE),0) -> 0 | N18: =IFERROR(VLOOKUP($A18,FILTRO!$A$5:$P$59,12,FALSE),0) -> 0 | O18: =IFERROR(VLOOKUP($A18,FILTRO!$A$5:$P$59,13,FALSE),0) -> 0 | P18: =IFERROR(VLOOKUP($A18,FILTRO!$A$5:$P$59,14,FALSE),0) -> 0
C19: Subtotal | D19: =SUM(E19:P19) -> 293053.200 | E19: =SUM(E18) -> 4064.600 | F19: =SUM(F18) -> 11230.700 | G19: =SUM(G18) -> 32429.400 | H19: =SUM(H13:H14) -> 41123 | I19: =SUM(I13:I15) -> 36176 | J19: =SUM(J13:J16) -> 66361 | K19: =SUM(K13:K16) -> 57402 | L19: =SUM(L13:L18) -> 20417.0 | M19: =SUM(M13:M14) -> 0 | N19: =SUM(N13:N18) -> 14943.0 | O19: =SUM(O13:O18) -> 2866.5 | P19: =SUM(P13:P18) -> 6040.0
A20: 15010300 | B20: Refuerzo | C20: Leche Purita Fortificada (LPF) | D20: =SUM(H20:Q20) -> 411 | E20: =IFERROR(VLOOKUP($A20,FILTRO!$A$5:$P$59,3,FALSE),0) -> 0 | F20: =IFERROR(VLOOKUP($A20,FILTRO!$A$5:$P$59,4,FALSE),0) -> 0 | G20: =IFERROR(VLOOKUP($A20,FILTRO!$A$5:$P$59,5,FALSE),0) -> 0 | H20: =IFERROR(VLOOKUP($A20,FILTRO!$A$5:$P$59,6,FALSE),0) -> 295 | I20: =IFERROR(VLOOKUP($A20,FILTRO!$A$5:$P$59,7,FALSE),0) -> 116 | J20: =IFERROR(VLOOKUP($A20,FILTRO!$A$5:$P$59,8,FALSE),0) -> 0 | K20: =IFERROR(VLOOKUP($A20,FILTRO!$A$5:$P$59,9,FALSE),0) -> 0 | L20: =IFERROR(VLOOKUP($A20,FILTRO!$A$5:$P$59,10,FALSE),0) -> 0 | M20: =IFERROR(VLOOKUP($A20,FILTRO!$A$5:$P$59,11,FALSE),0) -> 0 | N20: =IFERROR(VLOOKUP($A20,FILTRO!$A$5:$P$59,12,FALSE),0) -> 0 | O20: =IFERROR(VLOOKUP($A20,FILTRO!$A$5:$P$59,13,FALSE),0) -> 0 | P20: =IFERROR(VLOOKUP($A20,FILTRO!$A$5:$P$59,14,FALSE),0) -> 0
A21: 15080016 | C21: Purita +Pro 1 | D21: =SUM(H21:Q21) -> 3095 | E21: =IFERROR(VLOOKUP($A21,FILTRO!$A$5:$P$59,3,FALSE),0) -> 0 | F21: =IFERROR(VLOOKUP($A21,FILTRO!$A$5:$P$59,4,FALSE),0) -> 0 | G21: =IFERROR(VLOOKUP($A21,FILTRO!$A$5:$P$59,5,FALSE),0) -> 0 | H21: =IFERROR(VLOOKUP($A21,FILTRO!$A$5:$P$59,6,FALSE),0) -> 601 | I21: =IFERROR(VLOOKUP($A21,FILTRO!$A$5:$P$59,7,FALSE),0) -> 446 | J21: =IFERROR(VLOOKUP($A21,FILTRO!$A$5:$P$59,8,FALSE),0) -> 1254 | K21: =IFERROR(VLOOKUP($A21,FILTRO!$A$5:$P$59,9,FALSE),0) -> 771 | L21: =IFERROR(VLOOKUP($A21,FILTRO!$A$5:$P$59,10,FALSE),0) -> 0 | M21: =IFERROR(VLOOKUP($A21,FILTRO!$A$5:$P$59,11,FALSE),0) -> 12 | N21: =IFERROR(VLOOKUP($A21,FILTRO!$A$5:$P$59,12,FALSE),0) -> 9 | O21: =IFERROR(VLOOKUP($A21,FILTRO!$A$5:$P$59,13,FALSE),0) -> 2 | P21: =IFERROR(VLOOKUP($A21,FILTRO!$A$5:$P$59,14,FALSE),0) -> 0
A22: 15010400 | C22: Purita Cereal (PC) | D22: =SUM(I22:K22) -> 1619 | E22: =IFERROR(VLOOKUP($A22,FILTRO!$A$5:$P$59,3,FALSE),0) -> 0 | F22: =IFERROR(VLOOKUP($A22,FILTRO!$A$5:$P$59,4,FALSE),0) -> 0 | G22: =IFERROR(VLOOKUP($A22,FILTRO!$A$5:$P$59,5,FALSE),0) -> 0 | H22: =IFERROR(VLOOKUP($A22,FILTRO!$A$5:$P$59,6,FALSE),0) -> 0 | I22: =IFERROR(VLOOKUP($A22,FILTRO!$A$5:$P$59,7,FALSE),0) -> 110 | J22: =IFERROR(VLOOKUP($A22,FILTRO!$A$5:$P$59,8,FALSE),0) -> 928 | K22: =IFERROR(VLOOKUP($A22,FILTRO!$A$5:$P$59,9,FALSE),0) -> 581 | L22: =IFERROR(VLOOKUP($A22,FILTRO!$A$5:$P$59,10,FALSE),0) -> 0 | M22: =IFERROR(VLOOKUP($A22,FILTRO!$A$5:$P$59,11,FALSE),0) -> 0 | N22: =IFERROR(VLOOKUP($A22,FILTRO!$A$5:$P$59,12,FALSE),0) -> 0 | O22: =IFERROR(VLOOKUP($A22,FILTRO!$A$5:$P$59,13,FALSE),0) -> 0 | P22: =IFERROR(VLOOKUP($A22,FILTRO!$A$5:$P$59,14,FALSE),0) -> 0
A23: 15080017 | C23: Purita +Pro 2 | D23: =SUM(J23:K23) -> 2 | E23: =IFERROR(VLOOKUP($A23,FILTRO!$A$5:$P$59,3,FALSE),0) -> 0 | F23: =IFERROR(VLOOKUP($A23,FILTRO!$A$5:$P$59,4,FALSE),0) -> 0 | G23: =IFERROR(VLOOKUP($A23,FILTRO!$A$5:$P$59,5,FALSE),0) -> 0 | H23: =IFERROR(VLOOKUP($A23,FILTRO!$A$5:$P$59,6,FALSE),0) -> 0 | I23: =IFERROR(VLOOKUP($A23,FILTRO!$A$5:$P$59,7,FALSE),0) -> 0 | J23: =IFERROR(VLOOKUP($A23,FILTRO!$A$5:$P$59,8,FALSE),0) -> 2 | K23: =IFERROR(VLOOKUP($A23,FILTRO!$A$5:$P$59,9,FALSE),0) -> 0 | L23: =IFERROR(VLOOKUP($A23,FILTRO!$A$5:$P$59,10,FALSE),0) -> 0 | M23: =IFERROR(VLOOKUP($A23,FILTRO!$A$5:$P$59,11,FALSE),0) -> 0 | N23: =IFERROR(VLOOKUP($A23,FILTRO!$A$5:$P$59,12,FALSE),0) -> 0 | O23: =IFERROR(VLOOKUP($A23,FILTRO!$A$5:$P$59,13,FALSE),0) -> 0 | P23: =IFERROR(VLOOKUP($A23,FILTRO!$A$5:$P$59,14,FALSE),0) -> 0
A24: 15010500 | C24: Mi Sopita (MS) | D24: =SUM(F24:K24) -> 6114 | E24: =IFERROR(VLOOKUP($A24,FILTRO!$A$5:$P$59,3,FALSE),0) -> 0 | F24: =IFERROR(VLOOKUP($A24,FILTRO!$A$5:$P$59,4,FALSE),0) -> 20 | G24: =IFERROR(VLOOKUP($A24,FILTRO!$A$5:$P$59,5,FALSE),0) -> 944 | H24: =IFERROR(VLOOKUP($A24,FILTRO!$A$5:$P$59,6,FALSE),0) -> 902 | I24: =IFERROR(VLOOKUP($A24,FILTRO!$A$5:$P$59,7,FALSE),0) -> 678 | J24: =IFERROR(VLOOKUP($A24,FILTRO!$A$5:$P$59,8,FALSE),0) -> 2191 | K24: =IFERROR(VLOOKUP($A24,FILTRO!$A$5:$P$59,9,FALSE),0) -> 1379 | L24: =IFERROR(VLOOKUP($A24,FILTRO!$A$5:$P$59,10,FALSE),0) -> 0 | M24: =IFERROR(VLOOKUP($A24,FILTRO!$A$5:$P$59,11,FALSE),0) -> 0 | N24: =IFERROR(VLOOKUP($A24,FILTRO!$A$5:$P$59,12,FALSE),0) -> 0 | O24: =IFERROR(VLOOKUP($A24,FILTRO!$A$5:$P$59,13,FALSE),0) -> 0 | P24: =IFERROR(VLOOKUP($A24,FILTRO!$A$5:$P$59,14,FALSE),0) -> 0
A25: 15080009 | C25: Purita Mamá (PM) | D25: =SUM(M25:Q25) -> 1115 | E25: =IFERROR(VLOOKUP($A25,FILTRO!$A$5:$P$59,3,FALSE),0) -> 0 | F25: =IFERROR(VLOOKUP($A25,FILTRO!$A$5:$P$59,4,FALSE),0) -> 0 | G25: =IFERROR(VLOOKUP($A25,FILTRO!$A$5:$P$59,5,FALSE),0) -> 0 | H25: =IFERROR(VLOOKUP($A25,FILTRO!$A$5:$P$59,6,FALSE),0) -> 0 | I25: =IFERROR(VLOOKUP($A25,FILTRO!$A$5:$P$59,7,FALSE),0) -> 0 | J25: =IFERROR(VLOOKUP($A25,FILTRO!$A$5:$P$59,8,FALSE),0) -> 0 | K25: =IFERROR(VLOOKUP($A25,FILTRO!$A$5:$P$59,9,FALSE),0) -> 0 | L25: =IFERROR(VLOOKUP($A25,FILTRO!$A$5:$P$59,10,FALSE),0) -> 0 | M25: =IFERROR(VLOOKUP($A25,FILTRO!$A$5:$P$59,11,FALSE),0) -> 936 | N25: =IFERROR(VLOOKUP($A25,FILTRO!$A$5:$P$59,12,FALSE),0) -> 120 | O25: =IFERROR(VLOOKUP($A25,FILTRO!$A$5:$P$59,13,FALSE),0) -> 32 | P25: =IFERROR(VLOOKUP($A25,FILTRO!$A$5:$P$59,14,FALSE),0) -> 27
A26: 15900020 | C26: Fórmula de Inicio (FI) | D26: =SUM(E26:G26) -> 1979 | E26: =IFERROR(VLOOKUP($A26,FILTRO!$A$5:$P$59,3,FALSE),0) -> 174 | F26: =IFERROR(VLOOKUP($A26,FILTRO!$A$5:$P$59,4,FALSE),0) -> 365 | G26: =IFERROR(VLOOKUP($A26,FILTRO!$A$5:$P$59,5,FALSE),0) -> 1441 | H26: =IFERROR(VLOOKUP($A26,FILTRO!$A$5:$P$59,6,FALSE),0) -> 0 | I26: =IFERROR(VLOOKUP($A26,FILTRO!$A$5:$P$59,7,FALSE),0) -> 0 | J26: =IFERROR(VLOOKUP($A26,FILTRO!$A$5:$P$59,8,FALSE),0) -> 0 | K26: =IFERROR(VLOOKUP($A26,FILTRO!$A$5:$P$59,9,FALSE),0) -> 0 | L26: =IFERROR(VLOOKUP($A26,FILTRO!$A$5:$P$59,10,FALSE),0) -> 0 | N26: =IFERROR(VLOOKUP($A26,FILTRO!$A$5:$P$59,11,FALSE),0) -> 0 | O26: =IFERROR(VLOOKUP($A26,FILTRO!$A$5:$P$59,13,FALSE),0) -> 0 | P26: =IFERROR(VLOOKUP($A26,FILTRO!$A$5:$P$59,14,FALSE),0) -> 0
C27: Subtotal | D27: =SUM(E27:Q27) -> 14335.400 | E27: =SUM(E26) -> 173.500 | F27: =SUM(F20:F26) -> 384.700 | G27: =SUM(G20:G26) -> 2385.200 | H27: =SUM(H20:H24) -> 1798 | I27: =SUM(I20:I24) -> 1350 | J27: =SUM(J20:J24) -> 4375 | K27: =SUM(K20:K24) -> 2731 | L27: =SUM(L20:L21) -> 0.0 | M27: =SUM(M20:M26) -> 948.0 | N27: =SUM(N20:N26) -> 129.0 | O27: =SUM(O20:O26) -> 34.0 | P27: =SUM(P20:P26) -> 27.0
A28: 15030100 | B28: Prematuros | C28: Fórmula de Prematuros (FP) | D28: =SUM(E28:G28) -> 1462.800 | E28: =IFERROR(VLOOKUP($A28,FILTRO!$A$5:$P$59,3,FALSE),0) -> 471.200 | F28: =IFERROR(VLOOKUP($A28,FILTRO!$A$5:$P$59,4,FALSE),0) -> 489.600 | G28: =IFERROR(VLOOKUP($A28,FILTRO!$A$5:$P$59,5,FALSE),0) -> 502.000 | H28: =IFERROR(VLOOKUP($A28,FILTRO!$A$5:$P$59,6,FALSE),0) -> 0.000 | I28: =IFERROR(VLOOKUP($A28,FILTRO!$A$5:$P$59,7,FALSE),0) -> 0.000 | J28: =IFERROR(VLOOKUP($A28,FILTRO!$A$5:$P$59,8,FALSE),0) -> 0.000 | K28: =IFERROR(VLOOKUP($A28,FILTRO!$A$5:$P$59,9,FALSE),0) -> 0.000 | L28: =IFERROR(VLOOKUP($A28,FILTRO!$A$5:$P$59,10,FALSE),0) -> 0.000 | M28: =IFERROR(VLOOKUP($A28,FILTRO!$A$5:$P$59,11,FALSE),0) -> 0.000 | N28: =IFERROR(VLOOKUP($A28,FILTRO!$A$5:$P$59,12,FALSE),0) -> 0.000 | O28: =IFERROR(VLOOKUP($A28,FILTRO!$A$5:$P$59,13,FALSE),0) -> 0.000 | P28: =IFERROR(VLOOKUP($A28,FILTRO!$A$5:$P$59,14,FALSE),0) -> 0.000
A29: 15901500 | C29: Fórmula de Incio (FI) | D29: =SUM(E29:G29) -> 486.200 | E29: =IFERROR(VLOOKUP($A29,FILTRO!$A$5:$P$59,3,FALSE),0) -> 37.300 | F29: =IFERROR(VLOOKUP($A29,FILTRO!$A$5:$P$59,4,FALSE),0) -> 60.200 | G29: =IFERROR(VLOOKUP($A29,FILTRO!$A$5:$P$59,5,FALSE),0) -> 388.700 | H29: =IFERROR(VLOOKUP($A29,FILTRO!$A$5:$P$59,6,FALSE),0) -> 0.000 | I29: =IFERROR(VLOOKUP($A29,FILTRO!$A$5:$P$59,7,FALSE),0) -> 0.000 | J29: =IFERROR(VLOOKUP($A29,FILTRO!$A$5:$P$59,8,FALSE),0) -> 0.000 | K29: =IFERROR(VLOOKUP($A29,FILTRO!$A$5:$P$59,9,FALSE),0) -> 0.000 | L29: =IFERROR(VLOOKUP($A29,FILTRO!$A$5:$P$59,10,FALSE),0) -> 0.000 | M29: =IFERROR(VLOOKUP($A29,FILTRO!$A$5:$P$59,11,FALSE),0) -> 0.000 | N29: =IFERROR(VLOOKUP($A29,FILTRO!$A$5:$P$59,12,FALSE),0) -> 0.000 | O29: =IFERROR(VLOOKUP($A29,FILTRO!$A$5:$P$59,13,FALSE),0) -> 0.000 | P29: =IFERROR(VLOOKUP($A29,FILTRO!$A$5:$P$59,14,FALSE),0) -> 0.000
A30: 15080012 | C30: Mi Sopita (MS) | D30: =SUM(F30:G30) -> 30 | E30: =IFERROR(VLOOKUP($A30,FILTRO!$A$5:$P$59,3,FALSE),0) -> 0.000 | F30: =IFERROR(VLOOKUP($A30,FILTRO!$A$5:$P$59,4,FALSE),0) -> 0.000 | G30: =IFERROR(VLOOKUP($A30,FILTRO!$A$5:$P$59,5,FALSE),0) -> 30.000 | H30: =IFERROR(VLOOKUP($A30,FILTRO!$A$5:$P$59,6,FALSE),0) -> 0.000 | I30: =IFERROR(VLOOKUP($A30,FILTRO!$A$5:$P$59,7,FALSE),0) -> 0.000 | J30: =IFERROR(VLOOKUP($A30,FILTRO!$A$5:$P$59,8,FALSE),0) -> 0.000 | K30: =IFERROR(VLOOKUP($A30,FILTRO!$A$5:$P$59,9,FALSE),0) -> 0.000 | L30: =IFERROR(VLOOKUP($A30,FILTRO!$A$5:$P$59,10,FALSE),0) -> 0.000 | M30: =IFERROR(VLOOKUP($A30,FILTRO!$A$5:$P$59,11,FALSE),0) -> 0.000 | N30: =IFERROR(VLOOKUP($A30,FILTRO!$A$5:$P$59,12,FALSE),0) -> 0.000 | O30: =IFERROR(VLOOKUP($A30,FILTRO!$A$5:$P$59,13,FALSE),0) -> 0.000 | P30: =IFERROR(VLOOKUP($A30,FILTRO!$A$5:$P$59,14,FALSE),0) -> 0.000
C31: Subtotal | D31: =SUM(E31:Q31) -> 1979.000 | E31: =SUM(E28:E30) -> 508.500 | F31: =SUM(F28:F30) -> 549.800 | G31: =SUM(G28:G30) -> 920.700
A32: 15900030 | B32: Alergia a la proteína de la leche de vaca | C32: Fórmula Extensamente Hidrolizada (FEH) | D32: =SUM(E32:K32) -> 8470.800 | E32: =IFERROR(VLOOKUP($A32,FILTRO!$A$5:$P$59,3,FALSE),0) -> 208.400 | F32: =IFERROR(VLOOKUP($A32,FILTRO!$A$5:$P$59,4,FALSE),0) -> 567.600 | G32: =IFERROR(VLOOKUP($A32,FILTRO!$A$5:$P$59,5,FALSE),0) -> 5729.200 | H32: =IFERROR(VLOOKUP($A32,FILTRO!$A$5:$P$59,6,FALSE),0) -> 1140.400 | I32: =IFERROR(VLOOKUP($A32,FILTRO!$A$5:$P$59,7,FALSE),0) -> 736.800 | J32: =IFERROR(VLOOKUP($A32,FILTRO!$A$5:$P$59,8,FALSE),0) -> 82.000 | K32: =IFERROR(VLOOKUP($A32,FILTRO!$A$5:$P$59,9,FALSE),0) -> 6.400 | L32: =IFERROR(VLOOKUP($A32,FILTRO!$A$5:$P$59,10,FALSE),0) -> 0.000 | M32: =IFERROR(VLOOKUP($A32,FILTRO!$A$5:$P$59,11,FALSE),0) -> 0.000 | N32: =IFERROR(VLOOKUP($A32,FILTRO!$A$5:$P$59,12,FALSE),0) -> 0.000 | O32: =IFERROR(VLOOKUP($A32,FILTRO!$A$5:$P$59,13,FALSE),0) -> 0.000 | P32: =IFERROR(VLOOKUP($A32,FILTRO!$A$5:$P$59,14,FALSE),0) -> 0.000
A33: 15900040 | C33: Fórmula Aminoacídica (FAA) | D33: =SUM(E33:K33) -> 2340.400 | E33: =IFERROR(VLOOKUP($A33,FILTRO!$A$5:$P$59,3,FALSE),0) -> 102.800 | F33: =IFERROR(VLOOKUP($A33,FILTRO!$A$5:$P$59,4,FALSE),0) -> 422.800 | G33: =IFERROR(VLOOKUP($A33,FILTRO!$A$5:$P$59,5,FALSE),0) -> 989.200 | H33: =IFERROR(VLOOKUP($A33,FILTRO!$A$5:$P$59,6,FALSE),0) -> 634.400 | I33: =IFERROR(VLOOKUP($A33,FILTRO!$A$5:$P$59,7,FALSE),0) -> 152.000 | J33: =IFERROR(VLOOKUP($A33,FILTRO!$A$5:$P$59,8,FALSE),0) -> 26.000 | K33: =IFERROR(VLOOKUP($A33,FILTRO!$A$5:$P$59,9,FALSE),0) -> 13.200 | L33: =IFERROR(VLOOKUP($A33,FILTRO!$A$5:$P$59,10,FALSE),0) -> 0.000 | M33: =IFERROR(VLOOKUP($A33,FILTRO!$A$5:$P$59,11,FALSE),0) -> 0.000 | N33: =IFERROR(VLOOKUP($A33,FILTRO!$A$5:$P$59,12,FALSE),0) -> 0.000 | O33: =IFERROR(VLOOKUP($A33,FILTRO!$A$5:$P$59,13,FALSE),0) -> 0.000 | P33: =IFERROR(VLOOKUP($A33,FILTRO!$A$5:$P$59,14,FALSE),0) -> 0.000
C34: Subtotal | D34: =SUM(E34:Q34) -> 10811.200 | E34: =SUM(E32:E33) -> 311.200 | F34: 990.400 | G34: 6718.400 | H34: 1774.800 | I34: 888.800 | J34: 108.000 | K34: 19.600
B35: Total | D35: =SUM(E35:Q35) -> 320178.800 | E35: =+E19+E27+E31+E34 -> 5057.800 | F35: 13155.600 | G35: 42453.700 | H35: 44695.800 | I35: 38414.800 | J35: 70844.000 | K35: 60152.600 | L35: 20417.0 | M35: 948.0 | N35: 15072.0 | O35: 2900.5 | P35: 6067.0
B37: Sección B: PNAC - Número de personas intrasistema que retiran
B38: Subprogramas | D38: Total | E38: Hombres | F38: Mujeres | G38: Menores a 6 años | N38: Gestantes | P38: Persona que amamanta a hijo/a menor a 12 meses
G39: 0 - 2 meses | H39: 3 - 5 meses | I39: 6 - 11 meses | J39: 12 - 17 meses | K39: 18 - 23 meses | L39: 24 - 47 meses | M39: 48 - 71 meses | N39: Normal, sobrepeso y obesas | O39: Bajo peso | P39: 0 a 5 meses con Lactancia Materna exclusiva | Q39: 0 a 5 meses Lactancia Materna + Fórmula Láctea | R39: 6 a 11 meses Lactancia Materna
A42: 15050100 | B42: Básico | D42: =SUM(G42:R42) -> 156699 | E42: =IFERROR(VLOOKUP($A42,FILTRO!$A$5:$P$59,3,FALSE),0) -> 63096 | F42: =IFERROR(VLOOKUP($A42,FILTRO!$A$5:$P$59,4,FALSE),0) -> 94063 | G42: =IFERROR(VLOOKUP($A42,FILTRO!$A$5:$P$59,5,FALSE),0) -> 1842 | H42: =IFERROR(VLOOKUP($A42,FILTRO!$A$5:$P$59,6,FALSE),0) -> 4159 | I42: =IFERROR(VLOOKUP($A42,FILTRO!$A$5:$P$59,7,FALSE),0) -> 12758 | J42: =IFERROR(VLOOKUP($A42,FILTRO!$A$5:$P$59,8,FALSE),0) -> 20548 | K42: =IFERROR(VLOOKUP($A42,FILTRO!$A$5:$P$59,9,FALSE),0) -> 18226 | L42: =IFERROR(VLOOKUP($A42,FILTRO!$A$5:$P$59,10,FALSE),0) -> 33217 | M42: =IFERROR(VLOOKUP($A42,FILTRO!$A$5:$P$59,11,FALSE),0) -> 29122 | N42: =IFERROR(VLOOKUP($A42,FILTRO!$A$5:$P$59,12,FALSE),0) -> 20414 | O42: =IFERROR(VLOOKUP($A42,FILTRO!$A$5:$P$59,13,FALSE),0) -> 0 | P42: =IFERROR(VLOOKUP($A42,FILTRO!$A$5:$P$59,14,FALSE),0) -> 7546 | Q42: =IFERROR(VLOOKUP($A42,FILTRO!$A$5:$P$59,15,FALSE),0) -> 2850 | R42: =IFERROR(VLOOKUP($A42,FILTRO!$A$5:$P$59,16,FALSE),0) -> 6017 | S42: =AA42&AB42 ->  | AA42: =IF(AF42=1,"* La suma del Total según grupo etario, gestantes y Personas que amamantan no pueden superar al Total por Sexo. ","") ->  | AF42: =IF(SUM(E42:F42)<SUM(G42:M42,N42,P42:R42),1,0) -> 0
A43: 15050200 | B43: Refuerzo | D43: =SUM(G43:R43) -> 3655 | E43: =IFERROR(VLOOKUP($A43,FILTRO!$A$5:$P$59,3,FALSE),0) -> 1863 | F43: =IFERROR(VLOOKUP($A43,FILTRO!$A$5:$P$59,4,FALSE),0) -> 1717 | G43: =IFERROR(VLOOKUP($A43,FILTRO!$A$5:$P$59,5,FALSE),0) -> 62 | H43: =IFERROR(VLOOKUP($A43,FILTRO!$A$5:$P$59,6,FALSE),0) -> 114 | I43: =IFERROR(VLOOKUP($A43,FILTRO!$A$5:$P$59,7,FALSE),0) -> 493 | J43: =IFERROR(VLOOKUP($A43,FILTRO!$A$5:$P$59,8,FALSE),0) -> 456 | K43: =IFERROR(VLOOKUP($A43,FILTRO!$A$5:$P$59,9,FALSE),0) -> 341 | L43: =IFERROR(VLOOKUP($A43,FILTRO!$A$5:$P$59,10,FALSE),0) -> 1098 | M43: =IFERROR(VLOOKUP($A43,FILTRO!$A$5:$P$59,11,FALSE),0) -> 687 | N43: =IFERROR(VLOOKUP($A43,FILTRO!$A$5:$P$59,12,FALSE),0) -> 0 | O43: =IFERROR(VLOOKUP($A43,FILTRO!$A$5:$P$59,13,FALSE),0) -> 317 | P43: =IFERROR(VLOOKUP($A43,FILTRO!$A$5:$P$59,14,FALSE),0) -> 41 | Q43: =IFERROR(VLOOKUP($A43,FILTRO!$A$5:$P$59,15,FALSE),0) -> 24 | R43: =IFERROR(VLOOKUP($A43,FILTRO!$A$5:$P$59,16,FALSE),0) -> 22 | S43: =AA43&AB43 ->  | AA43: =IF(AF43=1,"* La suma del Total según grupo etario, gestantes y Personas que amamantan no pueden superar al Total por Sexo. ","") ->  | AF43: =IF(D43<SUM(G43:M43,O43:R43),1,0) -> 0
A44: 15050500 | B44: Prematuros | D44: =SUM(G44:I44) -> 550 | E44: =IFERROR(VLOOKUP($A44,FILTRO!$A$5:$P$59,3,FALSE),0) -> 278 | F44: =IFERROR(VLOOKUP($A44,FILTRO!$A$5:$P$59,4,FALSE),0) -> 268 | G44: =IFERROR(VLOOKUP($A44,FILTRO!$A$5:$P$59,5,FALSE),0) -> 152 | H44: =IFERROR(VLOOKUP($A44,FILTRO!$A$5:$P$59,6,FALSE),0) -> 148 | I44: =IFERROR(VLOOKUP($A44,FILTRO!$A$5:$P$59,7,FALSE),0) -> 250 | J44: =IFERROR(VLOOKUP($A44,FILTRO!$A$5:$P$59,8,FALSE),0) -> 0 | K44: =IFERROR(VLOOKUP($A44,FILTRO!$A$5:$P$59,9,FALSE),0) -> 0 | L44: =IFERROR(VLOOKUP($A44,FILTRO!$A$5:$P$59,10,FALSE),0) -> 0 | M44: =IFERROR(VLOOKUP($A44,FILTRO!$A$5:$P$59,11,FALSE),0) -> 0 | N44: =IFERROR(VLOOKUP($A44,FILTRO!$A$5:$P$59,12,FALSE),0) -> 0 | O44: =IFERROR(VLOOKUP($A44,FILTRO!$A$5:$P$59,13,FALSE),0) -> 0 | P44: =IFERROR(VLOOKUP($A44,FILTRO!$A$5:$P$59,14,FALSE),0) -> 0 | Q44: =IFERROR(VLOOKUP($A44,FILTRO!$A$5:$P$59,15,FALSE),0) -> 0 | R44: =IFERROR(VLOOKUP($A44,FILTRO!$A$5:$P$59,16,FALSE),0) -> 0 | S44: =AA44&AB44 ->  | AA44: =IF(AF44=1,"* El Total según grupo etario no puede superar al Total por Sexo. ","") ->  | AF44: =IF(D44<SUM(G44:M44),1,0) -> 0
A45: 15900050 | B45: Alergia a la Proteína de la leche de vaca | D45: =SUM(G45:M45) -> 1947 | E45: =IFERROR(VLOOKUP($A45,FILTRO!$A$5:$P$59,3,FALSE),0) -> 1070 | F45: =IFERROR(VLOOKUP($A45,FILTRO!$A$5:$P$59,4,FALSE),0) -> 831 | G45: =IFERROR(VLOOKUP($A45,FILTRO!$A$5:$P$59,5,FALSE),0) -> 111 | H45: =IFERROR(VLOOKUP($A45,FILTRO!$A$5:$P$59,6,FALSE),0) -> 282 | I45: =IFERROR(VLOOKUP($A45,FILTRO!$A$5:$P$59,7,FALSE),0) -> 762 | J45: =IFERROR(VLOOKUP($A45,FILTRO!$A$5:$P$59,8,FALSE),0) -> 488 | K45: =IFERROR(VLOOKUP($A45,FILTRO!$A$5:$P$59,9,FALSE),0) -> 260 | L45: =IFERROR(VLOOKUP($A45,FILTRO!$A$5:$P$59,10,FALSE),0) -> 40 | M45: =IFERROR(VLOOKUP($A45,FILTRO!$A$5:$P$59,11,FALSE),0) -> 4 | N45: =IFERROR(VLOOKUP($A45,FILTRO!$A$5:$P$59,12,FALSE),0) -> 0 | O45: =IFERROR(VLOOKUP($A45,FILTRO!$A$5:$P$59,13,FALSE),0) -> 0 | P45: =IFERROR(VLOOKUP($A45,FILTRO!$A$5:$P$59,14,FALSE),0) -> 0 | Q45: =IFERROR(VLOOKUP($A45,FILTRO!$A$5:$P$59,15,FALSE),0) -> 0 | R45: =IFERROR(VLOOKUP($A45,FILTRO!$A$5:$P$59,16,FALSE),0) -> 0 | S45: =AA45&AB45 ->  | AA45: =IF(AF45=1,"* El Total según grupo etario no puede superar al Total por Sexo. ","") ->  | AF45: =IF(D45<SUM(G45:M45),1,0) -> 0
B46: TOTAL | D46: =SUM(E46:F46) -> 163186 | E46: =SUM(E42:E45) -> 66307 | F46: 96879 | G46: 2167 | H46: 4703 | I46: 14263 | J46: 21492 | K46: 18827 | L46: 34355 | M46: 29813 | N46: 20414 | O46: 317 | P46: 7587 | Q46: 2874 | R46: 6039
A47: 15900060 | B47: Programas Sociales (*) | D47: =SUM(G47:R47) -> 0 | E47: =IFERROR(VLOOKUP($A47,FILTRO!$A$5:$P$59,3,FALSE),0) -> 0 | F47: =IFERROR(VLOOKUP($A47,FILTRO!$A$5:$P$59,4,FALSE),0) -> 0 | G47: =IFERROR(VLOOKUP($A47,FILTRO!$A$5:$P$59,5,FALSE),0) -> 0 | H47: =IFERROR(VLOOKUP($A47,FILTRO!$A$5:$P$59,6,FALSE),0) -> 0 | I47: =IFERROR(VLOOKUP($A47,FILTRO!$A$5:$P$59,7,FALSE),0) -> 0 | J47: =IFERROR(VLOOKUP($A47,FILTRO!$A$5:$P$59,8,FALSE),0) -> 0 | K47: =IFERROR(VLOOKUP($A47,FILTRO!$A$5:$P$59,9,FALSE),0) -> 0 | L47: =IFERROR(VLOOKUP($A47,FILTRO!$A$5:$P$59,10,FALSE),0) -> 0 | M47: =IFERROR(VLOOKUP($A47,FILTRO!$A$5:$P$59,11,FALSE),0) -> 0 | N47: =IFERROR(VLOOKUP($A47,FILTRO!$A$5:$P$59,12,FALSE),0) -> 0 | O47: =IFERROR(VLOOKUP($A47,FILTRO!$A$5:$P$59,13,FALSE),0) -> 0 | P47: =IFERROR(VLOOKUP($A47,FILTRO!$A$5:$P$59,14,FALSE),0) -> 0 | Q47: =IFERROR(VLOOKUP($A47,FILTRO!$A$5:$P$59,15,FALSE),0) -> 0 | R47: =IFERROR(VLOOKUP($A47,FILTRO!$A$5:$P$59,16,FALSE),0) -> 0 | S47: =AA47&AB47 ->  | AA47: =IF(AF47=1,"* La suma del Total según grupo etario, gestantes y Personas que amamantan no pueden superar al Total por Sexo. ","") ->  | AB47: =IF(AG47=1,"* Compruebe que lo ingresado en Programas Sociales no supere al Total registrado en los subprogramas. ","") ->  | AC47: =IF(AH47=1,"* El Total registrado en Programas Sociales no puede ser mayor al Total registrado en los subprogramas. ","") ->  | AF47: =IF(SUM(E47:F47)<SUM(G47:R47),1,0) -> 0 | AG47: =IF(OR(E47>E46,F47>F46,G47>G46,H47>H46,I47>I46,J47>J46,K47>K46,L47>L46,M47>M46,N47>N46,O47>O46,P47>P46,Q47>Q46,R47>R46),1,0) -> 0 | AH47: =IF(D47>D46,1,0) -> 0
B48: Nota: (*) Información referencial, ya incluida en los subprogramas.
F49: =E45:R45 -> 831
B50: Sección C: PNAC: Cantidad distribuida (kg) a personas extrasistema (incluye modalidad libre elección)
B51: Subprogramas | C51: Productos | D51: Total | E51: Menores a 6 años | L51: Gestantes | N51: Persona que amamanta a hijo/a menor a 12 meses
E52: 0 - 2 meses | F52: 3 - 5 meses | G52: 6 - 11 meses | H52: 12 - 17 meses | I52: 18 - 23 meses | J52: 24 - 47 meses | K52: 48 - 71 meses | L52: Normal, sobrepeso y obesas | M52: Bajo peso | N52: 0 a 5 meses con Lactancia Materna exclusiva | O52: 0 a 5 meses Lactancia Materna + Fórmula Láctea | P52: 6 a 11 meses Lactancia Materna
A55: 15020100 | B55: Básico | C55: Leche Purita Fortificada (LPF) | D55: =SUM(E55:P55) -> 564 | E55: =IFERROR(VLOOKUP($A55,FILTRO!$A$5:$P$59,3,FALSE),0) -> 8 | F55: =IFERROR(VLOOKUP($A55,FILTRO!$A$5:$P$59,4,FALSE),0) -> 32 | G55: =IFERROR(VLOOKUP($A55,FILTRO!$A$5:$P$59,5,FALSE),0) -> 134 | H55: =IFERROR(VLOOKUP($A55,FILTRO!$A$5:$P$59,6,FALSE),0) -> 314 | I55: =IFERROR(VLOOKUP($A55,FILTRO!$A$5:$P$59,7,FALSE),0) -> 74 | J55: =IFERROR(VLOOKUP($A55,FILTRO!$A$5:$P$59,8,FALSE),0) -> 0 | K55: =IFERROR(VLOOKUP($A55,FILTRO!$A$5:$P$59,9,FALSE),0) -> 0 | L55: =IFERROR(VLOOKUP($A55,FILTRO!$A$5:$P$59,10,FALSE),0) -> 0 | M55: =IFERROR(VLOOKUP($A55,FILTRO!$A$5:$P$59,11,FALSE),0) -> 0 | N55: =IFERROR(VLOOKUP($A55,FILTRO!$A$5:$P$59,12,FALSE),0) -> 0 | O55: =IFERROR(VLOOKUP($A55,FILTRO!$A$5:$P$59,13,FALSE),0) -> 2 | P55: =IFERROR(VLOOKUP($A55,FILTRO!$A$5:$P$59,14,FALSE),0) -> 0 | S55: =AA55&AB55 -> 
A56: 15080018 | C56: Purita +Pro 1 | D56: =SUM(E56:P56) -> 1,525 | E56: =IFERROR(VLOOKUP($A56,FILTRO!$A$5:$P$59,3,FALSE),0) -> 33 | F56: =IFERROR(VLOOKUP($A56,FILTRO!$A$5:$P$59,4,FALSE),0) -> 74 | G56: =IFERROR(VLOOKUP($A56,FILTRO!$A$5:$P$59,5,FALSE),0) -> 384 | H56: =IFERROR(VLOOKUP($A56,FILTRO!$A$5:$P$59,6,FALSE),0) -> 558 | I56: =IFERROR(VLOOKUP($A56,FILTRO!$A$5:$P$59,7,FALSE),0) -> 476 | J56: =IFERROR(VLOOKUP($A56,FILTRO!$A$5:$P$59,8,FALSE),0) -> 0 | K56: =IFERROR(VLOOKUP($A56,FILTRO!$A$5:$P$59,9,FALSE),0) -> 0 | L56: =IFERROR(VLOOKUP($A56,FILTRO!$A$5:$P$59,10,FALSE),0) -> 0 | M56: =IFERROR(VLOOKUP($A56,FILTRO!$A$5:$P$59,11,FALSE),0) -> 0 | N56: =IFERROR(VLOOKUP($A56,FILTRO!$A$5:$P$59,12,FALSE),0) -> 0 | O56: =IFERROR(VLOOKUP($A56,FILTRO!$A$5:$P$59,13,FALSE),0) -> 0 | P56: =IFERROR(VLOOKUP($A56,FILTRO!$A$5:$P$59,14,FALSE),0) -> 0
A57: 15020200 | C57: Purita Cereal (PC) | D57: =SUM(I57:K57) -> 1,307 | E57: =IFERROR(VLOOKUP($A57,FILTRO!$A$5:$P$59,3,FALSE),0) -> 0 | F57: =IFERROR(VLOOKUP($A57,FILTRO!$A$5:$P$59,4,FALSE),0) -> 0 | G57: =IFERROR(VLOOKUP($A57,FILTRO!$A$5:$P$59,5,FALSE),0) -> 0 | H57: =IFERROR(VLOOKUP($A57,FILTRO!$A$5:$P$59,6,FALSE),0) -> 0 | I57: =IFERROR(VLOOKUP($A57,FILTRO!$A$5:$P$59,7,FALSE),0) -> 92 | J57: =IFERROR(VLOOKUP($A57,FILTRO!$A$5:$P$59,8,FALSE),0) -> 707 | K57: =IFERROR(VLOOKUP($A57,FILTRO!$A$5:$P$59,9,FALSE),0) -> 508 | L57: =IFERROR(VLOOKUP($A57,FILTRO!$A$5:$P$59,10,FALSE),0) -> 0 | M57: =IFERROR(VLOOKUP($A57,FILTRO!$A$5:$P$59,11,FALSE),0) -> 0 | N57: =IFERROR(VLOOKUP($A57,FILTRO!$A$5:$P$59,12,FALSE),0) -> 0 | O57: =IFERROR(VLOOKUP($A57,FILTRO!$A$5:$P$59,13,FALSE),0) -> 0 | P57: =IFERROR(VLOOKUP($A57,FILTRO!$A$5:$P$59,14,FALSE),0) -> 0
A58: 15080019 | C58: Purita +Pro 2 | D58: =SUM(J58:K58) -> 820 | E58: =IFERROR(VLOOKUP($A58,FILTRO!$A$5:$P$59,3,FALSE),0) -> 0 | F58: =IFERROR(VLOOKUP($A58,FILTRO!$A$5:$P$59,4,FALSE),0) -> 0 | G58: =IFERROR(VLOOKUP($A58,FILTRO!$A$5:$P$59,5,FALSE),0) -> 0 | H58: =IFERROR(VLOOKUP($A58,FILTRO!$A$5:$P$59,6,FALSE),0) -> 0 | I58: =IFERROR(VLOOKUP($A58,FILTRO!$A$5:$P$59,7,FALSE),0) -> 0 | J58: =IFERROR(VLOOKUP($A58,FILTRO!$A$5:$P$59,8,FALSE),0) -> 494 | K58: =IFERROR(VLOOKUP($A58,FILTRO!$A$5:$P$59,9,FALSE),0) -> 326 | L58: =IFERROR(VLOOKUP($A58,FILTRO!$A$5:$P$59,10,FALSE),0) -> 0 | M58: =IFERROR(VLOOKUP($A58,FILTRO!$A$5:$P$59,11,FALSE),0) -> 0 | N58: =IFERROR(VLOOKUP($A58,FILTRO!$A$5:$P$59,12,FALSE),0) -> 0 | O58: =IFERROR(VLOOKUP($A58,FILTRO!$A$5:$P$59,13,FALSE),0) -> 0 | P58: =IFERROR(VLOOKUP($A58,FILTRO!$A$5:$P$59,14,FALSE),0) -> 0
A59: 15080010 | C59: Purita Mamá (PM) | D59: =SUM(N59:P59)+L59 -> 120 | E59: =IFERROR(VLOOKUP($A59,FILTRO!$A$5:$P$59,3,FALSE),0) -> 0 | F59: =IFERROR(VLOOKUP($A59,FILTRO!$A$5:$P$59,4,FALSE),0) -> 0 | G59: =IFERROR(VLOOKUP($A59,FILTRO!$A$5:$P$59,5,FALSE),0) -> 0 | H59: =IFERROR(VLOOKUP($A59,FILTRO!$A$5:$P$59,6,FALSE),0) -> 0 | I59: =IFERROR(VLOOKUP($A59,FILTRO!$A$5:$P$59,7,FALSE),0) -> 0 | J59: =IFERROR(VLOOKUP($A59,FILTRO!$A$5:$P$59,8,FALSE),0) -> 0 | K59: =IFERROR(VLOOKUP($A59,FILTRO!$A$5:$P$59,9,FALSE),0) -> 0 | L59: =IFERROR(VLOOKUP($A59,FILTRO!$A$5:$P$59,10,FALSE),0) -> 38 | M59: =IFERROR(VLOOKUP($A59,FILTRO!$A$5:$P$59,11,FALSE),0) -> 0 | N59: =IFERROR(VLOOKUP($A59,FILTRO!$A$5:$P$59,12,FALSE),0) -> 58 | O59: =IFERROR(VLOOKUP($A59,FILTRO!$A$5:$P$59,13,FALSE),0) -> 20 | P59: =IFERROR(VLOOKUP($A59,FILTRO!$A$5:$P$59,14,FALSE),0) -> 4 | AB59: =IF(AND(SUM(L55,L56,L59)<>0,N84=""),"* No olvide ingresar el Nº de personas que retiran alimento de la sección D en el grupo de Gestantes Normal, Sobrepeso y Obesas.","") ->  | AC59: =IF(AND(SUM(N56,N55,N59)<>0,P84=""),"* No olvide ingresar el Nº de personas que retiran alimento de la sección D en el grupo de Madre con hijo/a menor a 6 meses con Lactancia materna exclusiva.","") ->  | AD59: =IF(AND(SUM(O57,O56,O59)<>0,Q84=""),"* No olvide ingresar el Nº de personas que retiran alimento de la sección D en el grupo de Madre con hijo/a menor a 6 meses con Lactancia materna predominante.","") ->  | AE59: =IF(AND(SUM(P57,P56,P59)<>0,R84=""),"No olvide ingresar el Nº de personas que retiran alimento de la sección D en el grupo de Madre con hijo/a menor a 6 meses con Fórmula predominantes o exclusiva.","") -> 
A60: 15900070 | C60: Fórmula de Inicio (FI) | D60: =SUM(E60:G60) -> 3 | E60: =IFERROR(VLOOKUP($A60,FILTRO!$A$5:$P$59,3,FALSE),0) -> 0 | F60: =IFERROR(VLOOKUP($A60,FILTRO!$A$5:$P$59,4,FALSE),0) -> 0 | G60: =IFERROR(VLOOKUP($A60,FILTRO!$A$5:$P$59,5,FALSE),0) -> 3 | H60: =IFERROR(VLOOKUP($A60,FILTRO!$A$5:$P$59,6,FALSE),0) -> 0 | I60: =IFERROR(VLOOKUP($A60,FILTRO!$A$5:$P$59,7,FALSE),0) -> 0 | J60: =IFERROR(VLOOKUP($A60,FILTRO!$A$5:$P$59,8,FALSE),0) -> 0 | K60: =IFERROR(VLOOKUP($A60,FILTRO!$A$5:$P$59,9,FALSE),0) -> 0 | L60: =IFERROR(VLOOKUP($A60,FILTRO!$A$5:$P$59,10,FALSE),0) -> 0 | M60: =IFERROR(VLOOKUP($A60,FILTRO!$A$5:$P$59,11,FALSE),0) -> 0 | N60: =IFERROR(VLOOKUP($A60,FILTRO!$A$5:$P$59,12,FALSE),0) -> 0 | O60: =IFERROR(VLOOKUP($A60,FILTRO!$A$5:$P$59,13,FALSE),0) -> 0 | P60: =IFERROR(VLOOKUP($A60,FILTRO!$A$5:$P$59,14,FALSE),0) -> 0
C61: Subtotal | D61: =SUM(E61:P61) -> 4,339 | E61: =SUM(E55:E60) -> 41.000 | F61: =SUM(F55:F60) -> 106.000 | G61: =SUM(G55:G60) -> 521.200 | H61: =SUM(H55:H56) -> 872 | I61: =SUM(I55:I57) -> 642 | J61: =SUM(J55:J58) -> 1201 | K61: =SUM(K55:K58) -> 834 | L61: =SUM(L55:L60) -> 38.0 | M61: =SUM(M55:M56) -> 0 | N61: =SUM(N55:N60) -> 58.0 | O61: =SUM(O55:O60) -> 22.0 | P61: =SUM(P55:P60) -> 4.0
A62: 15020300 | B62: Refuerzo | C62: Leche Purita Fortificada (LPF) | D62: =SUM(E62:P62) -> 2 | E62: =IFERROR(VLOOKUP($A62,FILTRO!$A$5:$P$59,3,FALSE),0) -> 0 | F62: =IFERROR(VLOOKUP($A62,FILTRO!$A$5:$P$59,4,FALSE),0) -> 0 | G62: =IFERROR(VLOOKUP($A62,FILTRO!$A$5:$P$59,5,FALSE),0) -> 0 | H62: =IFERROR(VLOOKUP($A62,FILTRO!$A$5:$P$59,6,FALSE),0) -> 0 | I62: =IFERROR(VLOOKUP($A62,FILTRO!$A$5:$P$59,7,FALSE),0) -> 2 | J62: =IFERROR(VLOOKUP($A62,FILTRO!$A$5:$P$59,8,FALSE),0) -> 0 | K62: =IFERROR(VLOOKUP($A62,FILTRO!$A$5:$P$59,9,FALSE),0) -> 0 | L62: =IFERROR(VLOOKUP($A62,FILTRO!$A$5:$P$59,10,FALSE),0) -> 0 | M62: =IFERROR(VLOOKUP($A62,FILTRO!$A$5:$P$59,11,FALSE),0) -> 0 | N62: =IFERROR(VLOOKUP($A62,FILTRO!$A$5:$P$59,12,FALSE),0) -> 0 | O62: =IFERROR(VLOOKUP($A62,FILTRO!$A$5:$P$59,13,FALSE),0) -> 0 | P62: =IFERROR(VLOOKUP($A62,FILTRO!$A$5:$P$59,14,FALSE),0) -> 0
A63: 15080020 | C63: Purita +Pro 1 | D63: =SUM(E63:P63) -> 10 | E63: =IFERROR(VLOOKUP($A63,FILTRO!$A$5:$P$59,3,FALSE),0) -> 4 | F63: =IFERROR(VLOOKUP($A63,FILTRO!$A$5:$P$59,4,FALSE),0) -> 0 | G63: =IFERROR(VLOOKUP($A63,FILTRO!$A$5:$P$59,5,FALSE),0) -> 0 | H63: =IFERROR(VLOOKUP($A63,FILTRO!$A$5:$P$59,6,FALSE),0) -> 2 | I63: =IFERROR(VLOOKUP($A63,FILTRO!$A$5:$P$59,7,FALSE),0) -> 0 | J63: =IFERROR(VLOOKUP($A63,FILTRO!$A$5:$P$59,8,FALSE),0) -> 4 | K63: =IFERROR(VLOOKUP($A63,FILTRO!$A$5:$P$59,9,FALSE),0) -> 0 | L63: =IFERROR(VLOOKUP($A63,FILTRO!$A$5:$P$59,10,FALSE),0) -> 0 | M63: =IFERROR(VLOOKUP($A63,FILTRO!$A$5:$P$59,11,FALSE),0) -> 0 | N63: =IFERROR(VLOOKUP($A63,FILTRO!$A$5:$P$59,12,FALSE),0) -> 0 | O63: =IFERROR(VLOOKUP($A63,FILTRO!$A$5:$P$59,13,FALSE),0) -> 0 | P63: =IFERROR(VLOOKUP($A63,FILTRO!$A$5:$P$59,14,FALSE),0) -> 0
A64: 15020400 | C64: Purita Cereal (PC) | D64: =SUM(I64:K64) -> 26 | E64: =IFERROR(VLOOKUP($A64,FILTRO!$A$5:$P$59,3,FALSE),0) -> 0 | F64: =IFERROR(VLOOKUP($A64,FILTRO!$A$5:$P$59,4,FALSE),0) -> 0 | G64: =IFERROR(VLOOKUP($A64,FILTRO!$A$5:$P$59,5,FALSE),0) -> 0 | H64: =IFERROR(VLOOKUP($A64,FILTRO!$A$5:$P$59,6,FALSE),0) -> 0 | I64: =IFERROR(VLOOKUP($A64,FILTRO!$A$5:$P$59,7,FALSE),0) -> 0 | J64: =IFERROR(VLOOKUP($A64,FILTRO!$A$5:$P$59,8,FALSE),0) -> 20 | K64: =IFERROR(VLOOKUP($A64,FILTRO!$A$5:$P$59,9,FALSE),0) -> 6 | L64: =IFERROR(VLOOKUP($A64,FILTRO!$A$5:$P$59,10,FALSE),0) -> 0 | M64: =IFERROR(VLOOKUP($A64,FILTRO!$A$5:$P$59,11,FALSE),0) -> 0 | N64: =IFERROR(VLOOKUP($A64,FILTRO!$A$5:$P$59,12,FALSE),0) -> 0 | O64: =IFERROR(VLOOKUP($A64,FILTRO!$A$5:$P$59,13,FALSE),0) -> 0 | P64: =IFERROR(VLOOKUP($A64,FILTRO!$A$5:$P$59,14,FALSE),0) -> 0
A65: 15080021 | C65: Purita +Pro 2 | D65: =SUM(J65:K65) -> 0 | E65: =IFERROR(VLOOKUP($A65,FILTRO!$A$5:$P$59,3,FALSE),0) -> 0 | F65: =IFERROR(VLOOKUP($A65,FILTRO!$A$5:$P$59,4,FALSE),0) -> 0 | G65: =IFERROR(VLOOKUP($A65,FILTRO!$A$5:$P$59,5,FALSE),0) -> 0 | H65: =IFERROR(VLOOKUP($A65,FILTRO!$A$5:$P$59,6,FALSE),0) -> 0 | I65: =IFERROR(VLOOKUP($A65,FILTRO!$A$5:$P$59,7,FALSE),0) -> 0 | J65: =IFERROR(VLOOKUP($A65,FILTRO!$A$5:$P$59,8,FALSE),0) -> 0 | K65: =IFERROR(VLOOKUP($A65,FILTRO!$A$5:$P$59,9,FALSE),0) -> 0 | L65: =IFERROR(VLOOKUP($A65,FILTRO!$A$5:$P$59,10,FALSE),0) -> 0 | M65: =IFERROR(VLOOKUP($A65,FILTRO!$A$5:$P$59,11,FALSE),0) -> 0 | N65: =IFERROR(VLOOKUP($A65,FILTRO!$A$5:$P$59,12,FALSE),0) -> 0 | O65: =IFERROR(VLOOKUP($A65,FILTRO!$A$5:$P$59,13,FALSE),0) -> 0 | P65: =IFERROR(VLOOKUP($A65,FILTRO!$A$5:$P$59,14,FALSE),0) -> 0
A66: 15020500 | C66: Mi Sopita (MS) | D66: =SUM(F66:K66) -> 22 | E66: =IFERROR(VLOOKUP($A66,FILTRO!$A$5:$P$59,3,FALSE),0) -> 0 | F66: =IFERROR(VLOOKUP($A66,FILTRO!$A$5:$P$59,4,FALSE),0) -> 0 | G66: =IFERROR(VLOOKUP($A66,FILTRO!$A$5:$P$59,5,FALSE),0) -> 0 | H66: =IFERROR(VLOOKUP($A66,FILTRO!$A$5:$P$59,6,FALSE),0) -> 2 | I66: =IFERROR(VLOOKUP($A66,FILTRO!$A$5:$P$59,7,FALSE),0) -> 0 | J66: =IFERROR(VLOOKUP($A66,FILTRO!$A$5:$P$59,8,FALSE),0) -> 18 | K66: =IFERROR(VLOOKUP($A66,FILTRO!$A$5:$P$59,9,FALSE),0) -> 2 | L66: =IFERROR(VLOOKUP($A66,FILTRO!$A$5:$P$59,10,FALSE),0) -> 0 | M66: =IFERROR(VLOOKUP($A66,FILTRO!$A$5:$P$59,11,FALSE),0) -> 0 | N66: =IFERROR(VLOOKUP($A66,FILTRO!$A$5:$P$59,12,FALSE),0) -> 0 | O66: =IFERROR(VLOOKUP($A66,FILTRO!$A$5:$P$59,13,FALSE),0) -> 0 | P66: =IFERROR(VLOOKUP($A66,FILTRO!$A$5:$P$59,14,FALSE),0) -> 0
A67: 15080011 | C67: Purita Mamá (PM) | D67: =SUM(M67:P67) -> 3 | E67: =IFERROR(VLOOKUP($A67,FILTRO!$A$5:$P$59,3,FALSE),0) -> 0 | F67: =IFERROR(VLOOKUP($A67,FILTRO!$A$5:$P$59,4,FALSE),0) -> 0 | G67: =IFERROR(VLOOKUP($A67,FILTRO!$A$5:$P$59,5,FALSE),0) -> 0 | H67: =IFERROR(VLOOKUP($A67,FILTRO!$A$5:$P$59,6,FALSE),0) -> 0 | I67: =IFERROR(VLOOKUP($A67,FILTRO!$A$5:$P$59,7,FALSE),0) -> 0 | J67: =IFERROR(VLOOKUP($A67,FILTRO!$A$5:$P$59,8,FALSE),0) -> 0 | K67: =IFERROR(VLOOKUP($A67,FILTRO!$A$5:$P$59,9,FALSE),0) -> 0 | L67: =IFERROR(VLOOKUP($A67,FILTRO!$A$5:$P$59,10,FALSE),0) -> 0 | M67: =IFERROR(VLOOKUP($A67,FILTRO!$A$5:$P$59,11,FALSE),0) -> 1 | N67: =IFERROR(VLOOKUP($A67,FILTRO!$A$5:$P$59,12,FALSE),0) -> 2 | O67: =IFERROR(VLOOKUP($A67,FILTRO!$A$5:$P$59,13,FALSE),0) -> 0 | P67: =IFERROR(VLOOKUP($A67,FILTRO!$A$5:$P$59,14,FALSE),0) -> 0
A68: 15900080 | C68: Fórmula de Inicio (FI) | D68: =SUM(E68:G68) -> 0 | E68: =IFERROR(VLOOKUP($A68,FILTRO!$A$5:$P$59,3,FALSE),0) -> 0 | F68: =IFERROR(VLOOKUP($A68,FILTRO!$A$5:$P$59,4,FALSE),0) -> 0 | G68: =IFERROR(VLOOKUP($A68,FILTRO!$A$5:$P$59,5,FALSE),0) -> 0 | H68: =IFERROR(VLOOKUP($A68,FILTRO!$A$5:$P$59,6,FALSE),0) -> 0 | I68: =IFERROR(VLOOKUP($A68,FILTRO!$A$5:$P$59,7,FALSE),0) -> 0 | J68: =IFERROR(VLOOKUP($A68,FILTRO!$A$5:$P$59,8,FALSE),0) -> 0 | K68: =IFERROR(VLOOKUP($A68,FILTRO!$A$5:$P$59,9,FALSE),0) -> 0 | L68: =IFERROR(VLOOKUP($A68,FILTRO!$A$5:$P$59,10,FALSE),0) -> 0 | M68: =IFERROR(VLOOKUP($A68,FILTRO!$A$5:$P$59,11,FALSE),0) -> 0 | N68: =IFERROR(VLOOKUP($A68,FILTRO!$A$5:$P$59,12,FALSE),0) -> 0 | O68: =IFERROR(VLOOKUP($A68,FILTRO!$A$5:$P$59,13,FALSE),0) -> 0 | P68: =IFERROR(VLOOKUP($A68,FILTRO!$A$5:$P$59,14,FALSE),0) -> 0
C69: Subtotal | D69: =SUM(E69:P69) -> 63 | E69: =SUM(E62:E68) -> 4.000 | F69: =SUM(F62:F68) -> 0.000 | G69: =SUM(G62:G68) -> 0.000 | H69: =SUM(H62:H66) -> 4 | I69: =SUM(I62:I66) -> 2 | J69: =SUM(J62:J66) -> 42 | K69: =SUM(K62:K66) -> 8 | L69: =SUM(L62:L63) -> 0 | M69: =SUM(M62:M68) -> 1.0 | N69: =SUM(N62:N68) -> 2.0 | O69: =SUM(O62:O68) -> 0.0 | P69: =SUM(P62:P68) -> 0.0
A70: 15040100 | B70: Prematuros | C70: Fórmula de Prematuros (FP) | D70: =SUM(E70:G70) -> 96 | E70: =IFERROR(VLOOKUP($A70,FILTRO!$A$5:$P$59,3,FALSE),0) -> 38.800 | F70: =IFERROR(VLOOKUP($A70,FILTRO!$A$5:$P$59,4,FALSE),0) -> 44.800 | G70: =IFERROR(VLOOKUP($A70,FILTRO!$A$5:$P$59,5,FALSE),0) -> 12.800 | H70: =IFERROR(VLOOKUP($A70,FILTRO!$A$5:$P$59,6,FALSE),0) -> 0.000 | I70: =IFERROR(VLOOKUP($A70,FILTRO!$A$5:$P$59,7,FALSE),0) -> 0.000 | J70: =IFERROR(VLOOKUP($A70,FILTRO!$A$5:$P$59,8,FALSE),0) -> 0.000 | K70: =IFERROR(VLOOKUP($A70,FILTRO!$A$5:$P$59,9,FALSE),0) -> 0.000 | L70: =IFERROR(VLOOKUP($A70,FILTRO!$A$5:$P$59,10,FALSE),0) -> 0.000 | M70: =IFERROR(VLOOKUP($A70,FILTRO!$A$5:$P$59,11,FALSE),0) -> 0.000 | N70: =IFERROR(VLOOKUP($A70,FILTRO!$A$5:$P$59,12,FALSE),0) -> 0.000 | O70: =IFERROR(VLOOKUP($A70,FILTRO!$A$5:$P$59,13,FALSE),0) -> 0.000 | P70: =IFERROR(VLOOKUP($A70,FILTRO!$A$5:$P$59,14,FALSE),0) -> 0.000
A71: 15901600 | C71: Fórmula de Incio (FI) | D71: =SUM(E71:G71) -> 0 | E71: =IFERROR(VLOOKUP($A71,FILTRO!$A$5:$P$59,3,FALSE),0) -> 0.000 | F71: =IFERROR(VLOOKUP($A71,FILTRO!$A$5:$P$59,4,FALSE),0) -> 0.000 | G71: =IFERROR(VLOOKUP($A71,FILTRO!$A$5:$P$59,5,FALSE),0) -> 0.000 | H71: =IFERROR(VLOOKUP($A71,FILTRO!$A$5:$P$59,6,FALSE),0) -> 0.000 | I71: =IFERROR(VLOOKUP($A71,FILTRO!$A$5:$P$59,7,FALSE),0) -> 0.000 | J71: =IFERROR(VLOOKUP($A71,FILTRO!$A$5:$P$59,8,FALSE),0) -> 0.000 | K71: =IFERROR(VLOOKUP($A71,FILTRO!$A$5:$P$59,9,FALSE),0) -> 0.000 | L71: =IFERROR(VLOOKUP($A71,FILTRO!$A$5:$P$59,10,FALSE),0) -> 0.000 | M71: =IFERROR(VLOOKUP($A71,FILTRO!$A$5:$P$59,11,FALSE),0) -> 0.000 | N71: =IFERROR(VLOOKUP($A71,FILTRO!$A$5:$P$59,12,FALSE),0) -> 0.000 | O71: =IFERROR(VLOOKUP($A71,FILTRO!$A$5:$P$59,13,FALSE),0) -> 0.000 | P71: =IFERROR(VLOOKUP($A71,FILTRO!$A$5:$P$59,14,FALSE),0) -> 0.000
A72: 15080013 | C72: Mi Sopita (MS) | D72: =SUM(F72:G72) -> 0 | E72: =IFERROR(VLOOKUP($A72,FILTRO!$A$5:$P$59,3,FALSE),0) -> 0.000 | F72: =IFERROR(VLOOKUP($A72,FILTRO!$A$5:$P$59,4,FALSE),0) -> 0.000 | G72: =IFERROR(VLOOKUP($A72,FILTRO!$A$5:$P$59,5,FALSE),0) -> 0.000 | H72: =IFERROR(VLOOKUP($A72,FILTRO!$A$5:$P$59,6,FALSE),0) -> 0.000 | I72: =IFERROR(VLOOKUP($A72,FILTRO!$A$5:$P$59,7,FALSE),0) -> 0.000 | J72: =IFERROR(VLOOKUP($A72,FILTRO!$A$5:$P$59,8,FALSE),0) -> 0.000 | K72: =IFERROR(VLOOKUP($A72,FILTRO!$A$5:$P$59,9,FALSE),0) -> 0.000 | L72: =IFERROR(VLOOKUP($A72,FILTRO!$A$5:$P$59,10,FALSE),0) -> 0.000 | M72: =IFERROR(VLOOKUP($A72,FILTRO!$A$5:$P$59,11,FALSE),0) -> 0.000 | N72: =IFERROR(VLOOKUP($A72,FILTRO!$A$5:$P$59,12,FALSE),0) -> 0.000 | O72: =IFERROR(VLOOKUP($A72,FILTRO!$A$5:$P$59,13,FALSE),0) -> 0.000 | P72: =IFERROR(VLOOKUP($A72,FILTRO!$A$5:$P$59,14,FALSE),0) -> 0.000
C73: Subtotal | D73: =SUM(E73:P73) -> 96.400 | E73: =SUM(E70:E72) -> 38.800 | F73: =SUM(F70:F72) -> 44.800 | G73: =SUM(G70:G72) -> 12.800
A74: 15901200 | B74: Alergia a la proteína de la leche de vaca | C74: Fórmula Extensamente Hidrolizada (FEH) | D74: =SUM(E74:K74) -> 1589.600 | E74: =IFERROR(VLOOKUP($A74,FILTRO!$A$5:$P$59,3,FALSE),0) -> 61.200 | F74: =IFERROR(VLOOKUP($A74,FILTRO!$A$5:$P$59,4,FALSE),0) -> 150.400 | G74: =IFERROR(VLOOKUP($A74,FILTRO!$A$5:$P$59,5,FALSE),0) -> 641.600 | H74: =IFERROR(VLOOKUP($A74,FILTRO!$A$5:$P$59,6,FALSE),0) -> 457.600 | I74: =IFERROR(VLOOKUP($A74,FILTRO!$A$5:$P$59,7,FALSE),0) -> 275.600 | J74: =IFERROR(VLOOKUP($A74,FILTRO!$A$5:$P$59,8,FALSE),0) -> 3.200 | K74: =IFERROR(VLOOKUP($A74,FILTRO!$A$5:$P$59,9,FALSE),0) -> 0.000 | L74: =IFERROR(VLOOKUP($A74,FILTRO!$A$5:$P$59,10,FALSE),0) -> 0 | M74: =IFERROR(VLOOKUP($A74,FILTRO!$A$5:$P$59,11,FALSE),0) -> 0 | N74: =IFERROR(VLOOKUP($A74,FILTRO!$A$5:$P$59,12,FALSE),0) -> 0 | O74: =IFERROR(VLOOKUP($A74,FILTRO!$A$5:$P$59,13,FALSE),0) -> 0 | P74: =IFERROR(VLOOKUP($A74,FILTRO!$A$5:$P$59,14,FALSE),0) -> 0
A75: 15901300 | C75: Fórmula Aminoacídica (FAA) | D75: =SUM(E75:K75) -> 786.400 | E75: =IFERROR(VLOOKUP($A75,FILTRO!$A$5:$P$59,3,FALSE),0) -> 44.000 | F75: =IFERROR(VLOOKUP($A75,FILTRO!$A$5:$P$59,4,FALSE),0) -> 92.800 | G75: =IFERROR(VLOOKUP($A75,FILTRO!$A$5:$P$59,5,FALSE),0) -> 362.800 | H75: =IFERROR(VLOOKUP($A75,FILTRO!$A$5:$P$59,6,FALSE),0) -> 180.800 | I75: =IFERROR(VLOOKUP($A75,FILTRO!$A$5:$P$59,7,FALSE),0) -> 101.200 | J75: =IFERROR(VLOOKUP($A75,FILTRO!$A$5:$P$59,8,FALSE),0) -> 4.800 | K75: =IFERROR(VLOOKUP($A75,FILTRO!$A$5:$P$59,9,FALSE),0) -> 0.000 | L75: =IFERROR(VLOOKUP($A75,FILTRO!$A$5:$P$59,10,FALSE),0) -> 0 | M75: =IFERROR(VLOOKUP($A75,FILTRO!$A$5:$P$59,11,FALSE),0) -> 0 | N75: =IFERROR(VLOOKUP($A75,FILTRO!$A$5:$P$59,12,FALSE),0) -> 0 | O75: =IFERROR(VLOOKUP($A75,FILTRO!$A$5:$P$59,13,FALSE),0) -> 0 | P75: =IFERROR(VLOOKUP($A75,FILTRO!$A$5:$P$59,14,FALSE),0) -> 0
C76: Subtotal | D76: =SUM(E76:P76) -> 2376.000 | E76: =SUM(E74:E75) -> 105.200 | F76: 243.200 | G76: 1004.400 | H76: 638.400 | I76: 376.800 | J76: 8.000 | K76: 0.000
B77: Total | D77: =SUM(E77:P77) -> 6874.600 | E77: =+E61+E69+E73+E76 -> 189.000 | F77: 394.000 | G77: 1538.400 | H77: 1514.400 | I77: 1020.800 | J77: 1251.000 | K77: 842.000 | L77: 38.00 | M77: 1.00 | N77: 60.00 | O77: 22.00 | P77: 4.00
B79: Sección D: PNAC - Número de personas extrasistema que retiran
B80: Subprogramas | D80: Total | E80: Hombres | F80: Mujeres | G80: Menores a 6 años | N80: Gestantes | P80: Persona que amamanta a hijo/a menor a 12 meses
G81: 0 - 2 meses | H81: 3 - 5 meses | I81: 6 - 11 meses | J81: 12 - 17 meses | K81: 18 - 23 meses | L81: 24 - 47 meses | M81: 48 - 71 meses | N81: Normal, sobrepeso y obesas | O81: Bajo peso | P81: 0 a 5 meses con Lactancia Materna exclusiva | Q81: 0 a 5 meses Lactancia Materna + Fórmula Láctea | R81: 6 a 11 meses Lactancia Materna
A84: 15060100 | B84: Básico | D84: =SUM(G84:R84) -> 2283 | E84: =IFERROR(VLOOKUP($A84,FILTRO!$A$5:$P$59,3,FALSE),0) -> 1077 | F84: =IFERROR(VLOOKUP($A84,FILTRO!$A$5:$P$59,4,FALSE),0) -> 1211 | G84: =IFERROR(VLOOKUP($A84,FILTRO!$A$5:$P$59,5,FALSE),0) -> 28 | H84: =IFERROR(VLOOKUP($A84,FILTRO!$A$5:$P$59,6,FALSE),0) -> 60 | I84: =IFERROR(VLOOKUP($A84,FILTRO!$A$5:$P$59,7,FALSE),0) -> 269 | J84: =IFERROR(VLOOKUP($A84,FILTRO!$A$5:$P$59,8,FALSE),0) -> 443 | K84: =IFERROR(VLOOKUP($A84,FILTRO!$A$5:$P$59,9,FALSE),0) -> 329 | L84: =IFERROR(VLOOKUP($A84,FILTRO!$A$5:$P$59,10,FALSE),0) -> 621 | M84: =IFERROR(VLOOKUP($A84,FILTRO!$A$5:$P$59,11,FALSE),0) -> 438 | N84: =IFERROR(VLOOKUP($A84,FILTRO!$A$5:$P$59,12,FALSE),0) -> 40 | O84: =IFERROR(VLOOKUP($A84,FILTRO!$A$5:$P$59,13,FALSE),0) -> 0 | P84: =IFERROR(VLOOKUP($A84,FILTRO!$A$5:$P$59,14,FALSE),0) -> 31 | Q84: =IFERROR(VLOOKUP($A84,FILTRO!$A$5:$P$59,15,FALSE),0) -> 20 | R84: =IFERROR(VLOOKUP($A84,FILTRO!$A$5:$P$59,16,FALSE),0) -> 4 | S84: =AA84&AB84 ->  | AA84: =IF(AF84=1,"* La suma del Total según grupo etario, gestantes y Personas que amamantan no pueden superar al Total por Sexo. ","") ->  | AF84: =IF(SUM(E84:F84)<SUM(G84:M84,N84,P84:R84),1,0) -> 0
A85: 15060200 | B85: Refuerzo | D85: =SUM(G85:R85) -> 13 | E85: =IFERROR(VLOOKUP($A85,FILTRO!$A$5:$P$59,3,FALSE),0) -> 14 | F85: =IFERROR(VLOOKUP($A85,FILTRO!$A$5:$P$59,4,FALSE),0) -> 18 | G85: =IFERROR(VLOOKUP($A85,FILTRO!$A$5:$P$59,5,FALSE),0) -> 0 | H85: =IFERROR(VLOOKUP($A85,FILTRO!$A$5:$P$59,6,FALSE),0) -> 0 | I85: =IFERROR(VLOOKUP($A85,FILTRO!$A$5:$P$59,7,FALSE),0) -> 0 | J85: =IFERROR(VLOOKUP($A85,FILTRO!$A$5:$P$59,8,FALSE),0) -> 1 | K85: =IFERROR(VLOOKUP($A85,FILTRO!$A$5:$P$59,9,FALSE),0) -> 1 | L85: =IFERROR(VLOOKUP($A85,FILTRO!$A$5:$P$59,10,FALSE),0) -> 9 | M85: =IFERROR(VLOOKUP($A85,FILTRO!$A$5:$P$59,11,FALSE),0) -> 2 | N85: =IFERROR(VLOOKUP($A85,FILTRO!$A$5:$P$59,12,FALSE),0) -> 0 | O85: =IFERROR(VLOOKUP($A85,FILTRO!$A$5:$P$59,13,FALSE),0) -> 0 | P85: =IFERROR(VLOOKUP($A85,FILTRO!$A$5:$P$59,14,FALSE),0) -> 0 | Q85: =IFERROR(VLOOKUP($A85,FILTRO!$A$5:$P$59,15,FALSE),0) -> 0 | R85: =IFERROR(VLOOKUP($A85,FILTRO!$A$5:$P$59,16,FALSE),0) -> 0 | S85: =AA85&AB85 ->  | AA85: =IF(AF85=1,"* La suma del Total según grupo etario, gestantes y Personas que amamantan no pueden superar al Total por Sexo. ","") ->  | AF85: =IF(D85<SUM(G85:M85,O85:R85),1,0) -> 0
A86: 15060600 | B86: Prematuros | D86: =SUM(G86:I86) -> 24 | E86: =IFERROR(VLOOKUP($A86,FILTRO!$A$5:$P$59,3,FALSE),0) -> 7 | F86: =IFERROR(VLOOKUP($A86,FILTRO!$A$5:$P$59,4,FALSE),0) -> 16 | G86: =IFERROR(VLOOKUP($A86,FILTRO!$A$5:$P$59,5,FALSE),0) -> 10 | H86: =IFERROR(VLOOKUP($A86,FILTRO!$A$5:$P$59,6,FALSE),0) -> 11 | I86: =IFERROR(VLOOKUP($A86,FILTRO!$A$5:$P$59,7,FALSE),0) -> 3 | J86: =IFERROR(VLOOKUP($A86,FILTRO!$A$5:$P$59,8,FALSE),0) -> 0 | K86: =IFERROR(VLOOKUP($A86,FILTRO!$A$5:$P$59,9,FALSE),0) -> 0 | L86: =IFERROR(VLOOKUP($A86,FILTRO!$A$5:$P$59,10,FALSE),0) -> 0 | M86: =IFERROR(VLOOKUP($A86,FILTRO!$A$5:$P$59,11,FALSE),0) -> 0 | N86: =IFERROR(VLOOKUP($A86,FILTRO!$A$5:$P$59,12,FALSE),0) -> 0 | O86: =IFERROR(VLOOKUP($A86,FILTRO!$A$5:$P$59,13,FALSE),0) -> 0 | P86: =IFERROR(VLOOKUP($A86,FILTRO!$A$5:$P$59,14,FALSE),0) -> 0 | Q86: =IFERROR(VLOOKUP($A86,FILTRO!$A$5:$P$59,15,FALSE),0) -> 0 | R86: =IFERROR(VLOOKUP($A86,FILTRO!$A$5:$P$59,16,FALSE),0) -> 0 | S86: =AA86&AB86 ->  | AA86: =IF(AF86=1,"* El Total según grupo etario no puede superar al Total por Sexo. ","") ->  | AF86: =IF(D86<SUM(G86:M86),1,0) -> 0
A87: 15901400 | B87: Alergia a la Proteína de la leche de vaca | D87: =SUM(G87:M87) -> 659 | E87: =IFERROR(VLOOKUP($A87,FILTRO!$A$5:$P$59,3,FALSE),0) -> 374 | F87: =IFERROR(VLOOKUP($A87,FILTRO!$A$5:$P$59,4,FALSE),0) -> 258 | G87: =IFERROR(VLOOKUP($A87,FILTRO!$A$5:$P$59,5,FALSE),0) -> 31 | H87: =IFERROR(VLOOKUP($A87,FILTRO!$A$5:$P$59,6,FALSE),0) -> 66 | I87: =IFERROR(VLOOKUP($A87,FILTRO!$A$5:$P$59,7,FALSE),0) -> 279 | J87: =IFERROR(VLOOKUP($A87,FILTRO!$A$5:$P$59,8,FALSE),0) -> 179 | K87: =IFERROR(VLOOKUP($A87,FILTRO!$A$5:$P$59,9,FALSE),0) -> 102 | L87: =IFERROR(VLOOKUP($A87,FILTRO!$A$5:$P$59,10,FALSE),0) -> 2 | M87: =IFERROR(VLOOKUP($A87,FILTRO!$A$5:$P$59,11,FALSE),0) -> 0 | N87: =IFERROR(VLOOKUP($A87,FILTRO!$A$5:$P$59,12,FALSE),0) -> 0 | O87: =IFERROR(VLOOKUP($A87,FILTRO!$A$5:$P$59,13,FALSE),0) -> 0 | P87: =IFERROR(VLOOKUP($A87,FILTRO!$A$5:$P$59,14,FALSE),0) -> 0 | Q87: =IFERROR(VLOOKUP($A87,FILTRO!$A$5:$P$59,15,FALSE),0) -> 0 | R87: =IFERROR(VLOOKUP($A87,FILTRO!$A$5:$P$59,16,FALSE),0) -> 0 | S87: =AA87&AB87 ->  | AA87: =IF(AF87=1,"* El Total según grupo etario no puede superar al Total por Sexo. ","") ->  | AF87: =IF(D87<SUM(G87:M87),1,0) -> 0
B88: Total | D88: =SUM(E88:F88) -> 2975 | E88: =SUM(E84:E87) -> 1472 | F88: 1503 | G88: 69 | H88: 137 | I88: 551 | J88: 623 | K88: 432 | L88: 632 | M88: 440 | N88: =SUM(N84) -> 40 | O88: =SUM(O85) -> 0 | P88: =SUM(P84:P85) -> 31 | Q88: =SUM(Q84:Q85) -> 20 | R88: =SUM(R84:R85) -> 4
A89: 15900090 | B89: Programas Sociales (*) | D89: =SUM(G89:R89) -> 0 | E89: =IFERROR(VLOOKUP($A89,FILTRO!$A$5:$P$59,3,FALSE),0) -> 0 | F89: =IFERROR(VLOOKUP($A89,FILTRO!$A$5:$P$59,4,FALSE),0) -> 0 | G89: =IFERROR(VLOOKUP($A89,FILTRO!$A$5:$P$59,5,FALSE),0) -> 0 | H89: =IFERROR(VLOOKUP($A89,FILTRO!$A$5:$P$59,6,FALSE),0) -> 0 | I89: =IFERROR(VLOOKUP($A89,FILTRO!$A$5:$P$59,7,FALSE),0) -> 0 | J89: =IFERROR(VLOOKUP($A89,FILTRO!$A$5:$P$59,8,FALSE),0) -> 0 | K89: =IFERROR(VLOOKUP($A89,FILTRO!$A$5:$P$59,9,FALSE),0) -> 0 | L89: =IFERROR(VLOOKUP($A89,FILTRO!$A$5:$P$59,10,FALSE),0) -> 0 | M89: =IFERROR(VLOOKUP($A89,FILTRO!$A$5:$P$59,11,FALSE),0) -> 0 | N89: =IFERROR(VLOOKUP($A89,FILTRO!$A$5:$P$59,12,FALSE),0) -> 0 | O89: =IFERROR(VLOOKUP($A89,FILTRO!$A$5:$P$59,13,FALSE),0) -> 0 | P89: =IFERROR(VLOOKUP($A89,FILTRO!$A$5:$P$59,14,FALSE),0) -> 0 | Q89: =IFERROR(VLOOKUP($A89,FILTRO!$A$5:$P$59,15,FALSE),0) -> 0 | R89: =IFERROR(VLOOKUP($A89,FILTRO!$A$5:$P$59,16,FALSE),0) -> 0 | S89: =AA89&AB89 ->  | AA89: =IF(AF89=1,"* La suma del Total según grupo etario, gestantes y Personas que amamantan no pueden superar al Total por Sexo. ","") ->  | AB89: =IF(AG89=1,"* Compruebe que lo ingresado en Programas Sociales no supere al Total registrado en los subprogramas. ","") ->  | AC89: =IF(AH89=1,"* El Total registrado en Programas Sociales no puede ser mayor al Total registrado en los subprogramas. ","") ->  | AF89: =IF(SUM(E89:F89)<SUM(G89:R89),1,0) -> 0 | AG89: =IF(OR(E89>E88,F89>F88,G89>G88,H89>H88,I89>I88,J89>J88,K89>K88,L89>L88,M89>M88,N89>N88,O89>O88,P89>P88,Q89>Q88,R89>R88),1,0) -> 0 | AH89: =IF(D89>D88,1,0) -> 0
B90: Nota: (*) Información referencial, ya incluida en los subprogramas.
B92: Sección E: Existencia y movimiento total de productos (Intrasistema y Extrasistema)
B93: Productos | D93: Saldo Mes Anterior | E93: Ingresos | G93: Total Disponible | H93: Egresos | O93: Saldo mes siguiente
E94: Proveedor/Operador Logístico | F94: Por traspaso | H94: Distribuido a Población Beneficiaria | K94: Mermas (Incluye faltantes) | L94: Otros (demostraciones, donaciones, etc.) | M94: Traspaso | N94: Total Egresos
H95: Intrasistema | I95: Extrasistema | J95: Total
B96: Leche Purita Fortificada (LPF) | G96: =SUM(D96:F96) -> 0 | H96: =D13+D20 -> 20731 | I96: =+D55+D62 -> 566 | J96: =+H96+I96 -> 21297 | N96: =SUM(J96:M96) -> 21297 | O96: =G96-N96 -> -21297
B97: Purita +Pro 1 | G97: 0 | H97: =D14+D21 -> 54681 | I97: =+D56+D63 -> 1535 | J97: 56216 | N97: 56216 | O97: -56216
B98: Purita Cereal (PC) | G98: 0 | H98: =D15+D22 -> 85419 | I98: =+D57+D64 -> 1333 | J98: 86752 | N98: 86752 | O98: -86752
B99: Purita +Pro 2 | G99: 0 | H99: =D16+D23 -> 45730 | I99: =+D58+D65 -> 820 | J99: 46550 | N99: 46550 | O99: -46550
B100: Mi Sopita (MS) | G100: 0 | H100: =D24+D30 -> 6144 | I100: =+D66+D72 -> 22 | J100: 6166 | N100: 6166 | O100: -6166
B101: Purita Mamá (PM) | G101: 0.0 | H101: =+D17+D25 -> 45009.5 | I101: =+D59+D67 -> 123.0 | J101: 45132.5 | N101: 45132.5 | O101: -45132.5
B102: Fórmula de Inicio (FI) | G102: 0.000 | H102: =D18+D26+D29 -> 50190.300 | I102: =+D60+D68+D71 -> 3.200 | J102: 50193.500 | N102: 50193.500 | O102: -50193.500
B103: Fórmula Prematuros | G103: 0.000 | H103: =D28 -> 1462.800 | I103: =D70 -> 96.400 | J103: 1559.200 | N103: 1559.200 | O103: -1559.200
B104: Fórmula Extensamente Hidrolizada (FEH) | G104: 0.000 | H104: =D32 -> 8470.800 | I104: =D74 -> 1589.600 | J104: 10060.400 | N104: 10060.400 | O104: -10060.400
B105: Fórmula aminoacídica (FAA) | G105: 0.000 | H105: =D33 -> 2340.400 | I105: =D75 -> 786.400 | J105: 3126.800 | N105: 3126.800 | O105: -3126.800
B106: Total (Kg) | D106: =SUM(D96:D105) -> 0.000 | E106: 0.000 | F106: 0.000 | G106: 0.000 | H106: 320178.800 | I106: 6874.600 | J106: 327053.400 | K106: 0.000 | L106: 0.000 | M106: 0.000 | N106: 327053.400 | O106: -327053.400
A111: Codigos eliminados
A112: 15030200
A113: 15040200
A115: CODIGOS NUEVOS
A116: 15080014
A117: 15080015
A118: 15080016
A119: 15080017
A120: 15080018
A121: 15080019
A122: 15080020
A123: 15080021
B158: =SUM(C8:R106) -> 4267338 | AG158: =SUM(AF1:AJ157) -> 0

Sheet D16
B1: SERVICIO DE SALUD
B2: =CONCATENATE("COMUNA: ",[1]NOMBRE!$B$2," ","( ",[1]NOMBRE!$C$2,[1]NOMBRE!$D$2,[1]NOMBRE!$E$2,[1]NOMBRE!$F$2,[1]NOMBRE!$G$2," )") -> COMUNA: 0 ( 00000 )
B3: =CONCATENATE("ESTABLECIMIENTO/ESTRATEGIA: ",[1]NOMBRE!$B$3," ","( ",[1]NOMBRE!$C$3,[1]NOMBRE!$D$3,[1]NOMBRE!$E$3,[1]NOMBRE!$F$3,[1]NOMBRE!$G$3,[1]NOMBRE!$H$3," )") -> ESTABLECIMIENTO/ESTRATEGIA: 0 ( 000000 )
B4: =CONCATENATE("MES: ",[1]NOMBRE!$B$6," ","( ",[1]NOMBRE!$C$6,[1]NOMBRE!$D$6," )") -> MES: 0 ( 00 )
B5: =CONCATENATE("AÑO: ",[1]NOMBRE!$B$7) -> AÑO: 2023
B7: REM-D.16. Programa de Alimentación Complementaria del Adulto Mayor (PACAM)
B9: Sección A: PACAM - Cantidad distribuida (kg)
B10: Grupo Programático | C10: Sopa/Crema | D10: Bebida Láctea
A11: 16090300 | B11: 70 años y más (independiente del motivo de ingreso) | C11: =IFERROR(VLOOKUP($A11,FILTRO!$A$5:$P$59,2,FALSE),0) -> 229,841 | D11: =IFERROR(VLOOKUP($A11,FILTRO!$A$5:$P$59,3,FALSE),0) -> 229,914 | E11: =$AB11&" "&$AC11 -> La cantidad distribuída de Sopa/Crema es distinta a la cantidad distribuída de Bebida Láctea.- | AB11: =IF(C11<>D11,"La cantidad distribuída de Sopa/Crema es distinta a la cantidad distribuída de Bebida Láctea.- ","") -> La cantidad distribuída de Sopa/Crema es distinta a la cantidad distribuída de Bebida Láctea.-
A12: 16200210 | B12: 65 - 69 años con alteración de la funcionalidad | C12: =IFERROR(VLOOKUP($A12,FILTRO!$A$5:$P$59,2,FALSE),0) -> 16,940 | D12: =IFERROR(VLOOKUP($A12,FILTRO!$A$5:$P$59,3,FALSE),0) -> 16,943 | E12: =$AB12&" "&$AC12 -> La cantidad distribuída de Sopa/Crema es distinta a la cantidad distribuída de Bebida Láctea.- | AB12: =IF(C12<>D12,"La cantidad distribuída de Sopa/Crema es distinta a la cantidad distribuída de Bebida Láctea.- ","") -> La cantidad distribuída de Sopa/Crema es distinta a la cantidad distribuída de Bebida Láctea.-
A13: 16090500 | B13: 65 - 69 años en programa social (Vínculos, Familia, Calle u otro) | C13: =IFERROR(VLOOKUP($A13,FILTRO!$A$5:$P$59,2,FALSE),0) -> 458 | D13: =IFERROR(VLOOKUP($A13,FILTRO!$A$5:$P$59,3,FALSE),0) -> 458 | E13: =$AB13&" "&$AC13 ->  | AB13: =IF(C13<>D13,"La cantidad distribuída de Sopa/Crema es distinta a la cantidad distribuída de Bebida Láctea.- ","") -> 
A14: 16090600 | B14: 60 - 69 años con tuberculosis | C14: =IFERROR(VLOOKUP($A14,FILTRO!$A$5:$P$59,2,FALSE),0) -> 58 | D14: =IFERROR(VLOOKUP($A14,FILTRO!$A$5:$P$59,3,FALSE),0) -> 58 | E14: =$AB14&" "&$AC14 ->  | AB14: =IF(C14<>D14,"La cantidad distribuída de Sopa/Crema es distinta a la cantidad distribuída de Bebida Láctea.- ","") -> 
A15: 16090100 | B15: 60 - 69 años en ELEAM autorizado o similar | C15: =IFERROR(VLOOKUP($A15,FILTRO!$A$5:$P$59,2,FALSE),0) -> 949 | D15: =IFERROR(VLOOKUP($A15,FILTRO!$A$5:$P$59,3,FALSE),0) -> 950 | E15: =$AB15&" "&$AC15 -> La cantidad distribuída de Sopa/Crema es distinta a la cantidad distribuída de Bebida Láctea.- | AB15: =IF(C15<>D15,"La cantidad distribuída de Sopa/Crema es distinta a la cantidad distribuída de Bebida Láctea.- ","") -> La cantidad distribuída de Sopa/Crema es distinta a la cantidad distribuída de Bebida Láctea.-
B16: TOTAL | C16: =SUM(C11:C15) -> 248,246 | D16: =SUM(D11:D15) -> 248,323
B18: Sección B: PACAM - Número de personas que retiran | N18: |
B19: Grupo Programático | C19: Sopa/Crema - Bebida Láctea
C20: Total | D20: =IFERROR(VLOOKUP($A20,FILTRO!$A$5:$P$59,2,FALSE),0) -> 0 | E20: Total Mujeres
A21: 16100300 | B21: 70 años y más (independiente del motivo de ingreso | C21: =SUM(D21:E21) -> 230690 | D21: =IFERROR(VLOOKUP($A21,FILTRO!$A$5:$P$59,3,FALSE),0) -> 97,588 | E21: =IFERROR(VLOOKUP($A21,FILTRO!$A$5:$P$59,4,FALSE),0) -> 133,102 | F21: =$AA21 -> No olvide que el Nº de personas que retiran debe ser igual al promedio de Kilos que retiran en Seccion A.- | AA21: =IF(((C11+D11)/2)<>(D21+E21)," No olvide que el Nº de personas que retiran debe ser igual al promedio de Kilos que retiran en Seccion A.-","") -> No olvide que el Nº de personas que retiran debe ser igual al promedio de Kilos que retiran en Seccion A.- | AC21: =IF($D21+$E21=0,"",IF($C11+$D11="",IF($D21+$E21="",0,1),"")) ->  | AD21: =IF(D21+E21=0,"",IF(C11+D11=0,"",IF(((C11+D11)/2)<>D21+E21,1,0))) -> 1
A22: 16200220 | B22: 65 - 69 años con alteración de la funcionalidad | C22: =SUM(D22:E22) -> 17176 | D22: =IFERROR(VLOOKUP($A22,FILTRO!$A$5:$P$59,3,FALSE),0) -> 6,506 | E22: =IFERROR(VLOOKUP($A22,FILTRO!$A$5:$P$59,4,FALSE),0) -> 10,670 | F22: =$AA22 -> No olvide que el Nº de personas que retiran debe ser igual al promedio de Kilos que retiran en Seccion A.- | AA22: =IF(((C12+D12)/2)<>(D22+E22)," No olvide que el Nº de personas que retiran debe ser igual al promedio de Kilos que retiran en Seccion A.-","") -> No olvide que el Nº de personas que retiran debe ser igual al promedio de Kilos que retiran en Seccion A.- | AC22: =IF($D22+$E22=0,"",IF($C12+$D12="",IF($D22+$E22="",0,1),"")) ->  | AD22: =IF(D22+E22=0,"",IF(C12+D12=0,"",IF(((C12+D12)/2)<>D22+E22,1,0))) -> 1
A23: 16100600 | B23: 65 - 69 años en programa social (Vínculos, Familia, Calle u otro) | C23: =SUM(D23:E23) -> 463 | D23: =IFERROR(VLOOKUP($A23,FILTRO!$A$5:$P$59,3,FALSE),0) -> 165 | E23: =IFERROR(VLOOKUP($A23,FILTRO!$A$5:$P$59,4,FALSE),0) -> 298 | F23: =$AA23 -> No olvide que el Nº de personas que retiran debe ser igual al promedio de Kilos que retiran en Seccion A.- | AA23: =IF(((C13+D13)/2)<>(D23+E23)," No olvide que el Nº de personas que retiran debe ser igual al promedio de Kilos que retiran en Seccion A.-","") -> No olvide que el Nº de personas que retiran debe ser igual al promedio de Kilos que retiran en Seccion A.- | AC23: =IF($D23+$E23=0,"",IF($C13+$D13="",IF($D23+$E23="",0,1),"")) ->  | AD23: =IF(D23+E23=0,"",IF(C13+D13=0,"",IF(((C13+D13)/2)<>D23+E23,1,0))) -> 1
A24: 16100700 | B24: 60 - 69 años con tuberculosis | C24: =SUM(D24:E24) -> 53 | D24: =IFERROR(VLOOKUP($A24,FILTRO!$A$5:$P$59,3,FALSE),0) -> 44 | E24: =IFERROR(VLOOKUP($A24,FILTRO!$A$5:$P$59,4,FALSE),0) -> 9 | F24: =$AA24 -> No olvide que el Nº de personas que retiran debe ser igual al promedio de Kilos que retiran en Seccion A.- | AA24: =IF(((C14+D14)/2)<>(D24+E24)," No olvide que el Nº de personas que retiran debe ser igual al promedio de Kilos que retiran en Seccion A.-","") -> No olvide que el Nº de personas que retiran debe ser igual al promedio de Kilos que retiran en Seccion A.- | AC24: =IF($D24+$E24=0,"",IF($C14+$D14="",IF($D24+$E24="",0,1),"")) ->  | AD24: =IF(D24+E24=0,"",IF(C14+D14=0,"",IF(((C14+D14)/2)<>D24+E24,1,0))) -> 1
A25: 16100100 | B25: 60 - 69 años en ELEAM autorizado o similar | C25: =SUM(D25:E25) -> 949 | D25: =IFERROR(VLOOKUP($A25,FILTRO!$A$5:$P$59,3,FALSE),0) -> 409 | E25: =IFERROR(VLOOKUP($A25,FILTRO!$A$5:$P$59,4,FALSE),0) -> 540 | F25: =$AA25 -> No olvide que el Nº de personas que retiran debe ser igual al promedio de Kilos que retiran en Seccion A.- | AA25: =IF(((C15+D15)/2)<>(D25+E25)," No olvide que el Nº de personas que retiran debe ser igual al promedio de Kilos que retiran en Seccion A.-","") -> No olvide que el Nº de personas que retiran debe ser igual al promedio de Kilos que retiran en Seccion A.- | AC25: =IF($D25+$E25=0,"",IF($C15+$D15="",IF($D25+$E25="",0,1),"")) ->  | AD25: =IF(D25+E25=0,"",IF(C15+D15=0,"",IF(((C15+D15)/2)<>D25+E25,1,0))) -> 1
B26: TOTAL | C26: =SUM(C21:C25) -> 249,331 | D26: =SUM(D21:D25) -> 104,712 | E26: =SUM(E21:E25) -> 144,619
B28: Sección C: Existencia y movimiento de productos
B29: Productos | C29: Saldo mes anterior | D29: Ingresos | F29: Total disponible | G29: Egresos | L29: Saldo mes siguiente
D30: Proveedor/Operador Logístico | E30: Por traspaso | G30: Distribuido a población beneficiaria | H30: Mermas (Incluye faltantes) | I30: Otros: (demostraciones, donaciones, etc.) | J30: Traspaso | K30: Total egresos
B32: Sopa/Crema | F32: =SUM(C32:E32) -> 0.0 | G32: =C16 -> 248,246.0 | K32: =SUM(G32:J32) -> 248246.0 | L32: =F32-K32 -> -248246.0
B33: Bebida Láctea | F33: =SUM(C33:E33) -> 0 | G33: =D16 -> 248323 | K33: =SUM(G33:J33) -> 248323 | L33: =F33-K33 -> -248323
B35: Sección D: PACAM - Número de personas que retiran, pertenecientes al PRAIS (incluidos en Sección B)
B36: Grupo Programático | C36: Sopa/Crema - Bebida Láctea
C37: Total | D37: Total Hombres | E37: Total Mujeres
A38: 16200100 | B38: 70 años y más (independiente del motivo de ingreso | C38: =SUM(D38:E38) -> 3868 | D38: =IFERROR(VLOOKUP($A38,FILTRO!$A$5:$P$59,3,FALSE),0) -> 2067 | E38: =IFERROR(VLOOKUP($A38,FILTRO!$A$5:$P$59,4,FALSE),0) -> 1801
A39: 16200230 | B39: 65 - 69 años con alteración de la funcionalidad | C39: =SUM(D39:E39) -> 152 | D39: =IFERROR(VLOOKUP($A39,FILTRO!$A$5:$P$59,3,FALSE),0) -> 71 | E39: =IFERROR(VLOOKUP($A39,FILTRO!$A$5:$P$59,4,FALSE),0) -> 81
A40: 16200240 | B40: 65 - 69 años en programa social (Vínculos, Familia, Calle u otro) | C40: 2 | D40: =IFERROR(VLOOKUP($A40,FILTRO!$A$5:$P$59,3,FALSE),0) -> 2 | E40: =IFERROR(VLOOKUP($A40,FILTRO!$A$5:$P$59,4,FALSE),0) -> 0
A41: 16200200 | B41: 60 - 69 años con tuberculosis | C41: =SUM(D41:E41) -> 0 | D41: =IFERROR(VLOOKUP($A41,FILTRO!$A$5:$P$59,3,FALSE),0) -> 0 | E41: =IFERROR(VLOOKUP($A41,FILTRO!$A$5:$P$59,4,FALSE),0) -> 0
A42: 16200250 | B42: 60 - 69 años en ELEAM autorizado o similar | C42: 0 | D42: =IFERROR(VLOOKUP($A42,FILTRO!$A$5:$P$59,3,FALSE),0) -> 0 | E42: =IFERROR(VLOOKUP($A42,FILTRO!$A$5:$P$59,4,FALSE),0) -> 0
B43: TOTAL | C43: =SUM(C38:C42) -> 4,022 | D43: =SUM(D38:D42) -> 2,140 | E43: =SUM(E38:E42) -> 1,882
A48: CODIGOS ELIMINADOS
A49: 16200260
A50: 16200270
B209: =SUM(B9:O43) -> 2503119 | AE209: =SUM(AE1:AF208) -> 0

Sheet _BBDD (hidden)
A1: Mes | B1: IdServicio | C1: Ano | D1: IdEstablecimiento | E1: Establecimiento | F1: Comuna | G1: CodigoPrestacion | H1: fechaIngreso | I1: Col01 | J1: Col02 | K1: Col03 | L1: Col04 | M1: Col05 | N1: Col06 | O1: Col07 | P1: Col08 | Q1: Col09 | R1: Col10 | S1: Col11 | T1: Col12 | U1: Col13 | V1: Col14 | W1: Col15 | X1: Col16 | Y1: Col17 | Z1: Col18 | AA1: Col19 | AB1: Col20 | AC1: Col21 | AD1: Col22 | AE1: Col23 | AF1: Col24 | AG1: Col25 | AH1: Col26 | AI1: Col27 | AJ1: Col28 | AK1: Col29 | AL1: Col30 | AM1: Col31 | AN1: Col32 | AO1: Col33 | AP1: Col34 | AQ1: Col35 | AR1: Col36 | AS1: Col37 | AT1: Col38 | AU1: Col39 | AV1: Col40 | AW1: Col41 | AX1: col42 | AY1: col43 | AZ1: col44 | BA1: col45 | BB1: col46 | BC1: col47 | BD1: col48 | BE1: col49 | BF1: col50
A2: 7 | B2: 5 | C2: 2023 | D2: 105400 | E2: =IFERROR(VLOOKUP(Tabla_SERIED_11_6[[#This Row],[IdEstablecimiento]],'[2]Establecimiento 2023'!$A$1:$E$183,3,FALSE),0) -> 105400-Posta de Salud Rural Algarrobito | F2: =IFERROR(VLOOKUP(Tabla_SERIED_11_6[[#This Row],[IdEstablecimiento]],'[2]Establecimiento 2023'!$A$1:$E$183,5,FALSE),0) -> 04101-La Serena | G2: 15080016 | H2: 2023-08-18T08:14:04 | I2: 2 | O2: 2
A3: 7 | B3: 5 | C3: 2023 | D3: 105400 | E3: =IFERROR(VLOOKUP(Tabla_SERIED_11_6[[#This Row],[IdEstablecimiento]],'[2]Establecimiento 2023'!$A$1:$E$183,3,FALSE),0) -> 105400-Posta de Salud Rural Algarrobito | F3: =IFERROR(VLOOKUP(Tabla_SERIED_11_6[[#This Row],[IdEstablecimiento]],'[2]Establecimiento 2023'!$A$1:$E$183,5,FALSE),0) -> 04101-La Serena | G3: 15900050 | H3: 2023-08-18T08:14:04 | I3: 1 | J3: 1 | L3: 1
A4: 7 | B4: 5 | C4: 2023 | D4: 105400 | E4: =IFERROR(VLOOKUP(Tabla_SERIED_11_6[[#This Row],[IdEstablecimiento]],'[2]Establecimiento 2023'!$A$1:$E$183,3,FALSE),0) -> 105400-Posta de Salud Rural Algarrobito | F4: =IFERROR(VLOOKUP(Tabla_SERIED_11_6[[#This Row],[IdEstablecimiento]],'[2]Establecimiento 2023'!$A$1:$E$183,5,FALSE),0) -> 04101-La Serena | G4: 16100300 | H4: 2023-08-18T08:14:04 | I4: 244 | J4: 97 | K4: 147
A5: 7 | B5: 5 | C5: 2023 | D5: 105401 | E5: =IFERROR(VLOOKUP(Tabla_SERIED_11_6[[#This Row],[IdEstablecimiento]],'[2]Establecimiento 2023'!$A$1:$E$183,3,FALSE),0) -> 105401-Posta de Salud Rural Las Rojas | F5: =IFERROR(VLOOKUP(Tabla_SERIED_11_6[[#This Row],[IdEstablecimiento]],'[2]Establecimiento 2023'!$A$1:$E$183,5,FALSE),0) -> 04101-La Serena | G5: 16100300 | H5: 2023-08-18T08:14:33 | I5: 58 | J5: 29 | K5: 29
A6: 7 | B6: 5 | C6: 2023 | D6: 105402 | E6: =IFERROR(VLOOKUP(Tabla_SERIED_11_6[[#This Row],[IdEstablecimiento]],'[2]Establecimiento 2023'!$A$1:$E$183,3,FALSE),0) -> 105402-Posta de Salud Rural El Romero | F6: =IFERROR(VLOOKUP(Tabla_SERIED_11_6[[#This Row],[IdEstablecimiento]],'[2]Establecimiento 2023'!$A$1:$E$183,5,FALSE),0) -> 04101-La Serena | G6: 15080008 | H6: 2023-10-17T11:09:21 | I6: 8 | Q6: 1 | S6: 6 | U6: 1
A7: 7 | B7: 5 | C7: 2023 | D7: 105402 | E7: =IFERROR(VLOOKUP(Tabla_SERIED_11_6[[#This Row],[IdEstablecimiento]],'[2]Establecimiento 2023'!$A$1:$E$183,3,FALSE),0) -> 105402-Posta de Salud Rural El Romero | F7: =IFERROR(VLOOKUP(Tabla_SERIED_11_6[[#This Row],[IdEstablecimiento]],'[2]Establecimiento 2023'!$A$1:$E$183,5,FALSE),0) -> 04101-La Serena | G7: 15080014 | H7: 2023-10-17T11:09:21 | I7: 30 | M7: 14 | N7: 16
A8: 7 | B8: 5 | C8: 2023 | D8: 105402 | E8: =IFERROR(VLOOKUP(Tabla_SERIED_11_6[[#This Row],[IdEstablecimiento]],'[2]Establecimiento 2023'!$A$1:$E$183,3,FALSE),0) -> 105402-Posta de Salud Rural El Romero | F8: =IFERROR(VLOOKUP(Tabla_SERIED_11_6[[#This Row],[IdEstablecimiento]],'[2]Establecimiento 2023'!$A$1:$E$183,5,FALSE),0) -> 04101-La Serena | G8: 16100300 | H8: 2023-10-17T11:09:21 | I8: 60 | J8: 31 | K8: 29
A9: 7 | B9: 5 | C9: 2023 | D9: 105405 | E9: =IFERROR(VLOOKUP(Tabla_SERIED_11_6[[#This Row],[IdEstablecimiento]],'[2]Establecimiento 2023'!$A$1:$E$183,3,FALSE),0) -> 105405-Posta de Salud Rural Guanaqueros | F9: =IFERROR(VLOOKUP(Tabla_SERIED_11_6[[#This Row],[IdEstablecimiento]],'[2]Establecimiento 2023'!$A$1:$E$183,5,FALSE),0) -> 04102-Coquimbo | G9: 15900010 | H9: 2023-08-18T08:15:44 | I9: 25.6 | J9: 0 | K9: 7.2 | L9: 18.4
A10: 7 | B10: 5 | C10: 2023 | D10: 105405 | E10: =IFERROR(VLOOKUP(Tabla_SERIED_11_6[[#This Row],[IdEstablecimiento]],'[2]Establecimiento 2023'!$A$1:$E$183,3,FALSE),0) -> 105405-Posta de Salud Rural Guanaqueros | F10: =IFERROR(VLOOKUP(Tabla_SERIED_11_6[[#This Row],[IdEstablecimiento]],'[2]Establecimiento 2023'!$A$1:$E$183,5,FALSE),0) -> 04102-Coquimbo | G10: 16100300 | H10: 2023-08-18T08:15:44 | I10: 83 | J10: 38 | K10: 45
A11: 7 | B11: 5 | C11: 2023 | D11: 105407 | E11: =IFERROR(VLOOKUP(Tabla_SERIED_11_6[[#This Row],[IdEstablecimiento]],'[2]Establecimiento 2023'!$A$1:$E$183,3,FALSE),0) -> 105407-Posta de Salud Rural Tambillo | F11: =IFERROR(VLOOKUP(Tabla_SERIED_11_6[[#This Row],[IdEstablecimiento]],'[2]Establecimiento 2023'!$A$1:$E$183,5,FALSE),0) -> 04102-Coquimbo | G11: 15080008 | H11: 2023-08-18T08:16:11 | I11: 2 | Q11: 2 | S11: 0 | T11: 0
A12: 7 | B12: 5 | C12: 2023 | D12: 105409 | E12: =IFERROR(VLOOKUP(Tabla_SERIED_11_6[[#This Row],[IdEstablecimiento]],'[2]Establecimiento 2023'!$A$1:$E$183,3,FALSE),0) -> 105409-Posta de Salud Rural El Chañar | F12: =IFERROR(VLOOKUP(Tabla_SERIED_11_6[[#This Row],[IdEstablecimiento]],'[2]Establecimiento 2023'!$A$1:$E$183,5,FALSE),0) -> 04305-Rio Hurtado | G12: 16090300 | H12: 2023-08-18T08:16:42 | I12: 24 | J12: 24
A13: 7 | B13: 5 | C13: 2023 | D13: 105413 | E13: =IFERROR(VLOOKUP(Tabla_SERIED_11_6[[#This Row],[IdEstablecimiento]],'[2]Establecimiento 2023'!$A$1:$E$183,3,FALSE),0) -> 105413-Posta de Salud Rural Samo Alto | F13: =IFERROR(VLOOKUP(Tabla_SERIED_11_6[[#This Row],[IdEstablecimiento]],'[2]Establecimiento 2023'!$A$1:$E$183,5,FALSE),0) -> 04305-Rio Hurtado | G13: 15010200 | H13: 2023-08-18T08:18:10 | I13: 10 | O13: 4 | P13: 6
A14: 7 | B14: 5 | C14: 2023 | D14: 105413 | E14: =IFERROR(VLOOKUP(Tabla_SERIED_11_6[[#This Row],[IdEstablecimiento]],'[2]Establecimiento 2023'!$A$1:$E$183,3,FALSE),0) -> 105413-Posta de Salud Rural Samo Alto | F14: =IFERROR(VLOOKUP(Tabla_SERIED_11_6[[#This Row],[IdEstablecimiento]],'[2]Establecimiento 2023'!$A$1:$E$183,5,FALSE),0) -> 04305-Rio Hurtado | G14: 16100300 | H14: 2023-08-18T08:18:10 | I14: 80 | J14: 28 | K14: 52
A15: 7 | B15: 5 | C15: 2023 | D15: 105413 | E15: =IFERROR(VLOOKUP(Tabla_SERIED_11_6[[#This Row],[IdEstablecimiento]],'[2]Establecimiento 2023'!$A$1:$E$183,3,FALSE),0) -> 105413-Posta de Salud Rural Samo Alto | F15: =IFERROR(VLOOKUP(Tabla_SERIED_11_6[[#This Row],[IdEstablecimiento]],'[2]Establecimiento 2023'!$A$1:$E$183,5,FALSE),0) -> 04305-Rio Hurtado | G15: 16200210 | H15: 2023-08-18T08:18:10 | I15: 7 | J15: 7
A16: 7 | B16: 5 | C16: 2023 | D16: 105417 | E16: =IFERROR(VLOOKUP(Tabla_SERIED_11_6[[#This Row],[IdEstablecimiento]],'[2]Establecimiento 2023'!$A$1:$E$183,3,FALSE),0) -> 105417-Posta de Salud Rural Alcones Bajo | F16: =IFERROR(VLOOKUP(Tabla_SERIED_11_6[[#This Row],[IdEstablecimiento]],'[2]Establecimiento 2023'!$A$1:$E$183,5,FALSE),0) -> 04301-Ovalle | G16: 15080014 | H16: 2023-08-18T08:20:42 | I16: 14 | M16: 12 | N16: 2
A17: 7 | B17: 5 | C17: 2023 | D17: 105419 | E17: =IFERROR(VLOOKUP(Tabla_SERIED_11_6[[#This Row],[IdEstablecimiento]],'[2]Establecimiento 2023'!$A$1:$E$183,3,FALSE),0) -> 105419-Posta de Salud Rural Las Sossas | F17: =IFERROR(VLOOKUP(Tabla_SERIED_11_6[[#This Row],[IdEstablecimiento]],'[2]Establecimiento 2023'!$A$1:$E$183,5,FALSE),0) -> 04301-Ovalle | G17: 15080008 | H17: 2023-08-18T08:21:07 | I17: 2 | S17: 2
A18: 7 | B18: 5 | C18: 2023 | D18: 105422 | E18: =IFERROR(VLOOKUP(Tabla_SERIED_11_6[[#This Row],[IdEstablecimiento]],'[2]Establecimiento 2023'!$A$1:$E$183,3,FALSE),0) -> 105422-Posta de Salud Rural Hornillos | F18: =IFERROR(VLOOKUP(Tabla_SERIED_11_6[[#This Row],[IdEstablecimiento]],'[2]Establecimiento 2023'!$A$1:$E$183,5,FALSE),0) -> 04301-Ovalle | G18: 16200100 | H18: 2023-08-18T08:21:41 | I18: 1 | K18: 1
A19: 7 | B19: 5 | C19: 2023 | D19: 105425 | E19: =IFERROR(VLOOKUP(Tabla_SERIED_11_6[[#This Row],[IdEstablecimiento]],'[2]Establecimiento 2023'!$A$1:$E$183,3,FALSE),0) -> 105425-Posta de Salud Rural Chilecito | F19: =IFERROR(VLOOKUP(Tabla_SERIED_11_6[[#This Row],[IdEstablecimiento]],'[2]Establecimiento 2023'!$A$1:$E$183,5,FALSE),0) -> 04303-Monte Patria | G19: 15050100 | H19: 2023-10-17T11:25:50 | I19: 13 | J19: 5 | K19: 8 | N19: 1 | O19: 1 | Q19: 3 | R19: 4 | S19: 2 | U19: 1 | W19: 1
A20: 7 | B20: 5 | C20: 2023 | D20: 105434 | E20: =IFERROR(VLOOKUP(Tabla_SERIED_11_6[[#This Row],[IdEstablecimiento]],'[2]Establecimiento 2023'!$A$1:$E$183,3,FALSE),0) -> 105434-Posta de Salud Rural San Marcos (Combarbalá) | F20: =IFERROR(VLOOKUP(Tabla_SERIED_11_6[[#This Row],[IdEstablecimiento]],'[2]Establecimiento 2023'!$A$1:$E$183,5,FALSE),0) -> 04302-Combarbalá | G20: 16200220 | H20: 2023-08-18T08:28:04 | I20: 5 | K20: 5
A21: 7 | B21: 5 | C21: 2023 | D21: 105435 | E21: =IFERROR(VLOOKUP(Tabla_SERIED_11_6[[#This Row],[IdEstablecimiento]],'[2]Establecimiento 2023'!$A$1:$E$183,3,FALSE),0) -> 105435-Posta de Salud Rural Tulahuén | F21: =IFERROR(VLOOKUP(Tabla_SERIED_11_6[[#This Row],[IdEstablecimiento]],'[2]Establecimiento 2023'!$A$1:$E$183,5,FALSE),0) -> 04303-Monte Patria | G21: 15080015 | H21: 2023-08-18T08:28:33 | I21: 18 | O21: 2 | P21: 16
A22: 7 | B22: 5 | C22: 2023 | D22: 105436 | E22: =IFERROR(VLOOKUP(Tabla_SERIED_11_6[[#This Row],[IdEstablecimiento]],'[2]Establecimiento 2023'!$A$1:$E$183,3,FALSE),0) -> 105436-Posta de Salud Rural El Maitén | F22: =IFERROR(VLOOKUP(Tabla_SERIED_11_6[[#This Row],[IdEstablecimiento]],'[2]Establecimiento 2023'!$A$1:$E$183,5,FALSE),0) -> 04303-Monte Patria | G22: 16090300 | H22: 2023-08-18T08:42:15 | I22: 56 | J22: 56
A23: 7 | B23: 5 | C23: 2023 | D23: 105437 | E23: =IFERROR(VLOOKUP(Tabla_SERIED_11_6[[#This Row],[IdEstablecimiento]],'[2]Establecimiento 2023'!$A$1:$E$183,3,FALSE),0) -> 105437-Posta de Salud Rural Chalinga | F23: =IFERROR(VLOOKUP(Tabla_SERIED_11_6[[#This Row],[IdEstablecimiento]],'[2]Establecimiento 2023'!$A$1:$E$183,5,FALSE),0) -> 04301-Ovalle | G23: 15010500 | H23: 2023-08-18T08:38:29 | I23: 2 | P23: 2
A24: 7 | B24: 5 | C24: 2023 | D24: 105439 | E24: =IFERROR(VLOOKUP(Tabla_SERIED_11_6[[#This Row],[IdEstablecimiento]],'[2]Establecimiento 2023'!$A$1:$E$183,3,FALSE),0) -> 105439-Posta de Salud Rural Cerro Blanco | F24: =IFERROR(VLOOKUP(Tabla_SERIED_11_6[[#This Row],[IdEstablecimiento]],'[2]Establecimiento 2023'!$A$1:$E$183,5,FALSE),0) -> 04301-Ovalle | G24: 16200210 | H24: 2023-08-18T08:39:33 | I24: 3 | J24: 3
A25: 7 | B25: 5 | C25: 2023 | D25: 105441 | E25: =IFERROR(VLOOKUP(Tabla_SERIED_11_6[[#This Row],[IdEstablecimiento]],'[2]Establecimiento 2023'!$A$1:$E$183,3,FALSE),0) -> 105441-Posta de Salud Rural Manquehua | F25: =IFERROR(VLOOKUP(Tabla_SERIED_11_6[[#This Row],[IdEstablecimiento]],'[2]Establecimiento 2023'!$A$1:$E$183,5,FALSE),0) -> 04302-Combarbalá | G25: 16100300 | H25: 2023-08-18T08:43:36 | I25: 103 | J25: 46 | K25: 57
A26: 7 | B26: 5 | C26: 2023 | D26: 105442 | E26: =IFERROR(VLOOKUP(Tabla_SERIED_11_6[[#This Row],[IdEstablecimiento]],'[2]Establecimiento 2023'!$A$1:$E$183,3,FALSE),0) -> 105442-Posta de Salud Rural San Pedro de Quiles | F26: =IFERROR(VLOOKUP(Tabla_SERIED_11_6[[#This Row],[IdEstablecimiento]],'[2]Establecimiento 2023'!$A$1:$E$183,5,FALSE),0) -> 04304-Punitaqui | G26: 15050100 | H26: 2023-08-18T09:28:03 | I26: 1 | J26: 1 | R26: 1
A27: 7 | B27: 5 | C27: 2023 | D27: 105443 | E27: =IFERROR(VLOOKUP(Tabla_SERIED_11_6[[#This Row],[IdEstablecimiento]],'[2]Establecimiento 2023'!$A$1:$E$183,3,FALSE),0) -> 105443-Posta de Salud Rural Cárcamo | F27: =IFERROR(VLOOKUP(Tabla_SERIED_11_6[[#This Row],[IdEstablecimiento]],'[2]Establecimiento 2023'!$A$1:$E$183,5,FALSE),0) -> 04201-Illapel | G27: 15050100 | H27: 2023-08-18T09:28:46 | I27: 14 | J27: 8 | K27: 6 | M27: 1 | N27: 1 | O27: 2 | Q27: 5 | R27: 4 | U27: 1
A28: 7 | B28: 5 | C28: 2023 | D28: 105443 | E28: =IFERROR(VLOOKUP(Tabla_SERIED_11_6[[#This Row],[IdEstablecimiento]],'[2]Establecimiento 2023'!$A$1:$E$183,3,FALSE),0) -> 105443-Posta de Salud Rural Cárcamo | F28: =IFERROR(VLOOKUP(Tabla_SERIED_11_6[[#This Row],[IdEstablecimiento]],'[2]Establecimiento 2023'!$A$1:$E$183,5,FALSE),0) -> 04201-Illapel | G28: 16200220 | H28: 2023-08-18T09:28:46 | I28: 6 | J28: 2 | K28: 4
A29: 7 | B29: 5 | C29: 2023 | D29: 105444 | E29: =IFERROR(VLOOKUP(Tabla_SERIED_11_6[[#This Row],[IdEstablecimiento]],'[2]Establecimiento 2023'!$A$1:$E$183,3,FALSE),0) -> 105444-Posta de Salud Rural Huintil | F29: =IFERROR(VLOOKUP(Tabla_SERIED_11_6[[#This Row],[IdEstablecimiento]],'[2]Establecimiento 2023'!$A$1:$E$183,5,FALSE),0) -> 04201-Illapel | G29: 15010100 | H29: 2023-08-18T09:29:59 | I29: 2 | N29: 2
A30: 7 | B30: 5 | C30: 2023 | D30: 105444 | E30: =IFERROR(VLOOKUP(Tabla_SERIED_11_6[[#This Row],[IdEstablecimiento]],'[2]Establecimiento 2023'!$A$1:$E$183,3,FALSE),0) -> 105444-Posta de Salud Rural Huintil | F30: =IFERROR(VLOOKUP(Tabla_SERIED_11_6[[#This Row],[IdEstablecimiento]],'[2]Establecimiento 2023'!$A$1:$E$183,5,FALSE),0) -> 04201-Illapel | G30: 15080008 | H30: 2023-08-18T09:29:59 | I30: 4 | S30: 4
A31: 7 | B31: 5 | C31: 2023 | D31: 105445 | E31: =IFERROR(VLOOKUP(Tabla_SERIED_11_6[[#This Row],[IdEstablecimiento]],'[2]Establecimiento 2023'!$A$1:$E$183,3,FALSE),0) -> 105445-Posta de Salud Rural Limáhuida | F31: =IFERROR(VLOOKUP(Tabla_SERIED_11_6[[#This Row],[IdEstablecimiento]],'[2]Establecimiento 2023'!$A$1:$E$183,5,FALSE),0) -> 04201-Illapel | G31: 15080008 | H31: 2023-08-18T09:29:05 | I31: 4 | Q31: 2 | S31: 2 | T31: 0 | U31: 0
A32: 7 | B32: 5 | C32: 2023 | D32: 105445 | E32: =IFERROR(VLOOKUP(Tabla_SERIED_11_6[[#This Row],[IdEstablecimiento]],'[2]Establecimiento 2023'!$A$1:$E$183,3,FALSE),0) -> 105445-Posta de Salud Rural Limáhuida | F32: =IFERROR(VLOOKUP(Tabla_SERIED_11_6[[#This Row],[IdEstablecimiento]],'[2]Establecimiento 2023'!$A$1:$E$183,5,FALSE),0) -> 04201-Illapel | G32: 16200100 | H32: 2023-08-18T09:29:05 | I32: 2 | J32: 0 | K32: 2
A33: 7 | B33: 5 | C33: 2023 | D33: 105447 | E33: =IFERROR(VLOOKUP(Tabla_SERIED_11_6[[#This Row],[IdEstablecimiento]],'[2]Establecimiento 2023'!$A$1:$E$183,3,FALSE),0) -> 105447-Posta de Salud Rural Peralillo Illapel | F33: =IFERROR(VLOOKUP(Tabla_SERIED_11_6[[#This Row],[IdEstablecimiento]],'[2]Establecimiento 2023'!$A$1:$E$183,5,FALSE),0) -> 04201-Illapel | G33: 15080014 | H33: 2023-08-18T09:30:51 | I33: 10 | M33: 6 | N33: 4
A34: 7 | B34: 5 | C34: 2023 | D34: 105447 | E34: =IFERROR(VLOOKUP(Tabla_SERIED_11_6[[#This Row],[IdEstablecimiento]],'[2]Establecimiento 2023'!$A$1:$E$183,3,FALSE),0) -> 105447-Posta de Salud Rural Peralillo Illapel | F34: =IFERROR(VLOOKUP(Tabla_SERIED_11_6[[#This Row],[IdEstablecimiento]],'[2]Establecimiento 2023'!$A$1:$E$183,5,FALSE),0) -> 04201-Illapel | G34: 15900010 | H34: 2023-08-18T09:30:51 | I34: 3.2 | K34: 0 | L34: 3.2
A35: 7 | B35: 5 | C35: 2023 | D35: 105449 | E35: =IFERROR(VLOOKUP(Tabla_SERIED_11_6[[#This Row],[IdEstablecimiento]],'[2]Establecimiento 2023'!$A$1:$E$183,3,FALSE),0) -> 105449-Posta de Salud Rural Tunga Norte | F35: =IFERROR(VLOOKUP(Tabla_SERIED_11_6[[#This Row],[IdEstablecimiento]],'[2]Establecimiento 2023'!$A$1:$E$183,5,FALSE),0) -> 04201-Illapel | G35: 16090300 | H35: 2023-08-18T09:31:48 | I35: 27 | J35: 27
A36: 7 | B36: 5 | C36: 2023 | D36: 105449 | E36: =IFERROR(VLOOKUP(Tabla_SERIED_11_6[[#This Row],[IdEstablecimiento]],'[2]Establecimiento 2023'!$A$1:$E$183,3,FALSE),0) -> 105449-Posta de Salud Rural Tunga Norte | F36: =IFERROR(VLOOKUP(Tabla_SERIED_11_6[[#This Row],[IdEstablecimiento]],'[2]Establecimiento 2023'!$A$1:$E$183,5,FALSE),0) -> 04201-Illapel | G36: 16200210 | H36: 2023-08-18T09:31:48 | I36: 3 | J36: 3
A37: 7 | B37: 5 | C37: 2023 | D37: 105450 | E37: =IFERROR(VLOOKUP(Tabla_SERIED_11_6[[#This Row],[IdEstablecimiento]],'[2]Establecimiento 2023'!$A$1:$E$183,3,FALSE),0) -> 105450-Posta de Salud Rural Mincha Norte | F37: =IFERROR(VLOOKUP(Tabla_SERIED_11_6[[#This Row],[IdEstablecimiento]],'[2]Establecimiento 2023'!$A$1:$E$183,5,FALSE),0) -> 04202-Canela | G37: 16200220 | H37: 2023-08-18T09:32:13 | I37: 13 | J37: 6 | K37: 7
A38: 7 | B38: 5 | C38: 2023 | D38: 105451 | E38: =IFERROR(VLOOKUP(Tabla_SERIED_11_6[[#This Row],[IdEstablecimiento]],'[2]Establecimiento 2023'!$A$1:$E$183,3,FALSE),0) -> 105451-Posta de Salud Rural Agua Fría | F38: =IFERROR(VLOOKUP(Tabla_SERIED_11_6[[#This Row],[IdEstablecimiento]],'[2]Establecimiento 2023'!$A$1:$E$183,5,FALSE),0) -> 04202-Canela | G38: 15050100 | H38: 2023-08-18T09:32:41 | I38: 2 | J38: 1 | K38: 1 | P38: 1 | Q38: 1
A39: 7 | B39: 5 | C39: 2023 | D39: 105453 | E39: =IFERROR(VLOOKUP(Tabla_SERIED_11_6[[#This Row],[IdEstablecimiento]],'[2]Establecimiento 2023'!$A$1:$E$183,3,FALSE),0) -> 105453-Posta de Salud Rural Tranquilla | F39: =IFERROR(VLOOKUP(Tabla_SERIED_11_6[[#This Row],[IdEstablecimiento]],'[2]Establecimiento 2023'!$A$1:$E$183,5,FALSE),0) -> 04204-Salamanca | G39: 15080008 | H39: 2023-08-18T09:34:00 | I39: 5 | S39: 4 | U39: 1
A40: 7 | B40: 5 | C40: 2023 | D40: 105455 | E40: =IFERROR(VLOOKUP(Tabla_SERIED_11_6[[#This Row],[IdEstablecimiento]],'[2]Establecimiento 2023'!$A$1:$E$183,3,FALSE),0) -> 105455-CESFAM Valle Alto | F40: =IFERROR(VLOOKUP(Tabla_SERIED_11_6[[#This Row],[IdEstablecimiento]],'[2]Establecimiento 2023'!$A$1:$E$183,5,FALSE),0) -> 04204-Salamanca | G40: 16090300 | H40: 2023-08-18T09:35:15 | I40: 62 | J40: 62
A41: 7 | B41: 5 | C41: 2023 | D41: 105456 | E41: =IFERROR(VLOOKUP(Tabla_SERIED_11_6[[#This Row],[IdEstablecimiento]],'[2]Establecimiento 2023'!$A$1:$E$183,3,FALSE),0) -> 105456-Posta de Salud Rural Llimpo | F41: =IFERROR(VLOOKUP(Tabla_SERIED_11_6[[#This Row],[IdEstablecimiento]],'[2]Establecimiento 2023'!$A$1:$E$183,5,FALSE),0) -> 04204-Salamanca | G41: 15900010 | H41: 2023-08-18T09:42:10 | I41: 10.4 | K41: 7.2 | L41: 3.2
A42: 7 | B42: 5 | C42: 2023 | D42: 105457 | E42: =IFERROR(VLOOKUP(Tabla_SERIED_11_6[[#This Row],[IdEstablecimiento]],'[2]Establecimiento 2023'!$A$1:$E$183,3,FALSE),0) -> 105457-Posta de Salud Rural San Agustín (Salamanca) | F42: =IFERROR(VLOOKUP(Tabla_SERIED_11_6[[#This Row],[IdEstablecimiento]],'[2]Establecimiento 2023'!$A$1:$E$183,5,FALSE),0) -> 04204-Salamanca | G42: 16200220 | H42: 2023-08-18T09:43:28 | I42: 7 | J42: 3 | K42: 4
A43: 7 | B43: 5 | C43: 2023 | D43: 105458 | E43: =IFERROR(VLOOKUP(Tabla_SERIED_11_6[[#This Row],[IdEstablecimiento]],'[2]Establecimiento 2023'!$A$1:$E$183,3,FALSE),0) -> 105458-Posta de Salud Rural Tahuinco | F43: =IFERROR(VLOOKUP(Tabla_SERIED_11_6[[#This Row],[IdEstablecimiento]],'[2]Establecimiento 2023'!$A$1:$E$183,5,FALSE),0) -> 04204-Salamanca | G43: 16200220 | H43: 2023-08-18T09:44:06 | I43: 10 | J43: 3 | K43: 7
A44: 7 | B44: 5 | C44: 2023 | D44: 105460 | E44: =IFERROR(VLOOKUP(Tabla_SERIED_11_6[[#This Row],[IdEstablecimiento]],'[2]Establecimiento 2023'!$A$1:$E$183,3,FALSE),0) -> 105460-Centro Comunitario de Salud Familiar Cogotí 18 | F44: =IFERROR(VLOOKUP(Tabla_SERIED_11_6[[#This Row],[IdEstablecimiento]],'[2]Establecimiento 2023'!$A$1:$E$183,5,FALSE),0) -> 04302-Combarbalá | G44: 16200210 | H44: 2023-08-18T09:47:10 | I44: 15 | J44: 15
A45: 7 | B45: 5 | C45: 2023 | D45: 105461 | E45: =IFERROR(VLOOKUP(Tabla_SERIED_11_6[[#This Row],[IdEstablecimiento]],'[2]Establecimiento 2023'!$A$1:$E$183,3,FALSE),0) -> 105461-Posta de Salud Rural El Huacho | F45: =IFERROR(VLOOKUP(Tabla_SERIED_11_6[[#This Row],[IdEstablecimiento]],'[2]Establecimiento 2023'!$A$1:$E$183,5,FALSE),0) -> 04302-Combarbalá | G45: 16200210 | H45: 2023-08-18T09:47:41 | I45: 1 | J45: 1
A46: 7 | B46: 5 | C46: 2023 | D46: 105462 | E46: =IFERROR(VLOOKUP(Tabla_SERIED_11_6[[#This Row],[IdEstablecimiento]],'[2]Establecimiento 2023'!$A$1:$E$183,3,FALSE),0) -> 105462-Posta de Salud Rural El Sauce (Combarbalá) | F46: =IFERROR(VLOOKUP(Tabla_SERIED_11_6[[#This Row],[IdEstablecimiento]],'[2]Establecimiento 2023'!$A$1:$E$183,5,FALSE),0) -> 04302-Combarbalá | G46: 16090300 | H46: 2023-08-18T09:48:24 | I46: 69 | J46: 69
A47: 7 | B47: 5 | C47: 2023 | D47: 105472 | E47: =IFERROR(VLOOKUP(Tabla_SERIED_11_6[[#This Row],[IdEstablecimiento]],'[2]Establecimiento 2023'!$A$1:$E$183,3,FALSE),0) -> 105472-Posta de Salud Rural Rivadavia | F47: =IFERROR(VLOOKUP(Tabla_SERIED_11_6[[#This Row],[IdEstablecimiento]],'[2]Establecimiento 2023'!$A$1:$E$183,5,FALSE),0) -> 04106-Vicuña | G47: 15010200 | H47: 2023-08-18T10:05:34 | I47: 10 | O47: 6 | P47: 4
A48: 7 | B48: 5 | C48: 2023 | D48: 105472 | E48: =IFERROR(VLOOKUP(Tabla_SERIED_11_6[[#This Row],[IdEstablecimiento]],'[2]Establecimiento 2023'!$A$1:$E$183,3,FALSE),0) -> 105472-Posta de Salud Rural Rivadavia | F48: =IFERROR(VLOOKUP(Tabla_SERIED_11_6[[#This Row],[IdEstablecimiento]],'[2]Establecimiento 2023'!$A$1:$E$183,5,FALSE),0) -> 04106-Vicuña | G48: 15080014 | H48: 2023-08-18T10:05:34 | I48: 12 | M48: 4 | N48: 8
A49: 7 | B49: 5 | C49: 2023 | D49: 105473 | E49: =IFERROR(VLOOKUP(Tabla_SERIED_11_6[[#This Row],[IdEstablecimiento]],'[2]Establecimiento 2023'!$A$1:$E$183,3,FALSE),0) -> 105473-Posta de Salud Rural Talcuna | F49: =IFERROR(VLOOKUP(Tabla_SERIED_11_6[[#This Row],[IdEstablecimiento]],'[2]Establecimiento 2023'!$A$1:$E$183,5,FALSE),0) -> 04106-Vicuña | G49: 15900010 | H49: 2023-08-18T10:06:20 | I49: 13.6 | K49: 11.2 | L49: 2.4
A50: 7 | B50: 5 | C50: 2023 | D50: 105473 | E50: =IFERROR(VLOOKUP(Tabla_SERIED_11_6[[#This Row],[IdEstablecimiento]],'[2]Establecimiento 2023'!$A$1:$E$183,3,FALSE),0) -> 105473-Posta de Salud Rural Talcuna | F50: =IFERROR(VLOOKUP(Tabla_SERIED_11_6[[#This Row],[IdEstablecimiento]],'[2]Establecimiento 2023'!$A$1:$E$183,5,FALSE),0) -> 04106-Vicuña | G50: 16200210 | H50: 2023-08-18T10:06:20 | I50: 5 | J50: 5
A51: 7 | B51: 5 | C51: 2023 | D51: 105475 | E51: =IFERROR(VLOOKUP(Tabla_SERIED_11_6[[#This Row],[IdEstablecimiento]],'[2]Establecimiento 2023'!$A$1:$E$183,3,FALSE),0) -> 105475-Posta de Salud Rural Horcón (Paiguano) | F51: =IFERROR(VLOOKUP(Tabla_SERIED_11_6[[#This Row],[IdEstablecimiento]],'[2]Establecimiento 2023'!$A$1:$E$183,5,FALSE),0) -> 04105-Paihuano | G51: 15050200 | H51: 2023-08-18T10:07:21 | I51: 1 | K51: 1 | N51: 1
A52: 7 | B52: 5 | C52: 2023 | D52: 105475 | E52: =IFERROR(VLOOKUP(Tabla_SERIED_11_6[[#This Row],[IdEstablecimiento]],'[2]Establecimiento 2023'!$A$1:$E$183,3,FALSE),0) -> 105475-Posta de Salud Rural Horcón (Paiguano) | F52: =IFERROR(VLOOKUP(Tabla_SERIED_11_6[[#This Row],[IdEstablecimiento]],'[2]Establecimiento 2023'!$A$1:$E$183,5,FALSE),0) -> 04105-Paihuano | G52: 16200220 | H52: 2023-08-18T10:07:21 | I52: 1 | K52: 1
A53: 7 | B53: 5 | C53: 2023 | D53: 105476 | E53: =IFERROR(VLOOKUP(Tabla_SERIED_11_6[[#This Row],[IdEstablecimiento]],'[2]Establecimiento 2023'!$A$1:$E$183,3,FALSE),0) -> 105476-Posta de Salud Rural Monte Grande | F53: =IFERROR(VLOOKUP(Tabla_SERIED_11_6[[#This Row],[IdEstablecimiento]],'[2]Establecimiento 2023'!$A$1:$E$183,5,FALSE),0) -> 04105-Paihuano | G53: 15010200 | H53: 2023-08-18T10:07:51 | I53: 6 | O53: 4 | P53: 2
A54: 7 | B54: 5 | C54: 2023 | D54: 105476 | E54: =IFERROR(VLOOKUP(Tabla_SERIED_11_6[[#This Row],[IdEstablecimiento]],'[2]Establecimiento 2023'!$A$1:$E$183,3,FALSE),0) -> 105476-Posta de Salud Rural Monte Grande | F54: =IFERROR(VLOOKUP(Tabla_SERIED_11_6[[#This Row],[IdEstablecimiento]],'[2]Establecimiento 2023'!$A$1:$E$183,5,FALSE),0) -> 04105-Paihuano | G54: 15050100 | H54: 2023-08-18T10:07:51 | I54: 5 | J54: 2 | K54: 3 | O54: 2 | Q54: 2 | R54: 1
A55: 7 | B55: 5 | C55: 2023 | D55: 105476 | E55: =IFERROR(VLOOKUP(Tabla_SERIED_11_6[[#This Row],[IdEstablecimiento]],'[2]Establecimiento 2023'!$A$1:$E$183,3,FALSE),0) -> 105476-Posta de Salud Rural Monte Grande | F55: =IFERROR(VLOOKUP(Tabla_SERIED_11_6[[#This Row],[IdEstablecimiento]],'[2]Establecimiento 2023'!$A$1:$E$183,5,FALSE),0) -> 04105-Paihuano | G55: 16100300 | H55: 2023-08-18T10:07:51 | I55: 15 | J55: 7 | K55: 8
A56: 7 | B56: 5 | C56: 2023 | D56: 105477 | E56: =IFERROR(VLOOKUP(Tabla_SERIED_11_6[[#This Row],[IdEstablecimiento]],'[2]Establecimiento 2023'!$A$1:$E$183,3,FALSE),0) -> 105477-Posta de Salud Rural Pisco Elqui | F56: =IFERROR(VLOOKUP(Tabla_SERIED_11_6[[#This Row],[IdEstablecimiento]],'[2]Establecimiento 2023'!$A$1:$E$183,5,FALSE),0) -> 04105-Paihuano | G56: 15900010 | H56: 2023-08-18T10:08:53 | I56: 4 | K56: 4
A57: 7 | B57: 5 | C57: 2023 | D57: 105477 | E57: =IFERROR(VLOOKUP(Tabla_SERIED_11_6[[#This Row],[IdEstablecimiento]],'[2]Establecimiento 2023'!$A$1:$E$183,3,FALSE),0) -> 105477-Posta de Salud Rural Pisco Elqui | F57: =IFERROR(VLOOKUP(Tabla_SERIED_11_6[[#This Row],[IdEstablecimiento]],'[2]Establecimiento 2023'!$A$1:$E$183,5,FALSE),0) -> 04105-Paihuano | G57: 16200210 | H57: 2023-08-18T10:08:53 | I57: 1 | J57: 1
A58: 7 | B58: 5 | C58: 2023 | D58: 105479 | E58: =IFERROR(VLOOKUP(Tabla_SERIED_11_6[[#This Row],[IdEstablecimiento]],'[2]Establecimiento 2023'!$A$1:$E$183,3,FALSE),0) -> 105479-Posta de Salud Rural Guangualí | F58: =IFERROR(VLOOKUP(Tabla_SERIED_11_6[[#This Row],[IdEstablecimiento]],'[2]Establecimiento 2023'!$A$1:$E$183,5,FALSE),0) -> 04203-Los Vilos | G58: 16090300 | H58: 2023-08-18T10:09:54 | I58: 76 | J58: 76
A59: 7 | B59: 5 | C59: 2023 | D59: 105480 | E59: =IFERROR(VLOOKUP(Tabla_SERIED_11_6[[#This Row],[IdEstablecimiento]],'[2]Establecimiento 2023'!$A$1:$E$183,3,FALSE),0) -> 105480-Posta de Salud Rural Quilimarí | F59: =IFERROR(VLOOKUP(Tabla_SERIED_11_6[[#This Row],[IdEstablecimiento]],'[2]Establecimiento 2023'!$A$1:$E$183,5,FALSE),0) -> 04203-Los Vilos | G59: 15030100 | H59: 2023-08-18T10:10:30 | I59: 4.8 | L59: 4.8
A60: 7 | B60: 5 | C60: 2023 | D60: 105480 | E60: =IFERROR(VLOOKUP(Tabla_SERIED_11_6[[#This Row],[IdEstablecimiento]],'[2]Establecimiento 2023'!$A$1:$E$183,3,FALSE),0) -> 105480-Posta de Salud Rural Quilimarí | F60: =IFERROR(VLOOKUP(Tabla_SERIED_11_6[[#This Row],[IdEstablecimiento]],'[2]Establecimiento 2023'!$A$1:$E$183,5,FALSE),0) -> 04203-Los Vilos | G60: 15080014 | H60: 2023-08-18T10:10:30 | I60: 36 | M60: 22 | N60: 14
A61: 7 | B61: 5 | C61: 2023 | D61: 105481 | E61: =IFERROR(VLOOKUP(Tabla_SERIED_11_6[[#This Row],[IdEstablecimiento]],'[2]Establecimiento 2023'!$A$1:$E$183,3,FALSE),0) -> 105481-Posta de Salud Rural Tilama | F61: =IFERROR(VLOOKUP(Tabla_SERIED_11_6[[#This Row],[IdEstablecimiento]],'[2]Establecimiento 2023'!$A$1:$E$183,5,FALSE),0) -> 04203-Los Vilos | G61: 15900040 | H61: 2023-08-18T10:11:01 | I61: 2.8 | N61: 2.8
A62: 7 | B62: 5 | C62: 2023 | D62: 105481 | E62: =IFERROR(VLOOKUP(Tabla_SERIED_11_6[[#This Row],[IdEstablecimiento]],'[2]Establecimiento 2023'!$A$1:$E$183,3,FALSE),0) -> 105481-Posta de Salud Rural Tilama | F62: =IFERROR(VLOOKUP(Tabla_SERIED_11_6[[#This Row],[IdEstablecimiento]],'[2]Establecimiento 2023'!$A$1:$E$183,5,FALSE),0) -> 04203-Los Vilos | G62: 16090500 | H62: 2023-08-18T10:11:01 | I62: 3 | J62: 3
A63: 7 | B63: 5 | C63: 2023 | D63: 105483 | E63: =IFERROR(VLOOKUP(Tabla_SERIED_11_6[[#This Row],[IdEstablecimiento]],'[2]Establecimiento 2023'!$A$1:$E$183,3,FALSE),0) -> 105483-Posta de Salud Rural Los Rulos | F63: =IFERROR(VLOOKUP(Tabla_SERIED_11_6[[#This Row],[IdEstablecimiento]],'[2]Establecimiento 2023'!$A$1:$E$183,5,FALSE),0) -> 04202-Canela | G63: 15050100 | H63: 2023-08-18T10:16:23 | I63: 2 | J63: 1 | K63: 1 | R63: 2
A64: 7 | B64: 5 | C64: 2023 | D64: 105486 | E64: =IFERROR(VLOOKUP(Tabla_SERIED_11_6[[#This Row],[IdEstablecimiento]],'[2]Establecimiento 2023'!$A$1:$E$183,3,FALSE),0) -> 105486-Posta de Salud Rural Tunga Sur | F64: =IFERROR(VLOOKUP(Tabla_SERIED_11_6[[#This Row],[IdEstablecimiento]],'[2]Establecimiento 2023'!$A$1:$E$183,5,FALSE),0) -> 04201-Illapel | G64: 16090300 | H64: 2023-08-18T10:25:44 | I64: 56 | J64: 56
A65: 7 | B65: 5 | C65: 2023 | D65: 105491 | E65: =IFERROR(VLOOKUP(Tabla_SERIED_11_6[[#This Row],[IdEstablecimiento]],'[2]Establecimiento 2023'!$A$1:$E$183,3,FALSE),0) -> 105491-Posta de Salud Rural Quelén Bajo | F65: =IFERROR(VLOOKUP(Tabla_SERIED_11_6[[#This Row],[IdEstablecimiento]],'[2]Establecimiento 2023'!$A$1:$E$183,5,FALSE),0) -> 04204-Salamanca | G65: 15900070 | H65: 2023-08-18T10:28:37 | I65: 3.2 | L65: 3.2
A66: 7 | B66: 5 | C66: 2023 | D66: 105497 | E66: =IFERROR(VLOOKUP(Tabla_SERIED_11_6[[#This Row],[IdEstablecimiento]],'[2]Establecimiento 2023'!$A$1:$E$183,3,FALSE),0) -> 105497-Posta de Salud Rural Jabonería | F66: =IFERROR(VLOOKUP(Tabla_SERIED_11_6[[#This Row],[IdEstablecimiento]],'[2]Establecimiento 2023'!$A$1:$E$183,5,FALSE),0) -> 04202-Canela | G66: 15050100 | H66: 2023-08-18T10:39:56 | I66: 1 | J66: 1 | Q66: 1
A67: 7 | B67: 5 | C67: 2023 | D67: 105499 | E67: =IFERROR(VLOOKUP(Tabla_SERIED_11_6[[#This Row],[IdEstablecimiento]],'[2]Establecimiento 2023'!$A$1:$E$183,3,FALSE),0) -> 105499-Posta de Salud Rural Lambert | F67: =IFERROR(VLOOKUP(Tabla_SERIED_11_6[[#This Row],[IdEstablecimiento]],'[2]Establecimiento 2023'!$A$1:$E$183,5,FALSE),0) -> 04101-La Serena | G67: 15080008 | H67: 2023-08-18T10:40:48 | I67: 5 | Q67: 2 | U67: 3
A68: 7 | B68: 5 | C68: 2023 | D68: 105500 | E68: =IFERROR(VLOOKUP(Tabla_SERIED_11_6[[#This Row],[IdEstablecimiento]],'[2]Establecimiento 2023'!$A$1:$E$183,3,FALSE),0) -> 105500-Posta de Salud Rural Caleta Hornos | F68: =IFERROR(VLOOKUP(Tabla_SERIED_11_6[[#This Row],[IdEstablecimiento]],'[2]Establecimiento 2023'!$A$1:$E$183,5,FALSE),0) -> 04104-La Higuera | G68: 15080014 | H68: 2023-08-18T10:44:12 | I68: 30 | M68: 18 | N68: 12
A69: 7 | B69: 5 | C69: 2023 | D69: 105500 | E69: =IFERROR(VLOOKUP(Tabla_SERIED_11_6[[#This Row],[IdEstablecimiento]],'[2]Establecimiento 2023'!$A$1:$E$183,3,FALSE),0) -> 105500-Posta de Salud Rural Caleta Hornos | F69: =IFERROR(VLOOKUP(Tabla_SERIED_11_6[[#This Row],[IdEstablecimiento]],'[2]Establecimiento 2023'!$A$1:$E$183,5,FALSE),0) -> 04104-La Higuera | G69: 15900050 | H69: 2023-08-18T10:44:12 | I69: 1 | J69: 1 | O69: 1
A70: 7 | B70: 5 | C70: 2023 | D70: 105503 | E70: =IFERROR(VLOOKUP(Tabla_SERIED_11_6[[#This Row],[IdEstablecimiento]],'[2]Establecimiento 2023'!$A$1:$E$183,3,FALSE),0) -> 105503-Posta de Salud Rural Tabaqueros | F70: =IFERROR(VLOOKUP(Tabla_SERIED_11_6[[#This Row],[IdEstablecimiento]],'[2]Establecimiento 2023'!$A$1:$E$183,5,FALSE),0) -> 04305-Rio Hurtado | G70: 15010200 | H70: 2023-08-18T10:45:07 | I70: 6 | O70: 2 | P70: 4
A71: 7 | B71: 5 | C71: 2023 | D71: 105504 | E71: =IFERROR(VLOOKUP(Tabla_SERIED_11_6[[#This Row],[IdEstablecimiento]],'[2]Establecimiento 2023'!$A$1:$E$183,3,FALSE),0) -> 105504-Posta de Salud Rural Socavón | F71: =IFERROR(VLOOKUP(Tabla_SERIED_11_6[[#This Row],[IdEstablecimiento]],'[2]Establecimiento 2023'!$A$1:$E$183,5,FALSE),0) -> 04201-Illapel | G71: 15010200 | H71: 2023-08-18T10:45:32 | I71: 12 | O71: 6 | P71: 6
A72: 7 | B72: 5 | C72: 2023 | D72: 105506 | E72: =IFERROR(VLOOKUP(Tabla_SERIED_11_6[[#This Row],[IdEstablecimiento]],'[2]Establecimiento 2023'!$A$1:$E$183,3,FALSE),0) -> 105506-Posta de Salud Rural El Trapiche | F72: =IFERROR(VLOOKUP(Tabla_SERIED_11_6[[#This Row],[IdEstablecimiento]],'[2]Establecimiento 2023'!$A$1:$E$183,5,FALSE),0) -> 04104-La Higuera | G72: 15010200 | H72: 2023-08-18T10:46:29 | I72: 12 | O72: 4 | P72: 8
A73: 7 | B73: 5 | C73: 2023 | D73: 105506 | E73: =IFERROR(VLOOKUP(Tabla_SERIED_11_6[[#This Row],[IdEstablecimiento]],'[2]Establecimiento 2023'!$A$1:$E$183,3,FALSE),0) -> 105506-Posta de Salud Rural El Trapiche | F73: =IFERROR(VLOOKUP(Tabla_SERIED_11_6[[#This Row],[IdEstablecimiento]],'[2]Establecimiento 2023'!$A$1:$E$183,5,FALSE),0) -> 04104-La Higuera | G73: 15050200 | H73: 2023-08-18T10:46:29 | I73: 1 | J73: 1 | P73: 1
A74: 7 | B74: 5 | C74: 2023 | D74: 105507 | E74: =IFERROR(VLOOKUP(Tabla_SERIED_11_6[[#This Row],[IdEstablecimiento]],'[2]Establecimiento 2023'!$A$1:$E$183,3,FALSE),0) -> 105507-Posta de Salud Rural Huamalata | F74: =IFERROR(VLOOKUP(Tabla_SERIED_11_6[[#This Row],[IdEstablecimiento]],'[2]Establecimiento 2023'!$A$1:$E$183,5,FALSE),0) -> 04301-Ovalle | G74: 15080014 | H74: 2023-08-18T10:47:03 | I74: 16 | M74: 8 | N74: 8
A75: 7 | B75: 5 | C75: 2023 | D75: 105507 | E75: =IFERROR(VLOOKUP(Tabla_SERIED_11_6[[#This Row],[IdEstablecimiento]],'[2]Establecimiento 2023'!$A$1:$E$183,3,FALSE),0) -> 105507-Posta de Salud Rural Huamalata | F75: =IFERROR(VLOOKUP(Tabla_SERIED_11_6[[#This Row],[IdEstablecimiento]],'[2]Establecimiento 2023'!$A$1:$E$183,5,FALSE),0) -> 04301-Ovalle | G75: 16200210 | H75: 2023-08-18T10:47:03 | I75: 16 | J75: 16
A76: 7 | B76: 5 | C76: 2023 | D76: 105507 | E76: =IFERROR(VLOOKUP(Tabla_SERIED_11_6[[#This Row],[IdEstablecimiento]],'[2]Establecimiento 2023'!$A$1:$E$183,3,FALSE),0) -> 105507-Posta de Salud Rural Huamalata | F76: =IFERROR(VLOOKUP(Tabla_SERIED_11_6[[#This Row],[IdEstablecimiento]],'[2]Establecimiento 2023'!$A$1:$E$183,5,FALSE),0) -> 04301-Ovalle | G76: 16200220 | H76: 2023-08-18T10:47:03 | I76: 16 | J76: 4 | K76: 12
A77: 7 | B77: 5 | C77: 2023 | D77: 105508 | E77: =IFERROR(VLOOKUP(Tabla_SERIED_11_6[[#This Row],[IdEstablecimiento]],'[2]Establecimiento 2023'!$A$1:$E$183,3,FALSE),0) -> 105508-Posta de Salud Rural El Parral de Quiles | F77: =IFERROR(VLOOKUP(Tabla_SERIED_11_6[[#This Row],[IdEstablecimiento]],'[2]Establecimiento 2023'!$A$1:$E$183,5,FALSE),0) -> 04304-Punitaqui | G77: 15050100 | H77: 2023-08-18T10:47:30 | I77: 2 | J77: 1 | K77: 1 | Q77: 2
A78: 7 | B78: 5 | C78: 2023 | D78: 105510 | E78: =IFERROR(VLOOKUP(Tabla_SERIED_11_6[[#This Row],[IdEstablecimiento]],'[2]Establecimiento 2023'!$A$1:$E$183,3,FALSE),0) -> 105510-Posta de Salud Rural Recoleta | F78: =IFERROR(VLOOKUP(Tabla_SERIED_11_6[[#This Row],[IdEstablecimiento]],'[2]Establecimiento 2023'!$A$1:$E$183,5,FALSE),0) -> 04301-Ovalle | G78: 15080008 | H78: 2023-08-18T10:48:23 | I78: 12 | Q78: 8 | T78: 3 | U78: 1
A79: 7 | B79: 5 | C79: 2023 | D79: 105511 | E79: =IFERROR(VLOOKUP(Tabla_SERIED_11_6[[#This Row],[IdEstablecimiento]],'[2]Establecimiento 2023'!$A$1:$E$183,3,FALSE),0) -> 105511-Posta de Salud Rural Los Cóndores | F79: =IFERROR(VLOOKUP(Tabla_SERIED_11_6[[#This Row],[IdEstablecimiento]],'[2]Establecimiento 2023'!$A$1:$E$183,5,FALSE),0) -> 04203-Los Vilos | G79: 16090300 | H79: 2023-08-18T10:48:54 | I79: 50 | J79: 50
A80: 7 | B80: 5 | C80: 2023 | D80: 105701 | E80: =IFERROR(VLOOKUP(Tabla_SERIED_11_6[[#This Row],[IdEstablecimiento]],'[2]Establecimiento 2023'!$A$1:$E$183,3,FALSE),0) -> 105701-Centro Comunitario de Salud Familiar Villa Alemania | F80: =IFERROR(VLOOKUP(Tabla_SERIED_11_6[[#This Row],[IdEstablecimiento]],'[2]Establecimiento 2023'!$A$1:$E$183,5,FALSE),0) -> 04101-La Serena | G80: 15900010 | H80: 2023-08-18T10:49:54 | I80: 3.6 | K80: 2.7 | L80: 0.9
A81: 7 | B81: 5 | C81: 2023 | D81: 105701 | E81: =IFERROR(VLOOKUP(Tabla_SERIED_11_6[[#This Row],[IdEstablecimiento]],'[2]Establecimiento 2023'!$A$1:$E$183,3,FALSE),0) -> 105701-Centro Comunitario de Salud Familiar Villa Alemania | F81: =IFERROR(VLOOKUP(Tabla_SERIED_11_6[[#This Row],[IdEstablecimiento]],'[2]Establecimiento 2023'!$A$1:$E$183,5,FALSE),0) -> 04101-La Serena | G81: 16200210 | H81: 2023-08-18T10:49:54 | I81: 16 | J81: 16
A82: 7 | B82: 5 | C82: 2023 | D82: 105701 | E82: =IFERROR(VLOOKUP(Tabla_SERIED_11_6[[#This Row],[IdEstablecimiento]],'[2]Establecimiento 2023'!$A$1:$E$183,3,FALSE),0) -> 105701-Centro Comunitario de Salud Familiar Villa Alemania | F82: =IFERROR(VLOOKUP(Tabla_SERIED_11_6[[#This Row],[IdEstablecimiento]],'[2]Establecimiento 2023'!$A$1:$E$183,5,FALSE),0) -> 04101-La Serena | G82: 16200220 | H82: 2023-08-18T10:49:54 | I82: 16 | J82: 5 | K82: 11
A83: 7 | B83: 5 | C83: 2023 | D83: 105722 | E83: =IFERROR(VLOOKUP(Tabla_SERIED_11_6[[#This Row],[IdEstablecimiento]],'[2]Establecimiento 2023'!$A$1:$E$183,3,FALSE),0) -> 105722-Centro Comunitario de Salud Familiar San José de la Dehesa | F83: =IFERROR(VLOOKUP(Tabla_SERIED_11_6[[#This Row],[IdEstablecimiento]],'[2]Establecimiento 2023'!$A$1:$E$183,5,FALSE),0) -> 04301-Ovalle | G83: 15900020 | H83: 2023-08-18T10:51:15 | I83: 3.2 | J83: 1.6 | L83: 1.6
A84: 7 | B84: 5 | C84: 2023 | D84: 200258 | E84: =IFERROR(VLOOKUP(Tabla_SERIED_11_6[[#This Row],[IdEstablecimiento]],'[2]Establecimiento 2023'!$A$1:$E$183,3,FALSE),0) -> 200258-Centro Comunitario de Salud Familiar Los Copihues | F84: =IFERROR(VLOOKUP(Tabla_SERIED_11_6[[#This Row],[IdEstablecimiento]],'[2]Establecimiento 2023'!$A$1:$E$183,5,FALSE),0) -> 04301-Ovalle | G84: 15080014 | H84: 2023-08-18T11:08:51 | I84: 58 | M84: 28 | N84: 30
A85: 7 | B85: 5 | C85: 2023 | D85: 200258 | E85: =IFERROR(VLOOKUP(Tabla_SERIED_11_6[[#This Row],[IdEstablecimiento]],'[2]Establecimiento 2023'!$A$1:$E$183,3,FALSE),0) -> 200258-Centro Comunitario de Salud Familiar Los Copihues | F85: =IFERROR(VLOOKUP(Tabla_SERIED_11_6[[#This Row],[IdEstablecimiento]],'[2]Establecimiento 2023'!$A$1:$E$183,5,FALSE),0) -> 04301-Ovalle | G85: 15900010 | H85: 2023-08-18T11:08:51 | I85: 16.8 | J85: 0 | K85: 1.6 | L85: 15.2
A86: 7 | B86: 5 | C86: 2023 | D86: 200258 | E86: =IFERROR(VLOOKUP(Tabla_SERIED_11_6[[#This Row],[IdEstablecimiento]],'[2]Establecimiento 2023'!$A$1:$E$183,3,FALSE),0) -> 200258-Centro Comunitario de Salud Familiar Los Copihues | F86: =IFERROR(VLOOKUP(Tabla_SERIED_11_6[[#This Row],[IdEstablecimiento]],'[2]Establecimiento 2023'!$A$1:$E$183,5,FALSE),0) -> 04301-Ovalle | G86: 15901200 | H86: 2023-08-18T11:08:51 | I86: 3.6 | J86: 0 | K86: 0 | L86: 0 | M86: 3.6 | N86: 0
A87: 7 | B87: 5 | C87: 2023 | D87: 200273 | E87: =IFERROR(VLOOKUP(Tabla_SERIED_11_6[[#This Row],[IdEstablecimiento]],'[2]Establecimiento 2023'!$A$1:$E$183,3,FALSE),0) -> 200273-Centro Comunitario de Salud Familiar Punta Mira | F87: =IFERROR(VLOOKUP(Tabla_SERIED_11_6[[#This Row],[IdEstablecimiento]],'[2]Establecimiento 2023'!$A$1:$E$183,5,FALSE),0) -> 04102-Coquimbo | G87: 15080008 | H87: 2023-08-18T11:09:21 | I87: 27 | Q87: 8 | S87: 12 | T87: 0 | U87: 7
A88: 7 | B88: 5 | C88: 2023 | D88: 200273 | E88: =IFERROR(VLOOKUP(Tabla_SERIED_11_6[[#This Row],[IdEstablecimiento]],'[2]Establecimiento 2023'!$A$1:$E$183,3,FALSE),0) -> 200273-Centro Comunitario de Salud Familiar Punta Mira | F88: =IFERROR(VLOOKUP(Tabla_SERIED_11_6[[#This Row],[IdEstablecimiento]],'[2]Establecimiento 2023'!$A$1:$E$183,5,FALSE),0) -> 04102-Coquimbo | G88: 15080014 | H88: 2023-08-18T11:09:21 | I88: 20 | M88: 4 | N88: 16 | O88: 0 | P88: 0 | Q88: 0 | R88: 0 | S88: 0 | T88: 0 | U88: 0
A89: 7 | B89: 5 | C89: 2023 | D89: 200366 | E89: =IFERROR(VLOOKUP(Tabla_SERIED_11_6[[#This Row],[IdEstablecimiento]],'[2]Establecimiento 2023'!$A$1:$E$183,3,FALSE),0) -> 200366-Centro de Salud Familiar Urbano de Illapel | F89: =IFERROR(VLOOKUP(Tabla_SERIED_11_6[[#This Row],[IdEstablecimiento]],'[2]Establecimiento 2023'!$A$1:$E$183,5,FALSE),0) -> 04201-Illapel | G89: 15900030 | H89: 2023-08-18T11:09:47 | I89: 2 | L89: 2
A90: 7 | B90: 5 | C90: 2023 | D90: 200402 | E90: =IFERROR(VLOOKUP(Tabla_SERIED_11_6[[#This Row],[IdEstablecimiento]],'[2]Establecimiento 2023'!$A$1:$E$183,3,FALSE),0) -> 200402-Centro Comunitario de Salud Familiar Arcos de Pinamar | F90: =IFERROR(VLOOKUP(Tabla_SERIED_11_6[[#This Row],[IdEstablecimiento]],'[2]Establecimiento 2023'!$A$1:$E$183,5,FALSE),0) -> 04101-La Serena | G90: 16100300 | H90: 2023-08-18T11:11:34 | I90: 64 | J90: 31 | K90: 33
A91: 7 | B91: 5 | C91: 2023 | D91: 200494 | E91: =IFERROR(VLOOKUP(Tabla_SERIED_11_6[[#This Row],[IdEstablecimiento]],'[2]Establecimiento 2023'!$A$1:$E$183,3,FALSE),0) -> 200494-Centro de Salud Familiar El Sauce | F91: =IFERROR(VLOOKUP(Tabla_SERIED_11_6[[#This Row],[IdEstablecimiento]],'[2]Establecimiento 2023'!$A$1:$E$183,5,FALSE),0) -> 04102-Coquimbo | G91: 15010500 | H91: 2023-08-18T11:11:57 | I91: 24 | L91: 2 | M91: 8 | N91: 2 | O91: 8 | P91: 4
A92: 7 | B92: 5 | C92: 2023 | D92: 200494 | E92: =IFERROR(VLOOKUP(Tabla_SERIED_11_6[[#This Row],[IdEstablecimiento]],'[2]Establecimiento 2023'!$A$1:$E$183,3,FALSE),0) -> 200494-Centro de Salud Familiar El Sauce | F92: =IFERROR(VLOOKUP(Tabla_SERIED_11_6[[#This Row],[IdEstablecimiento]],'[2]Establecimiento 2023'!$A$1:$E$183,5,FALSE),0) -> 04102-Coquimbo | G92: 16090300 | H92: 2023-08-18T11:11:57 | I92: 336 | J92: 336
A93: 7 | B93: 5 | C93: 2023 | D93: 200494 | E93: =IFERROR(VLOOKUP(Tabla_SERIED_11_6[[#This Row],[IdEstablecimiento]],'[2]Establecimiento 2023'!$A$1:$E$183,3,FALSE),0) -> 200494-Centro de Salud Familiar El Sauce | F93: =IFERROR(VLOOKUP(Tabla_SERIED_11_6[[#This Row],[IdEstablecimiento]],'[2]Establecimiento 2023'!$A$1:$E$183,5,FALSE),0) -> 04102-Coquimbo | G93: 16200220 | H93: 2023-08-18T11:11:57 | I93: 44 | J93: 16 | K93: 28
A94: 7 | B94: 5 | C94: 2023 | D94: 200538 | E94: =IFERROR(VLOOKUP(Tabla_SERIED_11_6[[#This Row],[IdEstablecimiento]],'[2]Establecimiento 2023'!$A$1:$E$183,3,FALSE),0) -> 200538-Centro de Salud Familiar San Isidro Calingasta | F94: =IFERROR(VLOOKUP(Tabla_SERIED_11_6[[#This Row],[IdEstablecimiento]],'[2]Establecimiento 2023'!$A$1:$E$183,5,FALSE),0) -> 04106-Vicuña | G94: 15010500 | H94: 2023-08-18T11:12:48 | I94: 10 | N94: 2 | O94: 8
A95: 7 | B95: 5 | C95: 2023 | D95: 200538 | E95: =IFERROR(VLOOKUP(Tabla_SERIED_11_6[[#This Row],[IdEstablecimiento]],'[2]Establecimiento 2023'!$A$1:$E$183,3,FALSE),0) -> 200538-Centro de Salud Familiar San Isidro Calingasta | F95: =IFERROR(VLOOKUP(Tabla_SERIED_11_6[[#This Row],[IdEstablecimiento]],'[2]Establecimiento 2023'!$A$1:$E$183,5,FALSE),0) -> 04106-Vicuña | G95: 15900010 | H95: 2023-08-18T11:12:48 | I95: 26.4 | J95: 2.4 | L95: 24
A96: 7 | B96: 5 | C96: 2023 | D96: 200569 | E96: =IFERROR(VLOOKUP(Tabla_SERIED_11_6[[#This Row],[IdEstablecimiento]],'[2]Establecimiento 2023'!$A$1:$E$183,3,FALSE),0) -> 200569-Centro de Salud Familiar Fray Jorge | F96: =IFERROR(VLOOKUP(Tabla_SERIED_11_6[[#This Row],[IdEstablecimiento]],'[2]Establecimiento 2023'!$A$1:$E$183,5,FALSE),0) -> 04301-Ovalle | G96: 15010200 | H96: 2023-08-18T11:13:13 | I96: 464 | O96: 262 | P96: 202
A97: 7 | B97: 5 | C97: 2023 | D97: 200569 | E97: =IFERROR(VLOOKUP(Tabla_SERIED_11_6[[#This Row],[IdEstablecimiento]],'[2]Establecimiento 2023'!$A$1:$E$183,3,FALSE),0) -> 200569-Centro de Salud Familiar Fray Jorge | F97: =IFERROR(VLOOKUP(Tabla_SERIED_11_6[[#This Row],[IdEstablecimiento]],'[2]Establecimiento 2023'!$A$1:$E$183,5,FALSE),0) -> 04301-Ovalle | G97: 15010400 | H97: 2023-08-18T11:13:13 | I97: 2 | O97: 2 | P97: 0
A98: 7 | B98: 5 | C98: 2023 | D98: 105104 | E98: =IFERROR(VLOOKUP(Tabla_SERIED_11_6[[#This Row],[IdEstablecimiento]],'[2]Establecimiento 2023'!$A$1:$E$183,3,FALSE),0) -> 105104-Hospital de Salamanca | F98: =IFERROR(VLOOKUP(Tabla_SERIED_11_6[[#This Row],[IdEstablecimiento]],'[2]Establecimiento 2023'!$A$1:$E$183,5,FALSE),0) -> 105104-Hospital Salamanca | G98: 15080008 | H98: 2023-08-18T07:49:07 | I98: 76 | Q98: 40 | S98: 30 | T98: 0 | U98: 6
A99: 7 | B99: 5 | C99: 2023 | D99: 105104 | E99: =IFERROR(VLOOKUP(Tabla_SERIED_11_6[[#This Row],[IdEstablecimiento]],'[2]Establecimiento 2023'!$A$1:$E$183,3,FALSE),0) -> 105104-Hospital de Salamanca | F99: =IFERROR(VLOOKUP(Tabla_SERIED_11_6[[#This Row],[IdEstablecimiento]],'[2]Establecimiento 2023'!$A$1:$E$183,5,FALSE),0) -> 105104-Hospital Salamanca | G99: 15900040 | H99: 2023-08-18T07:49:07 | I99: 3.2 | L99: 3.2
A100: 7 | B100: 5 | C100: 2023 | D100: 105104 | E100: =IFERROR(VLOOKUP(Tabla_SERIED_11_6[[#This Row],[IdEstablecimiento]],'[2]Establecimiento 2023'!$A$1:$E$183,3,FALSE),0) -> 105104-Hospital de Salamanca | F100: =IFERROR(VLOOKUP(Tabla_SERIED_11_6[[#This Row],[IdEstablecimiento]],'[2]Establecimiento 2023'!$A$1:$E$183,5,FALSE),0) -> 105104-Hospital Salamanca | G100: 15901200 | H100: 2023-08-18T07:49:07 | I100: 4.4 | L100: 4.4
A101: 7 | B101: 5 | C101: 2023 | D101: 105105 | E101: =IFERROR(VLOOKUP(Tabla_SERIED_11_6[[#This Row],[IdEstablecimiento]],'[2]Establecimiento 2023'!$A$1:$E$183,3,FALSE),0) -> 105105-Hospital San Juan de Dios (Combarbalá) | F101: =IFERROR(VLOOKUP(Tabla_SERIED_11_6[[#This Row],[IdEstablecimiento]],'[2]Establecimiento 2023'!$A$1:$E$183,5,FALSE),0) -> 105105-Hospital Combarbalá | G101: 15080008 | H101: 2023-08-18T07:55:46 | I101: 61 | Q101: 16 | S101: 28 | T101: 3 | U101: 14
A102: 7 | B102: 5 | C102: 2023 | D102: 105105 | E102: =IFERROR(VLOOKUP(Tabla_SERIED_11_6[[#This Row],[IdEstablecimiento]],'[2]Establecimiento 2023'!$A$1:$E$183,3,FALSE),0) -> 105105-Hospital San Juan de Dios (Combarbalá) | F102: =IFERROR(VLOOKUP(Tabla_SERIED_11_6[[#This Row],[IdEstablecimiento]],'[2]Establecimiento 2023'!$A$1:$E$183,5,FALSE),0) -> 105105-Hospital Combarbalá | G102: 15900030 | H102: 2023-08-18T07:55:46 | I102: 11.2 | L102: 2.8 | M102: 4.4 | N102: 4
A103: 7 | B103: 5 | C103: 2023 | D103: 105106 | E103: =IFERROR(VLOOKUP(Tabla_SERIED_11_6[[#This Row],[IdEstablecimiento]],'[2]Establecimiento 2023'!$A$1:$E$183,3,FALSE),0) -> 105106-Hospital Dr. José Arraño (Andacollo) | F103: =IFERROR(VLOOKUP(Tabla_SERIED_11_6[[#This Row],[IdEstablecimiento]],'[2]Establecimiento 2023'!$A$1:$E$183,5,FALSE),0) -> 105106-Hospital Andacollo | G103: 15020200 | H103: 2023-08-18T07:56:41 | I103: 4 | O103: 4
A104: 7 | B104: 5 | C104: 2023 | D104: 105106 | E104: =IFERROR(VLOOKUP(Tabla_SERIED_11_6[[#This Row],[IdEstablecimiento]],'[2]Establecimiento 2023'!$A$1:$E$183,3,FALSE),0) -> 105106-Hospital Dr. José Arraño (Andacollo) | F104: =IFERROR(VLOOKUP(Tabla_SERIED_11_6[[#This Row],[IdEstablecimiento]],'[2]Establecimiento 2023'!$A$1:$E$183,5,FALSE),0) -> 105106-Hospital Andacollo | G104: 15900010 | H104: 2023-08-18T07:56:41 | I104: 84.8 | J104: 9.6 | K104: 22.4 | L104: 52.8
A105: 7 | B105: 5 | C105: 2023 | D105: 105107 | E105: =IFERROR(VLOOKUP(Tabla_SERIED_11_6[[#This Row],[IdEstablecimiento]],'[2]Establecimiento 2023'!$A$1:$E$183,3,FALSE),0) -> 105107-Hospital San Juan de Dios (Vicuña) | F105: =IFERROR(VLOOKUP(Tabla_SERIED_11_6[[#This Row],[IdEstablecimiento]],'[2]Establecimiento 2023'!$A$1:$E$183,5,FALSE),0) -> 105107-Hospital Vicuña | G105: 16200220 | H105: 2023-08-18T07:57:30 | I105: 13 | J105: 3 | K105: 10
A106: 7 | B106: 5 | C106: 2023 | D106: 105108 | E106: =IFERROR(VLOOKUP(Tabla_SERIED_11_6[[#This Row],[IdEstablecimiento]],'[2]Establecimiento 2023'!$A$1:$E$183,3,FALSE),0) -> 105108-Hospital San Pedro (Los Vilos) | F106: =IFERROR(VLOOKUP(Tabla_SERIED_11_6[[#This Row],[IdEstablecimiento]],'[2]Establecimiento 2023'!$A$1:$E$183,5,FALSE),0) -> 105108-Hospital Los Vilos | G106: 15010200 | H106: 2023-08-18T07:58:46 | I106: 36 | O106: 26 | P106: 10
A107: 7 | B107: 5 | C107: 2023 | D107: 105108 | E107: =IFERROR(VLOOKUP(Tabla_SERIED_11_6[[#This Row],[IdEstablecimiento]],'[2]Establecimiento 2023'!$A$1:$E$183,3,FALSE),0) -> 105108-Hospital San Pedro (Los Vilos) | F107: =IFERROR(VLOOKUP(Tabla_SERIED_11_6[[#This Row],[IdEstablecimiento]],'[2]Establecimiento 2023'!$A$1:$E$183,5,FALSE),0) -> 105108-Hospital Los Vilos | G107: 15900010 | H107: 2023-08-18T07:58:46 | I107: 220 | J107: 24.8 | K107: 53.6 | L107: 141.6
A108: 7 | B108: 5 | C108: 2023 | D108: 105108 | E108: =IFERROR(VLOOKUP(Tabla_SERIED_11_6[[#This Row],[IdEstablecimiento]],'[2]Establecimiento 2023'!$A$1:$E$183,3,FALSE),0) -> 105108-Hospital San Pedro (Los Vilos) | F108: =IFERROR(VLOOKUP(Tabla_SERIED_11_6[[#This Row],[IdEstablecimiento]],'[2]Establecimiento 2023'!$A$1:$E$183,5,FALSE),0) -> 105108-Hospital Los Vilos | G108: 15900040 | H108: 2023-08-18T07:58:46 | I108: 10.8 | K108: 2.4 | L108: 3.6 | M108: 4.8
A109: 7 | B109: 5 | C109: 2023 | D109: 105300 | E109: =IFERROR(VLOOKUP(Tabla_SERIED_11_6[[#This Row],[IdEstablecimiento]],'[2]Establecimiento 2023'!$A$1:$E$183,3,FALSE),0) -> 105300-Centro de Salud Familiar Cardenal Caro | F109: =IFERROR(VLOOKUP(Tabla_SERIED_11_6[[#This Row],[IdEstablecimiento]],'[2]Establecimiento 2023'!$A$1:$E$183,5,FALSE),0) -> 04101-La Serena | G109: 15050200 | H109: 2023-08-18T07:59:29 | I109: 6 | J109: 2 | K109: 4 | R109: 2 | T109: 4
A110: 7 | B110: 5 | C110: 2023 | D110: 105300 | E110: =IFERROR(VLOOKUP(Tabla_SERIED_11_6[[#This Row],[IdEstablecimiento]],'[2]Establecimiento 2023'!$A$1:$E$183,3,FALSE),0) -> 105300-Centro de Salud Familiar Cardenal Caro | F110: =IFERROR(VLOOKUP(Tabla_SERIED_11_6[[#This Row],[IdEstablecimiento]],'[2]Establecimiento 2023'!$A$1:$E$183,5,FALSE),0) -> 04101-La Serena | G110: 15080015 | H110: 2023-08-18T07:59:29 | I110: 335 | O110: 196 | P110: 139
A111: 7 | B111: 5 | C111: 2023 | D111: 105300 | E111: =IFERROR(VLOOKUP(Tabla_SERIED_11_6[[#This Row],[IdEstablecimiento]],'[2]Establecimiento 2023'!$A$1:$E$183,3,FALSE),0) -> 105300-Centro de Salud Familiar Cardenal Caro | F111: =IFERROR(VLOOKUP(Tabla_SERIED_11_6[[#This Row],[IdEstablecimiento]],'[2]Establecimiento 2023'!$A$1:$E$183,5,FALSE),0) -> 04101-La Serena | G111: 15080019 | H111: 2023-08-18T07:59:29 | I111: 24 | O111: 18 | P111: 6
A112: 7 | B112: 5 | C112: 2023 | D112: 105300 | E112: =IFERROR(VLOOKUP(Tabla_SERIED_11_6[[#This Row],[IdEstablecimiento]],'[2]Establecimiento 2023'!$A$1:$E$183,3,FALSE),0) -> 105300-Centro de Salud Familiar Cardenal Caro | F112: =IFERROR(VLOOKUP(Tabla_SERIED_11_6[[#This Row],[IdEstablecimiento]],'[2]Establecimiento 2023'!$A$1:$E$183,5,FALSE),0) -> 04101-La Serena | G112: 16090300 | H112: 2023-08-18T07:59:29 | I112: 1165 | J112: 1165
A113: 7 | B113: 5 | C113: 2023 | D113: 105301 | E113: =IFERROR(VLOOKUP(Tabla_SERIED_11_6[[#This Row],[IdEstablecimiento]],'[2]Establecimiento 2023'!$A$1:$E$183,3,FALSE),0) -> 105301-Centro de Salud Familiar Las Compañías | F113: =IFERROR(VLOOKUP(Tabla_SERIED_11_6[[#This Row],[IdEstablecimiento]],'[2]Establecimiento 2023'!$A$1:$E$183,5,FALSE),0) -> 04101-La Serena | G113: 15060100 | H113: 2023-08-18T08:00:07 | I113: 7 | J113: 5 | K113: 2 | N113: 1 | O113: 3 | P113: 2 | Q113: 1
A114: 7 | B114: 5 | C114: 2023 | D114: 105301 | E114: =IFERROR(VLOOKUP(Tabla_SERIED_11_6[[#This Row],[IdEstablecimiento]],'[2]Establecimiento 2023'!$A$1:$E$183,3,FALSE),0) -> 105301-Centro de Salud Familiar Las Compañías | F114: =IFERROR(VLOOKUP(Tabla_SERIED_11_6[[#This Row],[IdEstablecimiento]],'[2]Establecimiento 2023'!$A$1:$E$183,5,FALSE),0) -> 04101-La Serena | G114: 15080019 | H114: 2023-08-18T08:00:07 | I114: 2 | O114: 2
A115: 7 | B115: 5 | C115: 2023 | D115: 105301 | E115: =IFERROR(VLOOKUP(Tabla_SERIED_11_6[[#This Row],[IdEstablecimiento]],'[2]Establecimiento 2023'!$A$1:$E$183,3,FALSE),0) -> 105301-Centro de Salud Familiar Las Compañías | F115: =IFERROR(VLOOKUP(Tabla_SERIED_11_6[[#This Row],[IdEstablecimiento]],'[2]Establecimiento 2023'!$A$1:$E$183,5,FALSE),0) -> 04101-La Serena | G115: 16100300 | H115: 2023-08-18T08:00:07 | I115: 680 | J115: 271 | K115: 409
A116: 7 | B116: 5 | C116: 2023 | D116: 105301 | E116: =IFERROR(VLOOKUP(Tabla_SERIED_11_6[[#This Row],[IdEstablecimiento]],'[2]Establecimiento 2023'!$A$1:$E$183,3,FALSE),0) -> 105301-Centro de Salud Familiar Las Compañías | F116: =IFERROR(VLOOKUP(Tabla_SERIED_11_6[[#This Row],[IdEstablecimiento]],'[2]Establecimiento 2023'!$A$1:$E$183,5,FALSE),0) -> 04101-La Serena | G116: 16100600 | H116: 2023-08-18T08:00:07 | I116: 2 | J116: 0 | K116: 2
A117: 7 | B117: 5 | C117: 2023 | D117: 105303 | E117: =IFERROR(VLOOKUP(Tabla_SERIED_11_6[[#This Row],[IdEstablecimiento]],'[2]Establecimiento 2023'!$A$1:$E$183,3,FALSE),0) -> 105303-Centro de Salud Familiar San Juan | F117: =IFERROR(VLOOKUP(Tabla_SERIED_11_6[[#This Row],[IdEstablecimiento]],'[2]Establecimiento 2023'!$A$1:$E$183,5,FALSE),0) -> 04102-Coquimbo | G117: 15080009 | H117: 2023-10-17T09:58:05 | I117: 6 | R117: 6 | S117: 0 | T117: 0 | U117: 0
A118: 7 | B118: 5 | C118: 2023 | D118: 105303 | E118: =IFERROR(VLOOKUP(Tabla_SERIED_11_6[[#This Row],[IdEstablecimiento]],'[2]Establecimiento 2023'!$A$1:$E$183,3,FALSE),0) -> 105303-Centro de Salud Familiar San Juan | F118: =IFERROR(VLOOKUP(Tabla_SERIED_11_6[[#This Row],[IdEstablecimiento]],'[2]Establecimiento 2023'!$A$1:$E$183,5,FALSE),0) -> 04102-Coquimbo | G118: 15080015 | H118: 2023-10-17T09:58:05 | I118: 193 | O118: 106 | P118: 87
A119: 7 | B119: 5 | C119: 2023 | D119: 105304 | E119: =IFERROR(VLOOKUP(Tabla_SERIED_11_6[[#This Row],[IdEstablecimiento]],'[2]Establecimiento 2023'!$A$1:$E$183,3,FALSE),0) -> 105304-Centro de Salud Familiar Santa Cecilia | F119: =IFERROR(VLOOKUP(Tabla_SERIED_11_6[[#This Row],[IdEstablecimiento]],'[2]Establecimiento 2023'!$A$1:$E$183,5,FALSE),0) -> 04102-Coquimbo | G119: 15080009 | H119: 2023-08-18T08:01:59 | I119: 6 | R119: 6 | S119: 0 | T119: 0 | U119: 0
A120: 7 | B120: 5 | C120: 2023 | D120: 105307 | E120: =IFERROR(VLOOKUP(Tabla_SERIED_11_6[[#This Row],[IdEstablecimiento]],'[2]Establecimiento 2023'!$A$1:$E$183,3,FALSE),0) -> 105307-Centro de Salud Familiar Monte Patria | F120: =IFERROR(VLOOKUP(Tabla_SERIED_11_6[[#This Row],[IdEstablecimiento]],'[2]Establecimiento 2023'!$A$1:$E$183,5,FALSE),0) -> 04303-Monte Patria | G120: 15010500 | H120: 2023-10-17T10:01:52 | I120: 6 | L120: 4 | N120: 2
A121: 7 | B121: 5 | C121: 2023 | D121: 105308 | E121: =IFERROR(VLOOKUP(Tabla_SERIED_11_6[[#This Row],[IdEstablecimiento]],'[2]Establecimiento 2023'!$A$1:$E$183,3,FALSE),0) -> 105308-Centro de Salud Familiar Punitaqui | F121: =IFERROR(VLOOKUP(Tabla_SERIED_11_6[[#This Row],[IdEstablecimiento]],'[2]Establecimiento 2023'!$A$1:$E$183,5,FALSE),0) -> 04304-Punitaqui | G121: 15080014 | H121: 2023-08-18T08:04:29 | I121: 156 | M121: 78 | N121: 78
A122: 7 | B122: 5 | C122: 2023 | D122: 105311 | E122: =IFERROR(VLOOKUP(Tabla_SERIED_11_6[[#This Row],[IdEstablecimiento]],'[2]Establecimiento 2023'!$A$1:$E$183,3,FALSE),0) -> 105311-Centro de Salud Familiar Chañaral Alto | F122: =IFERROR(VLOOKUP(Tabla_SERIED_11_6[[#This Row],[IdEstablecimiento]],'[2]Establecimiento 2023'!$A$1:$E$183,5,FALSE),0) -> 04303-Monte Patria | G122: 15050100 | H122: 2023-10-17T10:04:21 | I122: 112 | J122: 48 | K122: 64 | N122: 11 | O122: 16 | P122: 12 | Q122: 27 | R122: 20 | S122: 15 | U122: 7 | W122: 4
A123: 7 | B123: 5 | C123: 2023 | D123: 105313 | E123: =IFERROR(VLOOKUP(Tabla_SERIED_11_6[[#This Row],[IdEstablecimiento]],'[2]Establecimiento 2023'!$A$1:$E$183,3,FALSE),0) -> 105313-Centro de Salud Familiar Dr. Emilio Schaffhauser | F123: =IFERROR(VLOOKUP(Tabla_SERIED_11_6[[#This Row],[IdEstablecimiento]],'[2]Establecimiento 2023'!$A$1:$E$183,5,FALSE),0) -> 04101-La Serena | G123: 15010500 | H123: 2023-08-18T08:07:08 | I123: 24 | M123: 2 | N123: 4 | O123: 8 | P123: 10
A124: 7 | B124: 5 | C124: 2023 | D124: 105315 | E124: =IFERROR(VLOOKUP(Tabla_SERIED_11_6[[#This Row],[IdEstablecimiento]],'[2]Establecimiento 2023'!$A$1:$E$183,3,FALSE),0) -> 105315-Centro de Salud Familiar Cerrillos de Tamaya | F124: =IFERROR(VLOOKUP(Tabla_SERIED_11_6[[#This Row],[IdEstablecimiento]],'[2]Establecimiento 2023'!$A$1:$E$183,5,FALSE),0) -> 04301-Ovalle | G124: 15050100 | H124: 2023-08-18T08:08:23 | I124: 239 | J124: 71 | K124: 168 | L124: 6 | M124: 6 | N124: 12 | O124: 34 | P124: 26 | Q124: 50 | R124: 37 | S124: 35 | U124: 16 | V124: 10 | W124: 7
A125: 7 | B125: 5 | C125: 2023 | D125: 105315 | E125: =IFERROR(VLOOKUP(Tabla_SERIED_11_6[[#This Row],[IdEstablecimiento]],'[2]Establecimiento 2023'!$A$1:$E$183,3,FALSE),0) -> 105315-Centro de Salud Familiar Cerrillos de Tamaya | F125: =IFERROR(VLOOKUP(Tabla_SERIED_11_6[[#This Row],[IdEstablecimiento]],'[2]Establecimiento 2023'!$A$1:$E$183,5,FALSE),0) -> 04301-Ovalle | G125: 15900030 | H125: 2023-08-18T08:08:23 | I125: 4.4 | J125: 4.4
A126: 7 | B126: 5 | C126: 2023 | D126: 105315 | E126: =IFERROR(VLOOKUP(Tabla_SERIED_11_6[[#This Row],[IdEstablecimiento]],'[2]Establecimiento 2023'!$A$1:$E$183,3,FALSE),0) -> 105315-Centro de Salud Familiar Cerrillos de Tamaya | F126: =IFERROR(VLOOKUP(Tabla_SERIED_11_6[[#This Row],[IdEstablecimiento]],'[2]Establecimiento 2023'!$A$1:$E$183,5,FALSE),0) -> 04301-Ovalle | G126: 16100300 | H126: 2023-08-18T08:08:23 | I126: 294 | J126: 142 | K126: 152
A127: 7 | B127: 5 | C127: 2023 | D127: 105317 | E127: =IFERROR(VLOOKUP(Tabla_SERIED_11_6[[#This Row],[IdEstablecimiento]],'[2]Establecimiento 2023'!$A$1:$E$183,3,FALSE),0) -> 105317-Centro de Salud Familiar Jorge Jordán Domic | F127: =IFERROR(VLOOKUP(Tabla_SERIED_11_6[[#This Row],[IdEstablecimiento]],'[2]Establecimiento 2023'!$A$1:$E$183,5,FALSE),0) -> 04301-Ovalle | G127: 15080015 | H127: 2023-08-18T08:08:52 | I127: 533 | O127: 268 | P127: 265
A128: 7 | B128: 5 | C128: 2023 | D128: 105318 | E128: =IFERROR(VLOOKUP(Tabla_SERIED_11_6[[#This Row],[IdEstablecimiento]],'[2]Establecimiento 2023'!$A$1:$E$183,3,FALSE),0) -> 105318-Centro de Salud Familiar El Palqui | F128: =IFERROR(VLOOKUP(Tabla_SERIED_11_6[[#This Row],[IdEstablecimiento]],'[2]Establecimiento 2023'!$A$1:$E$183,5,FALSE),0) -> 04303-Monte Patria | G128: 15080016 | H128: 2023-08-18T08:09:26 | I128: 22 | M128: 6 | N128: 2 | O128: 12 | P128: 2
A129: 7 | B129: 5 | C129: 2023 | D129: 105318 | E129: =IFERROR(VLOOKUP(Tabla_SERIED_11_6[[#This Row],[IdEstablecimiento]],'[2]Establecimiento 2023'!$A$1:$E$183,3,FALSE),0) -> 105318-Centro de Salud Familiar El Palqui | F129: =IFERROR(VLOOKUP(Tabla_SERIED_11_6[[#This Row],[IdEstablecimiento]],'[2]Establecimiento 2023'!$A$1:$E$183,5,FALSE),0) -> 04303-Monte Patria | G129: 15900040 | H129: 2023-08-18T08:09:26 | I129: 12 | L129: 8.8 | M129: 3.2
A130: 7 | B130: 5 | C130: 2023 | D130: 105319 | E130: =IFERROR(VLOOKUP(Tabla_SERIED_11_6[[#This Row],[IdEstablecimiento]],'[2]Establecimiento 2023'!$A$1:$E$183,3,FALSE),0) -> 105319-Centro de Salud Familiar Cardenal Raúl Silva Henríquez de La Serena | F130: =IFERROR(VLOOKUP(Tabla_SERIED_11_6[[#This Row],[IdEstablecimiento]],'[2]Establecimiento 2023'!$A$1:$E$183,5,FALSE),0) -> 04101-La Serena | G130: 16100100 | H130: 2023-08-18T08:10:17 | I130: 12 | J130: 6 | K130: 6
A131: 7 | B131: 5 | C131: 2023 | D131: 105321 | E131: =IFERROR(VLOOKUP(Tabla_SERIED_11_6[[#This Row],[IdEstablecimiento]],'[2]Establecimiento 2023'!$A$1:$E$183,3,FALSE),0) -> 105321-Centro de Salud Familiar Tongoy | F131: =IFERROR(VLOOKUP(Tabla_SERIED_11_6[[#This Row],[IdEstablecimiento]],'[2]Establecimiento 2023'!$A$1:$E$183,5,FALSE),0) -> 04102-Coquimbo | G131: 15010500 | H131: 2023-08-18T08:11:01 | I131: 8 | L131: 2 | M131: 2 | N131: 0 | O131: 4
A132: 7 | B132: 5 | C132: 2023 | D132: 105321 | E132: =IFERROR(VLOOKUP(Tabla_SERIED_11_6[[#This Row],[IdEstablecimiento]],'[2]Establecimiento 2023'!$A$1:$E$183,3,FALSE),0) -> 105321-Centro de Salud Familiar Tongoy | F132: =IFERROR(VLOOKUP(Tabla_SERIED_11_6[[#This Row],[IdEstablecimiento]],'[2]Establecimiento 2023'!$A$1:$E$183,5,FALSE),0) -> 04102-Coquimbo | G132: 15080008 | H132: 2023-08-18T08:11:01 | I132: 51 | Q132: 28 | S132: 18 | U132: 5
A133: 7 | B133: 5 | C133: 2023 | D133: 105322 | E133: =IFERROR(VLOOKUP(Tabla_SERIED_11_6[[#This Row],[IdEstablecimiento]],'[2]Establecimiento 2023'!$A$1:$E$183,3,FALSE),0) -> 105322-Centro de Salud Familiar Marcos Macuada | F133: =IFERROR(VLOOKUP(Tabla_SERIED_11_6[[#This Row],[IdEstablecimiento]],'[2]Establecimiento 2023'!$A$1:$E$183,5,FALSE),0) -> 04301-Ovalle | G133: 15050500 | H133: 2023-08-18T08:11:28 | I133: 2 | K133: 2 | L133: 0 | M133: 2 | N133: 0
A134: 7 | B134: 5 | C134: 2023 | D134: 105322 | E134: =IFERROR(VLOOKUP(Tabla_SERIED_11_6[[#This Row],[IdEstablecimiento]],'[2]Establecimiento 2023'!$A$1:$E$183,3,FALSE),0) -> 105322-Centro de Salud Familiar Marcos Macuada | F134: =IFERROR(VLOOKUP(Tabla_SERIED_11_6[[#This Row],[IdEstablecimiento]],'[2]Establecimiento 2023'!$A$1:$E$183,5,FALSE),0) -> 04301-Ovalle | G134: 15080008 | H134: 2023-08-18T08:11:28 | I134: 127 | Q134: 65 | S134: 46 | T134: 6 | U134: 10
A135: 7 | B135: 5 | C135: 2023 | D135: 105322 | E135: =IFERROR(VLOOKUP(Tabla_SERIED_11_6[[#This Row],[IdEstablecimiento]],'[2]Establecimiento 2023'!$A$1:$E$183,3,FALSE),0) -> 105322-Centro de Salud Familiar Marcos Macuada | F135: =IFERROR(VLOOKUP(Tabla_SERIED_11_6[[#This Row],[IdEstablecimiento]],'[2]Establecimiento 2023'!$A$1:$E$183,5,FALSE),0) -> 04301-Ovalle | G135: 15080018 | H135: 2023-08-18T08:11:28 | I135: 8 | J135: 0 | K135: 0 | L135: 0 | M135: 6 | N135: 2 | O135: 0 | P135: 0 | Q135: 0 | R135: 0 | S135: 0 | T135: 0 | U135: 0
A136: 7 | B136: 5 | C136: 2023 | D136: 105323 | E136: =IFERROR(VLOOKUP(Tabla_SERIED_11_6[[#This Row],[IdEstablecimiento]],'[2]Establecimiento 2023'!$A$1:$E$183,3,FALSE),0) -> 105323-Centro de Salud Familiar Dr. Sergio Aguilar Delgado | F136: =IFERROR(VLOOKUP(Tabla_SERIED_11_6[[#This Row],[IdEstablecimiento]],'[2]Establecimiento 2023'!$A$1:$E$183,5,FALSE),0) -> 04102-Coquimbo | G136: 15050200 | H136: 2023-08-18T08:12:04 | I136: 27 | J136: 17 | K136: 10 | L136: 1 | M136: 3 | N136: 8 | O136: 3 | P136: 2 | Q136: 8 | R136: 2
A137: 7 | B137: 5 | C137: 2023 | D137: 105323 | E137: =IFERROR(VLOOKUP(Tabla_SERIED_11_6[[#This Row],[IdEstablecimiento]],'[2]Establecimiento 2023'!$A$1:$E$183,3,FALSE),0) -> 105323-Centro de Salud Familiar Dr. Sergio Aguilar Delgado | F137: =IFERROR(VLOOKUP(Tabla_SERIED_11_6[[#This Row],[IdEstablecimiento]],'[2]Establecimiento 2023'!$A$1:$E$183,5,FALSE),0) -> 04102-Coquimbo | G137: 15060600 | H137: 2023-08-18T08:12:04 | I137: 1 | K137: 1 | L137: 1
A138: 7 | B138: 5 | C138: 2023 | D138: 105323 | E138: =IFERROR(VLOOKUP(Tabla_SERIED_11_6[[#This Row],[IdEstablecimiento]],'[2]Establecimiento 2023'!$A$1:$E$183,3,FALSE),0) -> 105323-Centro de Salud Familiar Dr. Sergio Aguilar Delgado | F138: =IFERROR(VLOOKUP(Tabla_SERIED_11_6[[#This Row],[IdEstablecimiento]],'[2]Establecimiento 2023'!$A$1:$E$183,5,FALSE),0) -> 04102-Coquimbo | G138: 15900020 | H138: 2023-08-18T08:12:04 | I138: 36 | J138: 3.2 | K138: 10.4 | L138: 22.4
A139: 7 | B139: 5 | C139: 2023 | D139: 105324 | E139: =IFERROR(VLOOKUP(Tabla_SERIED_11_6[[#This Row],[IdEstablecimiento]],'[2]Establecimiento 2023'!$A$1:$E$183,3,FALSE),0) -> 105324-Centro de Salud Familiar Sotaquí | F139: =IFERROR(VLOOKUP(Tabla_SERIED_11_6[[#This Row],[IdEstablecimiento]],'[2]Establecimiento 2023'!$A$1:$E$183,5,FALSE),0) -> 04301-Ovalle | G139: 15080018 | H139: 2023-08-18T08:12:32 | I139: 2 | L139: 2
A140: 7 | B140: 5 | C140: 2023 | D140: 105325 | E140: =IFERROR(VLOOKUP(Tabla_SERIED_11_6[[#This Row],[IdEstablecimiento]],'[2]Establecimiento 2023'!$A$1:$E$183,3,FALSE),0) -> 105325-Centro de Salud Familiar Juan Pablo II (La Serena) | F140: =IFERROR(VLOOKUP(Tabla_SERIED_11_6[[#This Row],[IdEstablecimiento]],'[2]Establecimiento 2023'!$A$1:$E$183,5,FALSE),0) -> 04101-La Serena | G140: 15020200 | H140: 2023-08-18T08:13:06 | I140: 6 | O140: 2 | P140: 4
A141: 7 | B141: 5 | C141: 2023 | D141: 105325 | E141: =IFERROR(VLOOKUP(Tabla_SERIED_11_6[[#This Row],[IdEstablecimiento]],'[2]Establecimiento 2023'!$A$1:$E$183,3,FALSE),0) -> 105325-Centro de Salud Familiar Juan Pablo II (La Serena) | F141: =IFERROR(VLOOKUP(Tabla_SERIED_11_6[[#This Row],[IdEstablecimiento]],'[2]Establecimiento 2023'!$A$1:$E$183,5,FALSE),0) -> 04101-La Serena | G141: 15050500 | H141: 2023-08-18T08:13:06 | I141: 5 | J141: 2 | K141: 3 | L141: 1 | M141: 3 | N141: 1
A142: 7 | B142: 5 | C142: 2023 | D142: 105325 | E142: =IFERROR(VLOOKUP(Tabla_SERIED_11_6[[#This Row],[IdEstablecimiento]],'[2]Establecimiento 2023'!$A$1:$E$183,3,FALSE),0) -> 105325-Centro de Salud Familiar Juan Pablo II (La Serena) | F142: =IFERROR(VLOOKUP(Tabla_SERIED_11_6[[#This Row],[IdEstablecimiento]],'[2]Establecimiento 2023'!$A$1:$E$183,5,FALSE),0) -> 04101-La Serena | G142: 15060100 | H142: 2023-08-18T08:13:06 | I142: 6 | J142: 4 | K142: 2 | L142: 0 | M142: 1 | N142: 0 | O142: 2 | P142: 0 | Q142: 1 | R142: 2 | S142: 0 | U142: 0 | V142: 0 | W142: 0
A143: 7 | B143: 5 | C143: 2023 | D143: 105325 | E143: =IFERROR(VLOOKUP(Tabla_SERIED_11_6[[#This Row],[IdEstablecimiento]],'[2]Establecimiento 2023'!$A$1:$E$183,3,FALSE),0) -> 105325-Centro de Salud Familiar Juan Pablo II (La Serena) | F143: =IFERROR(VLOOKUP(Tabla_SERIED_11_6[[#This Row],[IdEstablecimiento]],'[2]Establecimiento 2023'!$A$1:$E$183,5,FALSE),0) -> 04101-La Serena | G143: 16200210 | H143: 2023-08-18T08:13:06 | I143: 67 | J143: 67
A144: 7 | B144: 5 | C144: 2023 | D144: 105400 | E144: =IFERROR(VLOOKUP(Tabla_SERIED_11_6[[#This Row],[IdEstablecimiento]],'[2]Establecimiento 2023'!$A$1:$E$183,3,FALSE),0) -> 105400-Posta de Salud Rural Algarrobito | F144: =IFERROR(VLOOKUP(Tabla_SERIED_11_6[[#This Row],[IdEstablecimiento]],'[2]Establecimiento 2023'!$A$1:$E$183,5,FALSE),0) -> 04101-La Serena | G144: 15080015 | H144: 2023-08-18T08:14:04 | I144: 76 | O144: 28 | P144: 48
A145: 8 | B145: 5 | C145: 2023 | D145: 105104 | E145: =IFERROR(VLOOKUP(Tabla_SERIED_11_6[[#This Row],[IdEstablecimiento]],'[2]Establecimiento 2023'!$A$1:$E$183,3,FALSE),0) -> 105104-Hospital de Salamanca | F145: =IFERROR(VLOOKUP(Tabla_SERIED_11_6[[#This Row],[IdEstablecimiento]],'[2]Establecimiento 2023'!$A$1:$E$183,5,FALSE),0) -> 105104-Hospital Salamanca | G145: 15080015 | H145: 2023-09-15T11:46:01 | I145: 222 | O145: 124 | P145: 98
A146: 8 | B146: 5 | C146: 2023 | D146: 105104 | E146: =IFERROR(VLOOKUP(Tabla_SERIED_11_6[[#This Row],[IdEstablecimiento]],'[2]Establecimiento 2023'!$A$1:$E$183,3,FALSE),0) -> 105104-Hospital de Salamanca | F146: =IFERROR(VLOOKUP(Tabla_SERIED_11_6[[#This Row],[IdEstablecimiento]],'[2]Establecimiento 2023'!$A$1:$E$183,5,FALSE),0) -> 105104-Hospital Salamanca | G146: 16090300 | H146: 2023-09-15T11:46:01 | I146: 514 | J146: 514
A147: 8 | B147: 5 | C147: 2023 | D147: 105104 | E147: =IFERROR(VLOOKUP(Tabla_SERIED_11_6[[#This Row],[IdEstablecimiento]],'[2]Establecimiento 2023'!$A$1:$E$183,3,FALSE),0) -> 105104-Hospital de Salamanca | F147: =IFERROR(VLOOKUP(Tabla_SERIED_11_6[[#This Row],[IdEstablecimiento]],'[2]Establecimiento 2023'!$A$1:$E$183,5,FALSE),0) -> 105104-Hospital Salamanca | G147: 16200220 | H147: 2023-09-15T11:46:01 | I147: 6 | J147: 2 | K147: 4
A148: 8 | B148: 5 | C148: 2023 | D148: 105106 | E148: =IFERROR(VLOOKUP(Tabla_SERIED_11_6[[#This Row],[IdEstablecimiento]],'[2]Establecimiento 2023'!$A$1:$E$183,3,FALSE),0) -> 105106-Hospital Dr. José Arraño (Andacollo) | F148: =IFERROR(VLOOKUP(Tabla_SERIED_11_6[[#This Row],[IdEstablecimiento]],'[2]Establecimiento 2023'!$A$1:$E$183,5,FALSE),0) -> 105106-Hospital Andacollo | G148: 15080014 | H148: 2023-09-15T11:50:39 | I148: 110 | M148: 68 | N148: 42
A149: 8 | B149: 5 | C149: 2023 | D149: 105107 | E149: =IFERROR(VLOOKUP(Tabla_SERIED_11_6[[#This Row],[IdEstablecimiento]],'[2]Establecimiento 2023'!$A$1:$E$183,3,FALSE),0) -> 105107-Hospital San Juan de Dios (Vicuña) | F149: =IFERROR(VLOOKUP(Tabla_SERIED_11_6[[#This Row],[IdEstablecimiento]],'[2]Establecimiento 2023'!$A$1:$E$183,5,FALSE),0) -> 105107-Hospital Vicuña | G149: 15080014 | H149: 2023-09-15T11:53:17 | I149: 196 | M149: 106 | N149: 90
A150: 8 | B150: 5 | C150: 2023 | D150: 105107 | E150: =IFERROR(VLOOKUP(Tabla_SERIED_11_6[[#This Row],[IdEstablecimiento]],'[2]Establecimiento 2023'!$A$1:$E$183,3,FALSE),0) -> 105107-Hospital San Juan de Dios (Vicuña) | F150: =IFERROR(VLOOKUP(Tabla_SERIED_11_6[[#This Row],[IdEstablecimiento]],'[2]Establecimiento 2023'!$A$1:$E$183,5,FALSE),0) -> 105107-Hospital Vicuña | G150: 15080016 | H150: 2023-09-15T11:53:17 | I150: 14 | N150: 2 | O150: 8 | P150: 4
A151: 8 | B151: 5 | C151: 2023 | D151: 105108 | E151: =IFERROR(VLOOKUP(Tabla_SERIED_11_6[[#This Row],[IdEstablecimiento]],'[2]Establecimiento 2023'!$A$1:$E$183,3,FALSE),0) -> 105108-Hospital San Pedro (Los Vilos) | F151: =IFERROR(VLOOKUP(Tabla_SERIED_11_6[[#This Row],[IdEstablecimiento]],'[2]Establecimiento 2023'!$A$1:$E$183,5,FALSE),0) -> 105108-Hospital Los Vilos | G151: 15080015 | H151: 2023-09-15T11:53:14 | I151: 335 | O151: 198 | P151: 137
A152: 8 | B152: 5 | C152: 2023 | D152: 105301 | E152: =IFERROR(VLOOKUP(Tabla_SERIED_11_6[[#This Row],[IdEstablecimiento]],'[2]Establecimiento 2023'!$A$1:$E$183,3,FALSE),0) -> 105301-Centro de Salud Familiar Las Compañías | F152: =IFERROR(VLOOKUP(Tabla_SERIED_11_6[[#This Row],[IdEstablecimiento]],'[2]Establecimiento 2023'!$A$1:$E$183,5,FALSE),0) -> 04101-La Serena | G152: 15080008 | H152: 2023-09-15T11:54:49 | I152: 128 | Q152: 64 | S152: 34 | T152: 4 | U152: 26
A153: 8 | B153: 5 | C153: 2023 | D153: 105301 | E153: =IFERROR(VLOOKUP(Tabla_SERIED_11_6[[#This Row],[IdEstablecimiento]],'[2]Establecimiento 2023'!$A$1:$E$183,3,FALSE),0) -> 105301-Centro de Salud Familiar Las Compañías | F153: =IFERROR(VLOOKUP(Tabla_SERIED_11_6[[#This Row],[IdEstablecimiento]],'[2]Establecimiento 2023'!$A$1:$E$183,5,FALSE),0) -> 04101-La Serena | G153: 15080015 | H153: 2023-09-15T11:54:49 | I153: 346 | O153: 190 | P153: 156
A154: 8 | B154: 5 | C154: 2023 | D154: 105301 | E154: =IFERROR(VLOOKUP(Tabla_SERIED_11_6[[#This Row],[IdEstablecimiento]],'[2]Establecimiento 2023'!$A$1:$E$183,3,FALSE),0) -> 105301-Centro de Salud Familiar Las Compañías | F154: =IFERROR(VLOOKUP(Tabla_SERIED_11_6[[#This Row],[IdEstablecimiento]],'[2]Establecimiento 2023'!$A$1:$E$183,5,FALSE),0) -> 04101-La Serena | G154: 15900040 | H154: 2023-09-15T11:54:49 | I154: 13.2 | L154: 4.4 | M154: 8.8
A155: 8 | B155: 5 | C155: 2023 | D155: 105302 | E155: =IFERROR(VLOOKUP(Tabla_SERIED_11_6[[#This Row],[IdEstablecimiento]],'[2]Establecimiento 2023'!$A$1:$E$183,3,FALSE),0) -> 105302-Centro de Salud Familiar Pedro Aguirre Cerda | F155: =IFERROR(VLOOKUP(Tabla_SERIED_11_6[[#This Row],[IdEstablecimiento]],'[2]Establecimiento 2023'!$A$1:$E$183,5,FALSE),0) -> 04101-La Serena | G155: 15050100 | H155: 2023-09-15T11:55:42 | I155: 743 | J155: 275 | K155: 468 | L155: 12 | M155: 10 | N155: 92 | O155: 96 | P155: 90 | Q155: 114 | R155: 122 | S155: 102 | U155: 43 | V155: 6 | W155: 56
A156: 8 | B156: 5 | C156: 2023 | D156: 105302 | E156: =IFERROR(VLOOKUP(Tabla_SERIED_11_6[[#This Row],[IdEstablecimiento]],'[2]Establecimiento 2023'!$A$1:$E$183,3,FALSE),0) -> 105302-Centro de Salud Familiar Pedro Aguirre Cerda | F156: =IFERROR(VLOOKUP(Tabla_SERIED_11_6[[#This Row],[IdEstablecimiento]],'[2]Establecimiento 2023'!$A$1:$E$183,5,FALSE),0) -> 04101-La Serena | G156: 16200210 | H156: 2023-09-15T11:55:42 | I156: 74 | J156: 74
A157: 8 | B157: 5 | C157: 2023 | D157: 105303 | E157: =IFERROR(VLOOKUP(Tabla_SERIED_11_6[[#This Row],[IdEstablecimiento]],'[2]Establecimiento 2023'!$A$1:$E$183,3,FALSE),0) -> 105303-Centro de Salud Familiar San Juan | F157: =IFERROR(VLOOKUP(Tabla_SERIED_11_6[[#This Row],[IdEstablecimiento]],'[2]Establecimiento 2023'!$A$1:$E$183,5,FALSE),0) -> 04102-Coquimbo | G157: 15080015 | H157: 2023-10-17T09:58:43 | I157: 441 | O157: 242 | P157: 199
A158: 8 | B158: 5 | C158: 2023 | D158: 105303 | E158: =IFERROR(VLOOKUP(Tabla_SERIED_11_6[[#This Row],[IdEstablecimiento]],'[2]Establecimiento 2023'!$A$1:$E$183,3,FALSE),0) -> 105303-Centro de Salud Familiar San Juan | F158: =IFERROR(VLOOKUP(Tabla_SERIED_11_6[[#This Row],[IdEstablecimiento]],'[2]Establecimiento 2023'!$A$1:$E$183,5,FALSE),0) -> 04102-Coquimbo | G158: 16100300 | H158: 2023-10-17T09:58:43 | I158: 831 | J158: 336 | K158: 495
A159: 8 | B159: 5 | C159: 2023 | D159: 105304 | E159: =IFERROR(VLOOKUP(Tabla_SERIED_11_6[[#This Row],[IdEstablecimiento]],'[2]Establecimiento 2023'!$A$1:$E$183,3,FALSE),0) -> 105304-Centro de Salud Familiar Santa Cecilia | F159: =IFERROR(VLOOKUP(Tabla_SERIED_11_6[[#This Row],[IdEstablecimiento]],'[2]Establecimiento 2023'!$A$1:$E$183,5,FALSE),0) -> 04102-Coquimbo | G159: 15080018 | H159: 2023-09-15T11:56:49 | I159: 6 | J159: 0 | K159: 0 | L159: 2 | M159: 0 | N159: 4
A160: 8 | B160: 5 | C160: 2023 | D160: 105304 | E160: =IFERROR(VLOOKUP(Tabla_SERIED_11_6[[#This Row],[IdEstablecimiento]],'[2]Establecimiento 2023'!$A$1:$E$183,3,FALSE),0) -> 105304-Centro de Salud Familiar Santa Cecilia | F160: =IFERROR(VLOOKUP(Tabla_SERIED_11_6[[#This Row],[IdEstablecimiento]],'[2]Establecimiento 2023'!$A$1:$E$183,5,FALSE),0) -> 04102-Coquimbo | G160: 15900050 | H160: 2023-09-15T11:56:49 | I160: 1 | J160: 0 | K160: 1 | L160: 0 | M160: 1 | N160: 0 | O160: 0 | P160: 0
A161: 8 | B161: 5 | C161: 2023 | D161: 105304 | E161: =IFERROR(VLOOKUP(Tabla_SERIED_11_6[[#This Row],[IdEstablecimiento]],'[2]Establecimiento 2023'!$A$1:$E$183,3,FALSE),0) -> 105304-Centro de Salud Familiar Santa Cecilia | F161: =IFERROR(VLOOKUP(Tabla_SERIED_11_6[[#This Row],[IdEstablecimiento]],'[2]Establecimiento 2023'!$A$1:$E$183,5,FALSE),0) -> 04102-Coquimbo | G161: 16090300 | H161: 2023-09-15T11:56:49 | I161: 612 | J161: 612
A162: 8 | B162: 5 | C162: 2023 | D162: 105304 | E162: =IFERROR(VLOOKUP(Tabla_SERIED_11_6[[#This Row],[IdEstablecimiento]],'[2]Establecimiento 2023'!$A$1:$E$183,3,FALSE),0) -> 105304-Centro de Salud Familiar Santa Cecilia | F162: =IFERROR(VLOOKUP(Tabla_SERIED_11_6[[#This Row],[IdEstablecimiento]],'[2]Establecimiento 2023'!$A$1:$E$183,5,FALSE),0) -> 04102-Coquimbo | G162: 16100300 | H162: 2023-09-15T11:56:49 | I162: 612 | J162: 232 | K162: 380
A163: 8 | B163: 5 | C163: 2023 | D163: 105307 | E163: =IFERROR(VLOOKUP(Tabla_SERIED_11_6[[#This Row],[IdEstablecimiento]],'[2]Establecimiento 2023'!$A$1:$E$183,3,FALSE),0) -> 105307-Centro de Salud Familiar Monte Patria | F163: =IFERROR(VLOOKUP(Tabla_SERIED_11_6[[#This Row],[IdEstablecimiento]],'[2]Establecimiento 2023'!$A$1:$E$183,5,FALSE),0) -> 04303-Monte Patria | G163: 15050100 | H163: 2023-09-15T11:58:27 | I163: 293 | J163: 131 | K163: 162 | L163: 2 | M163: 4 | N163: 19 | O163: 34 | P163: 38 | Q163: 61 | R163: 54 | S163: 34 | U163: 28 | V163: 3 | W163: 16
A164: 8 | B164: 5 | C164: 2023 | D164: 105307 | E164: =IFERROR(VLOOKUP(Tabla_SERIED_11_6[[#This Row],[IdEstablecimiento]],'[2]Establecimiento 2023'!$A$1:$E$183,3,FALSE),0) -> 105307-Centro de Salud Familiar Monte Patria | F164: =IFERROR(VLOOKUP(Tabla_SERIED_11_6[[#This Row],[IdEstablecimiento]],'[2]Establecimiento 2023'!$A$1:$E$183,5,FALSE),0) -> 04303-Monte Patria | G164: 15050200 | H164: 2023-09-15T11:58:27 | I164: 3 | J164: 2 | K164: 1 | N164: 1 | P164: 1 | Q164: 1
A165: 8 | B165: 5 | C165: 2023 | D165: 105308 | E165: =IFERROR(VLOOKUP(Tabla_SERIED_11_6[[#This Row],[IdEstablecimiento]],'[2]Establecimiento 2023'!$A$1:$E$183,3,FALSE),0) -> 105308-Centro de Salud Familiar Punitaqui | F165: =IFERROR(VLOOKUP(Tabla_SERIED_11_6[[#This Row],[IdEstablecimiento]],'[2]Establecimiento 2023'!$A$1:$E$183,5,FALSE),0) -> 04304-Punitaqui | G165: 15050100 | H165: 2023-09-15T11:59:36 | I165: 440 | J165: 194 | K165: 246 | L165: 2 | M165: 15 | N165: 65 | O165: 50 | P165: 53 | Q165: 83 | R165: 81 | S165: 53 | U165: 28 | W165: 10
A166: 8 | B166: 5 | C166: 2023 | D166: 105308 | E166: =IFERROR(VLOOKUP(Tabla_SERIED_11_6[[#This Row],[IdEstablecimiento]],'[2]Establecimiento 2023'!$A$1:$E$183,3,FALSE),0) -> 105308-Centro de Salud Familiar Punitaqui | F166: =IFERROR(VLOOKUP(Tabla_SERIED_11_6[[#This Row],[IdEstablecimiento]],'[2]Establecimiento 2023'!$A$1:$E$183,5,FALSE),0) -> 04304-Punitaqui | G166: 15080008 | H166: 2023-09-15T11:59:36 | I166: 119 | Q166: 53 | S166: 56 | U166: 10
A167: 8 | B167: 5 | C167: 2023 | D167: 105308 | E167: =IFERROR(VLOOKUP(Tabla_SERIED_11_6[[#This Row],[IdEstablecimiento]],'[2]Establecimiento 2023'!$A$1:$E$183,3,FALSE),0) -> 105308-Centro de Salud Familiar Punitaqui | F167: =IFERROR(VLOOKUP(Tabla_SERIED_11_6[[#This Row],[IdEstablecimiento]],'[2]Establecimiento 2023'!$A$1:$E$183,5,FALSE),0) -> 04304-Punitaqui | G167: 15080014 | H167: 2023-09-15T11:59:36 | I167: 206 | M167: 100 | N167: 106
A168: 8 | B168: 5 | C168: 2023 | D168: 105308 | E168: =IFERROR(VLOOKUP(Tabla_SERIED_11_6[[#This Row],[IdEstablecimiento]],'[2]Establecimiento 2023'!$A$1:$E$183,3,FALSE),0) -> 105308-Centro de Salud Familiar Punitaqui | F168: =IFERROR(VLOOKUP(Tabla_SERIED_11_6[[#This Row],[IdEstablecimiento]],'[2]Establecimiento 2023'!$A$1:$E$183,5,FALSE),0) -> 04304-Punitaqui | G168: 15900040 | H168: 2023-09-15T11:59:36 | I168: 4.8 | N168: 4.8
A169: 8 | B169: 5 | C169: 2023 | D169: 105309 | E169: =IFERROR(VLOOKUP(Tabla_SERIED_11_6[[#This Row],[IdEstablecimiento]],'[2]Establecimiento 2023'!$A$1:$E$183,3,FALSE),0) -> 105309-Centro de Salud Familiar Canela | F169: =IFERROR(VLOOKUP(Tabla_SERIED_11_6[[#This Row],[IdEstablecimiento]],'[2]Establecimiento 2023'!$A$1:$E$183,5,FALSE),0) -> 04202-Canela | G169: 15010200 | H169: 2023-09-15T11:59:47 | I169: 6 | P169: 6
A170: 8 | B170: 5 | C170: 2023 | D170: 105309 | E170: =IFERROR(VLOOKUP(Tabla_SERIED_11_6[[#This Row],[IdEstablecimiento]],'[2]Establecimiento 2023'!$A$1:$E$183,3,FALSE),0) -> 105309-Centro de Salud Familiar Canela | F170: =IFERROR(VLOOKUP(Tabla_SERIED_11_6[[#This Row],[IdEstablecimiento]],'[2]Establecimiento 2023'!$A$1:$E$183,5,FALSE),0) -> 04202-Canela | G170: 15900010 | H170: 2023-09-15T11:59:47 | I170: 69.6 | J170: 15.2 | K170: 8 | L170: 46.4
A171: 8 | B171: 5 | C171: 2023 | D171: 105309 | E171: =IFERROR(VLOOKUP(Tabla_SERIED_11_6[[#This Row],[IdEstablecimiento]],'[2]Establecimiento 2023'!$A$1:$E$183,3,FALSE),0) -> 105309-Centro de Salud Familiar Canela | F171: =IFERROR(VLOOKUP(Tabla_SERIED_11_6[[#This Row],[IdEstablecimiento]],'[2]Establecimiento 2023'!$A$1:$E$183,5,FALSE),0) -> 04202-Canela | G171: 15900030 | H171: 2023-09-15T11:59:47 | I171: 8.8 | L171: 2.4 | N171: 6.4
A172: 8 | B172: 5 | C172: 2023 | D172: 105309 | E172: =IFERROR(VLOOKUP(Tabla_SERIED_11_6[[#This Row],[IdEstablecimiento]],'[2]Establecimiento 2023'!$A$1:$E$183,3,FALSE),0) -> 105309-Centro de Salud Familiar Canela | F172: =IFERROR(VLOOKUP(Tabla_SERIED_11_6[[#This Row],[IdEstablecimiento]],'[2]Establecimiento 2023'!$A$1:$E$183,5,FALSE),0) -> 04202-Canela | G172: 16090500 | H172: 2023-09-15T11:59:47 | I172: 2 | J172: 2
A173: 8 | B173: 5 | C173: 2023 | D173: 105312 | E173: =IFERROR(VLOOKUP(Tabla_SERIED_11_6[[#This Row],[IdEstablecimiento]],'[2]Establecimiento 2023'!$A$1:$E$183,3,FALSE),0) -> 105312-Centro de Salud Familiar Carén | F173: =IFERROR(VLOOKUP(Tabla_SERIED_11_6[[#This Row],[IdEstablecimiento]],'[2]Establecimiento 2023'!$A$1:$E$183,5,FALSE),0) -> 04303-Monte Patria | G173: 15080008 | H173: 2023-09-15T12:07:17 | I173: 26 | Q173: 10 | S173: 10 | T173: 1 | U173: 5
A174: 8 | B174: 5 | C174: 2023 | D174: 105313 | E174: =IFERROR(VLOOKUP(Tabla_SERIED_11_6[[#This Row],[IdEstablecimiento]],'[2]Establecimiento 2023'!$A$1:$E$183,3,FALSE),0) -> 105313-Centro de Salud Familiar Dr. Emilio Schaffhauser | F174: =IFERROR(VLOOKUP(Tabla_SERIED_11_6[[#This Row],[IdEstablecimiento]],'[2]Establecimiento 2023'!$A$1:$E$183,5,FALSE),0) -> 04101-La Serena | G174: 15050500 | H174: 2023-09-25T09:20:26 | I174: 2 | J174: 1 | K174: 1 | L174: 1 | N174: 1
A175: 8 | B175: 5 | C175: 2023 | D175: 105313 | E175: =IFERROR(VLOOKUP(Tabla_SERIED_11_6[[#This Row],[IdEstablecimiento]],'[2]Establecimiento 2023'!$A$1:$E$183,3,FALSE),0) -> 105313-Centro de Salud Familiar Dr. Emilio Schaffhauser | F175: =IFERROR(VLOOKUP(Tabla_SERIED_11_6[[#This Row],[IdEstablecimiento]],'[2]Establecimiento 2023'!$A$1:$E$183,5,FALSE),0) -> 04101-La Serena | G175: 15901200 | H175: 2023-09-25T09:20:26 | I175: 8.8 | K175: 4.4 | L175: 4.4
A176: 8 | B176: 5 | C176: 2023 | D176: 105313 | E176: =IFERROR(VLOOKUP(Tabla_SERIED_11_6[[#This Row],[IdEstablecimiento]],'[2]Establecimiento 2023'!$A$1:$E$183,3,FALSE),0) -> 105313-Centro de Salud Familiar Dr. Emilio Schaffhauser | F176: =IFERROR(VLOOKUP(Tabla_SERIED_11_6[[#This Row],[IdEstablecimiento]],'[2]Establecimiento 2023'!$A$1:$E$183,5,FALSE),0) -> 04101-La Serena | G176: 16200220 | H176: 2023-09-25T09:20:26 | I176: 108 | J176: 34 | K176: 74
A177: 8 | B177: 5 | C177: 2023 | D177: 105314 | E177: =IFERROR(VLOOKUP(Tabla_SERIED_11_6[[#This Row],[IdEstablecimiento]],'[2]Establecimiento 2023'!$A$1:$E$183,3,FALSE),0) -> 105314-Centro de Salud Familiar La Higuera | F177: =IFERROR(VLOOKUP(Tabla_SERIED_11_6[[#This Row],[IdEstablecimiento]],'[2]Establecimiento 2023'!$A$1:$E$183,5,FALSE),0) -> 04104-La Higuera | G177: 16200210 | H177: 2023-10-17T10:17:15 | I177: 11 | J177: 11
A178: 8 | B178: 5 | C178: 2023 | D178: 105314 | E178: =IFERROR(VLOOKUP(Tabla_SERIED_11_6[[#This Row],[IdEstablecimiento]],'[2]Establecimiento 2023'!$A$1:$E$183,3,FALSE),0) -> 105314-Centro de Salud Familiar La Higuera | F178: =IFERROR(VLOOKUP(Tabla_SERIED_11_6[[#This Row],[IdEstablecimiento]],'[2]Establecimiento 2023'!$A$1:$E$183,5,FALSE),0) -> 04104-La Higuera | G178: 16200220 | H178: 2023-10-17T10:17:15 | I178: 11 | J178: 4 | K178: 7
A179: 8 | B179: 5 | C179: 2023 | D179: 105315 | E179: =IFERROR(VLOOKUP(Tabla_SERIED_11_6[[#This Row],[IdEstablecimiento]],'[2]Establecimiento 2023'!$A$1:$E$183,3,FALSE),0) -> 105315-Centro de Salud Familiar Cerrillos de Tamaya | F179: =IFERROR(VLOOKUP(Tabla_SERIED_11_6[[#This Row],[IdEstablecimiento]],'[2]Establecimiento 2023'!$A$1:$E$183,5,FALSE),0) -> 04301-Ovalle | G179: 15900020 | H179: 2023-09-15T12:07:20 | I179: 8 | L179: 8
A180: 8 | B180: 5 | C180: 2023 | D180: 105315 | E180: =IFERROR(VLOOKUP(Tabla_SERIED_11_6[[#This Row],[IdEstablecimiento]],'[2]Establecimiento 2023'!$A$1:$E$183,3,FALSE),0) -> 105315-Centro de Salud Familiar Cerrillos de Tamaya | F180: =IFERROR(VLOOKUP(Tabla_SERIED_11_6[[#This Row],[IdEstablecimiento]],'[2]Establecimiento 2023'!$A$1:$E$183,5,FALSE),0) -> 04301-Ovalle | G180: 15900040 | H180: 2023-09-15T12:07:20 | I180: 4.4 | M180: 4.4
A181: 8 | B181: 5 | C181: 2023 | D181: 105317 | E181: =IFERROR(VLOOKUP(Tabla_SERIED_11_6[[#This Row],[IdEstablecimiento]],'[2]Establecimiento 2023'!$A$1:$E$183,3,FALSE),0) -> 105317-Centro de Salud Familiar Jorge Jordán Domic | F181: =IFERROR(VLOOKUP(Tabla_SERIED_11_6[[#This Row],[IdEstablecimiento]],'[2]Establecimiento 2023'!$A$1:$E$183,5,FALSE),0) -> 04301-Ovalle | G181: 15901500 | H181: 2023-09-15T12:16:19 | I181: 5.6 | J181: 5.6
A182: 8 | B182: 5 | C182: 2023 | D182: 105319 | E182: =IFERROR(VLOOKUP(Tabla_SERIED_11_6[[#This Row],[IdEstablecimiento]],'[2]Establecimiento 2023'!$A$1:$E$183,3,FALSE),0) -> 105319-Centro de Salud Familiar Cardenal Raúl Silva Henríquez de La Serena | F182: =IFERROR(VLOOKUP(Tabla_SERIED_11_6[[#This Row],[IdEstablecimiento]],'[2]Establecimiento 2023'!$A$1:$E$183,5,FALSE),0) -> 04101-La Serena | G182: 15080019 | H182: 2023-09-15T12:17:37 | I182: 8 | O182: 4 | P182: 4
A183: 8 | B183: 5 | C183: 2023 | D183: 105319 | E183: =IFERROR(VLOOKUP(Tabla_SERIED_11_6[[#This Row],[IdEstablecimiento]],'[2]Establecimiento 2023'!$A$1:$E$183,3,FALSE),0) -> 105319-Centro de Salud Familiar Cardenal Raúl Silva Henríquez de La Serena | F183: =IFERROR(VLOOKUP(Tabla_SERIED_11_6[[#This Row],[IdEstablecimiento]],'[2]Establecimiento 2023'!$A$1:$E$183,5,FALSE),0) -> 04101-La Serena | G183: 16200220 | H183: 2023-09-15T12:17:37 | I183: 68 | J183: 29 | K183: 39
A184: 8 | B184: 5 | C184: 2023 | D184: 105321 | E184: =IFERROR(VLOOKUP(Tabla_SERIED_11_6[[#This Row],[IdEstablecimiento]],'[2]Establecimiento 2023'!$A$1:$E$183,3,FALSE),0) -> 105321-Centro de Salud Familiar Tongoy | F184: =IFERROR(VLOOKUP(Tabla_SERIED_11_6[[#This Row],[IdEstablecimiento]],'[2]Establecimiento 2023'!$A$1:$E$183,5,FALSE),0) -> 04102-Coquimbo | G184: 15030100 | H184: 2023-09-15T12:17:40 | I184: 2.8 | J184: 2 | K184: 0 | L184: 0.8
A185: 8 | B185: 5 | C185: 2023 | D185: 105322 | E185: =IFERROR(VLOOKUP(Tabla_SERIED_11_6[[#This Row],[IdEstablecimiento]],'[2]Establecimiento 2023'!$A$1:$E$183,3,FALSE),0) -> 105322-Centro de Salud Familiar Marcos Macuada | F185: =IFERROR(VLOOKUP(Tabla_SERIED_11_6[[#This Row],[IdEstablecimiento]],'[2]Establecimiento 2023'!$A$1:$E$183,5,FALSE),0) -> 04301-Ovalle | G185: 15050200 | H185: 2023-09-15T12:19:18 | I185: 7 | J185: 3 | K185: 4 | L185: 0 | M185: 0 | N185: 1 | O185: 1 | Q185: 1 | R185: 2 | T185: 2 | U185: 0 | V185: 0 | W185: 0
A186: 8 | B186: 5 | C186: 2023 | D186: 105322 | E186: =IFERROR(VLOOKUP(Tabla_SERIED_11_6[[#This Row],[IdEstablecimiento]],'[2]Establecimiento 2023'!$A$1:$E$183,3,FALSE),0) -> 105322-Centro de Salud Familiar Marcos Macuada | F186: =IFERROR(VLOOKUP(Tabla_SERIED_11_6[[#This Row],[IdEstablecimiento]],'[2]Establecimiento 2023'!$A$1:$E$183,5,FALSE),0) -> 04301-Ovalle | G186: 16090500 | H186: 2023-09-15T12:19:18 | I186: 2 | J186: 2
A187: 8 | B187: 5 | C187: 2023 | D187: 105323 | E187: =IFERROR(VLOOKUP(Tabla_SERIED_11_6[[#This Row],[IdEstablecimiento]],'[2]Establecimiento 2023'!$A$1:$E$183,3,FALSE),0) -> 105323-Centro de Salud Familiar Dr. Sergio Aguilar Delgado | F187: =IFERROR(VLOOKUP(Tabla_SERIED_11_6[[#This Row],[IdEstablecimiento]],'[2]Establecimiento 2023'!$A$1:$E$183,5,FALSE),0) -> 04102-Coquimbo | G187: 15010500 | H187: 2023-09-15T12:19:22 | I187: 43 | K187: 1 | L187: 10 | M187: 10 | N187: 4 | O187: 14 | P187: 4
A188: 8 | B188: 5 | C188: 2023 | D188: 105323 | E188: =IFERROR(VLOOKUP(Tabla_SERIED_11_6[[#This Row],[IdEstablecimiento]],'[2]Establecimiento 2023'!$A$1:$E$183,3,FALSE),0) -> 105323-Centro de Salud Familiar Dr. Sergio Aguilar Delgado | F188: =IFERROR(VLOOKUP(Tabla_SERIED_11_6[[#This Row],[IdEstablecimiento]],'[2]Establecimiento 2023'!$A$1:$E$183,5,FALSE),0) -> 04102-Coquimbo | G188: 15050100 | H188: 2023-09-15T12:19:22 | I188: 643 | J188: 233 | K188: 410 | L188: 7 | M188: 16 | N188: 69 | O188: 83 | P188: 71 | Q188: 121 | R188: 97 | S188: 88 | U188: 25 | V188: 19 | W188: 47
A189: 8 | B189: 5 | C189: 2023 | D189: 105326 | E189: =IFERROR(VLOOKUP(Tabla_SERIED_11_6[[#This Row],[IdEstablecimiento]],'[2]Establecimiento 2023'!$A$1:$E$183,3,FALSE),0) -> 105326-Centro de Salud Familiar Villa San Rafael de Rozas | F189: =IFERROR(VLOOKUP(Tabla_SERIED_11_6[[#This Row],[IdEstablecimiento]],'[2]Establecimiento 2023'!$A$1:$E$183,5,FALSE),0) -> 04201-Illapel | G189: 15050100 | H189: 2023-09-15T12:21:59 | I189: 206 | J189: 86 | K189: 120 | M189: 5 | N189: 11 | O189: 30 | P189: 30 | Q189: 48 | R189: 48 | S189: 19 | U189: 6 | V189: 1 | W189: 8
A190: 8 | B190: 5 | C190: 2023 | D190: 105326 | E190: =IFERROR(VLOOKUP(Tabla_SERIED_11_6[[#This Row],[IdEstablecimiento]],'[2]Establecimiento 2023'!$A$1:$E$183,3,FALSE),0) -> 105326-Centro de Salud Familiar Villa San Rafael de Rozas | F190: =IFERROR(VLOOKUP(Tabla_SERIED_11_6[[#This Row],[IdEstablecimiento]],'[2]Establecimiento 2023'!$A$1:$E$183,5,FALSE),0) -> 04201-Illapel | G190: 15080014 | H190: 2023-09-15T12:21:59 | I190: 122 | M190: 60 | N190: 60 | Q190: 2
A191: 8 | B191: 5 | C191: 2023 | D191: 105326 | E191: =IFERROR(VLOOKUP(Tabla_SERIED_11_6[[#This Row],[IdEstablecimiento]],'[2]Establecimiento 2023'!$A$1:$E$183,3,FALSE),0) -> 105326-Centro de Salud Familiar Villa San Rafael de Rozas | F191: =IFERROR(VLOOKUP(Tabla_SERIED_11_6[[#This Row],[IdEstablecimiento]],'[2]Establecimiento 2023'!$A$1:$E$183,5,FALSE),0) -> 04201-Illapel | G191: 16090500 | H191: 2023-09-15T12:21:59 | I191: 5 | J191: 5
A192: 8 | B192: 5 | C192: 2023 | D192: 105401 | E192: =IFERROR(VLOOKUP(Tabla_SERIED_11_6[[#This Row],[IdEstablecimiento]],'[2]Establecimiento 2023'!$A$1:$E$183,3,FALSE),0) -> 105401-Posta de Salud Rural Las Rojas | F192: =IFERROR(VLOOKUP(Tabla_SERIED_11_6[[#This Row],[IdEstablecimiento]],'[2]Establecimiento 2023'!$A$1:$E$183,5,FALSE),0) -> 04101-La Serena | G192: 15050500 | H192: 2023-09-15T12:23:17 | I192: 1 | K192: 1 | N192: 1
A193: 8 | B193: 5 | C193: 2023 | D193: 105405 | E193: =IFERROR(VLOOKUP(Tabla_SERIED_11_6[[#This Row],[IdEstablecimiento]],'[2]Establecimiento 2023'!$A$1:$E$183,3,FALSE),0) -> 105405-Posta de Salud Rural Guanaqueros | F193: =IFERROR(VLOOKUP(Tabla_SERIED_11_6[[#This Row],[IdEstablecimiento]],'[2]Establecimiento 2023'!$A$1:$E$183,5,FALSE),0) -> 04102-Coquimbo | G193: 15010500 | H193: 2023-09-15T12:24:58 | I193: 2 | M193: 0 | N193: 0 | O193: 0 | P193: 2
A194: 8 | B194: 5 | C194: 2023 | D194: 105405 | E194: =IFERROR(VLOOKUP(Tabla_SERIED_11_6[[#This Row],[IdEstablecimiento]],'[2]Establecimiento 2023'!$A$1:$E$183,3,FALSE),0) -> 105405-Posta de Salud Rural Guanaqueros | F194: =IFERROR(VLOOKUP(Tabla_SERIED_11_6[[#This Row],[IdEstablecimiento]],'[2]Establecimiento 2023'!$A$1:$E$183,5,FALSE),0) -> 04102-Coquimbo | G194: 15050100 | H194: 2023-09-15T12:24:58 | I194: 77 | J194: 31 | K194: 46 | L194: 2 | M194: 2 | N194: 5 | O194: 14 | P194: 11 | Q194: 19 | R194: 13 | S194: 8 | U194: 3 | W194: 0
A195: 8 | B195: 5 | C195: 2023 | D195: 105405 | E195: =IFERROR(VLOOKUP(Tabla_SERIED_11_6[[#This Row],[IdEstablecimiento]],'[2]Establecimiento 2023'!$A$1:$E$183,3,FALSE),0) -> 105405-Posta de Salud Rural Guanaqueros | F195: =IFERROR(VLOOKUP(Tabla_SERIED_11_6[[#This Row],[IdEstablecimiento]],'[2]Establecimiento 2023'!$A$1:$E$183,5,FALSE),0) -> 04102-Coquimbo | G195: 16090300 | H195: 2023-09-15T12:24:58 | I195: 76 | J195: 76
A196: 8 | B196: 5 | C196: 2023 | D196: 105407 | E196: =IFERROR(VLOOKUP(Tabla_SERIED_11_6[[#This Row],[IdEstablecimiento]],'[2]Establecimiento 2023'!$A$1:$E$183,3,FALSE),0) -> 105407-Posta de Salud Rural Tambillo | F196: =IFERROR(VLOOKUP(Tabla_SERIED_11_6[[#This Row],[IdEstablecimiento]],'[2]Establecimiento 2023'!$A$1:$E$183,5,FALSE),0) -> 04102-Coquimbo | G196: 16200210 | H196: 2023-09-15T12:25:00 | I196: 4 | J196: 4
A197: 8 | B197: 5 | C197: 2023 | D197: 105409 | E197: =IFERROR(VLOOKUP(Tabla_SERIED_11_6[[#This Row],[IdEstablecimiento]],'[2]Establecimiento 2023'!$A$1:$E$183,3,FALSE),0) -> 105409-Posta de Salud Rural El Chañar | F197: =IFERROR(VLOOKUP(Tabla_SERIED_11_6[[#This Row],[IdEstablecimiento]],'[2]Establecimiento 2023'!$A$1:$E$183,5,FALSE),0) -> 04305-Rio Hurtado | G197: 15080014 | H197: 2023-09-15T15:32:49 | I197: 2 | M197: 2
A198: 8 | B198: 5 | C198: 2023 | D198: 105413 | E198: =IFERROR(VLOOKUP(Tabla_SERIED_11_6[[#This Row],[IdEstablecimiento]],'[2]Establecimiento 2023'!$A$1:$E$183,3,FALSE),0) -> 105413-Posta de Salud Rural Samo Alto | F198: =IFERROR(VLOOKUP(Tabla_SERIED_11_6[[#This Row],[IdEstablecimiento]],'[2]Establecimiento 2023'!$A$1:$E$183,5,FALSE),0) -> 04305-Rio Hurtado | G198: 15050100 | H198: 2023-09-15T15:33:51 | I198: 13 | J198: 9 | K198: 4 | Q198: 7 | R198: 5 | S198: 1
A199: 8 | B199: 5 | C199: 2023 | D199: 105414 | E199: =IFERROR(VLOOKUP(Tabla_SERIED_11_6[[#This Row],[IdEstablecimiento]],'[2]Establecimiento 2023'!$A$1:$E$183,3,FALSE),0) -> 105414-Posta de Salud Rural Serón | F199: =IFERROR(VLOOKUP(Tabla_SERIED_11_6[[#This Row],[IdEstablecimiento]],'[2]Establecimiento 2023'!$A$1:$E$183,5,FALSE),0) -> 04305-Rio Hurtado | G199: 15050100 | H199: 2023-09-15T15:34:57 | I199: 13 | J199: 7 | K199: 6 | O199: 1 | Q199: 4 | R199: 6 | S199: 1 | V199: 1
A200: 8 | B200: 5 | C200: 2023 | D200: 105414 | E200: =IFERROR(VLOOKUP(Tabla_SERIED_11_6[[#This Row],[IdEstablecimiento]],'[2]Establecimiento 2023'!$A$1:$E$183,3,FALSE),0) -> 105414-Posta de Salud Rural Serón | F200: =IFERROR(VLOOKUP(Tabla_SERIED_11_6[[#This Row],[IdEstablecimiento]],'[2]Establecimiento 2023'!$A$1:$E$183,5,FALSE),0) -> 04305-Rio Hurtado | G200: 15901500 | H200: 2023-09-15T15:34:57 | I200: 4.8 | L200: 4.8
... 4300 more rows
